Workbook

Sheet Инструкция
E2: Код шаблона: INVEST.EE.FACT
G3: ="Версия " & GetVersion() -> Версия 2.0
B4: Инструкция по заполнению шаблона
C7: Технические требования: • макросы во время работы должны быть включены
C8: • на рабочем месте должен быть установлен MS Office 2003, 2007, 2010 x86 с полной версией MS Excel
C9: • макросы во время работы должны быть включены
C10: • для корректной работы шаблона требуется выбрать низкий уровень безопасности
C11: (В меню MS Excel 2003: Сервис ¦ Макрос ¦ Безопасность ¦ выбрать нижний пункт «Низкая безопасность» ¦ «OK»)
C12: (В MS Excel 2007 после открытия файла шаблона нажать на кнопку «Параметры…» в строке «Предупреждение системы безопасности», далее выбрать «Включить это содержимое» ¦ «OK»)
D13: Цвета ячеек:
D14: ● | E14: Голубой – ячейки, обязательные для заполнения;
D15: ● | E15: Желтый – ячейки, предназначенные для заполнения;
D16: ● | E16: Зеленый – ячейки с формулами/константами или заполняемые автоматически (например, при выборе организации из реестра).
D18: Пояснение к заполнению (необходимо нажать один раз).
C20: Шаблон может быть сохранен на любом этапе заполнения!
C21: • При сохранении шаблона осуществляется проверка на наличие и корректность (например, КПП – 9 цифр) обязательных параметров на листах.
C22: • Если какая-то ячейка не удовлетворяет условию проверки, на лист «Проверка» добавляется гиперссылка на данную ячейку и причина, по которой шаблон не будет загружен в хранилище данных.
C23: • В колонке «Статус ошибки» для каждого сообщения возможны 2 значения: ошибка и предупреждение.
C24: • При наличии сообщений со статусом «Ошибка» шаблон будет отклонён системой, сообщения со статусом «Предупреждение» носят информационный характер, и такой шаблон будет принят системой.
C25: Организационно-технические консультации:
C26: ФИО:
C27: телефон:
C28: e-mail:
C29: WEB-сайт: | E29: http://eias.ru/
C30: Комментарий
C31: Дистрибутивы: | E31: Для устранения проблем с MS Excel (например, "Compile error in hidden module") воспользуйтесь пакетами библиотек:
C32: Дистрибутивы (ссылка): | E32: http://eias.ru/?page=show_distrs
C34: Консультации по методологии заполнения форм:
C35: ФИО:
C36: телефон:
C37: e-mail:
C38: WEB-сайт:
C39: Комментарий

Sheet Выбор субъекта РФ (hidden)
F2: 62
D3: Субъект РФ | F3: Ростовская область

Sheet Обновление
O2: =version -> Версия 2.0
C3: Инструкция по обновлению шаблона
C24: Если компьютер имеет подключение к Интернет, можно автоматически проверять наличие доступных обновлений. Выберите способ оповещения о наличии обновлений для шаблона:

Sheet Лог обновления (hidden)
A1: Дата/Время | B1: Сообщение | C1: Статус
A2: 2/29/2012 9:29:16 AM | B2: Проверка доступных обновлений... | C2: Информация
A3: 2/29/2012 9:29:17 AM | B3: Версия шаблона 1.3 актуальна, обновление не требуется | C3: Информация
A4: 3/15/2012 9:41:35 AM | B4: Проверка доступных обновлений... | C4: Информация
A5: 3/15/2012 9:41:37 AM | B5: Версия шаблона 1.3 актуальна, обновление не требуется | C5: Информация
A6: 3/27/2012 9:31:08 AM | B6: Проверка доступных обновлений... | C6: Информация
A7: 3/27/2012 9:31:09 AM | B7: Версия шаблона 2.0 актуальна, обновление не требуется | C7: Информация
A8: 10/23/2012 9:47:28 AM | B8: Проверка доступных обновлений... | C8: Информация
A9: 10/23/2012 9:47:29 AM | B9: Версия шаблона 2.0 актуальна, обновление не требуется | C9: Информация
A10: 11/12/2012 10:50:28 AM | B10: Проверка доступных обновлений... | C10: Информация
A11: 11/12/2012 10:50:32 AM | B11: Версия шаблона 2.0 актуальна, обновление не требуется | C11: Информация
A12: 11/13/2012 2:02:29 PM | B12: Проверка доступных обновлений... | C12: Информация
A13: 11/13/2012 2:02:33 PM | B13: Версия шаблона 2.0 актуальна, обновление не требуется | C13: Информация
A14: 11/14/2012 8:36:24 AM | B14: Проверка доступных обновлений... | C14: Информация
A15: 11/14/2012 8:36:26 AM | B15: Версия шаблона 2.0 актуальна, обновление не требуется | C15: Информация
A16: 11/14/2012 2:53:08 PM | B16: Проверка доступных обновлений... | C16: Информация
A17: 11/14/2012 2:53:12 PM | B17: Версия шаблона 2.0 актуальна, обновление не требуется | C17: Информация
A18: 11/16/2012 9:46:01 AM | B18: Проверка доступных обновлений... | C18: Информация
A19: 11/16/2012 9:46:05 AM | B19: Версия шаблона 2.0 актуальна, обновление не требуется | C19: Информация
A20: 5/22/2013 11:07:19 AM | B20: Проверка доступных обновлений... | C20: Информация
A21: 5/22/2013 11:07:20 AM | B21: Версия шаблона 2.0 актуальна, обновление не требуется | C21: Информация
A22: 8/8/2013 5:07:41 PM | B22: Проверка доступных обновлений... | C22: Информация
A23: 8/8/2013 5:07:43 PM | B23: Версия шаблона 2.0 актуальна, обновление не требуется | C23: Информация
A24: 8/9/2013 9:48:15 AM | B24: Проверка доступных обновлений... | C24: Информация
A25: 8/9/2013 9:48:16 AM | B25: Версия шаблона 2.0 актуальна, обновление не требуется | C25: Информация
A26: 11/11/2013 2:37:28 PM | B26: Проверка доступных обновлений... | C26: Информация
A27: 11/11/2013 2:37:31 PM | B27: Версия шаблона 2.0 актуальна, обновление не требуется | C27: Информация
A28: 2/10/2014 2:56:40 PM | B28: Проверка доступных обновлений... | C28: Информация
A29: 2/10/2014 2:56:41 PM | B29: Версия шаблона 2.0 актуальна, обновление не требуется | C29: Информация
A30: 2/11/2014 11:21:16 AM | B30: Проверка доступных обновлений... | C30: Информация
A31: 2/11/2014 11:21:18 AM | B31: Версия шаблона 2.0 актуальна, обновление не требуется | C31: Информация
A32: 2/11/2014 1:31:41 PM | B32: Проверка доступных обновлений... | C32: Информация
A33: 2/11/2014 1:31:42 PM | B33: Версия шаблона 2.0 актуальна, обновление не требуется | C33: Информация
A34: 5/14/2014 10:33:27 AM | B34: Проверка доступных обновлений... | C34: Информация
A35: 5/14/2014 10:33:28 AM | B35: Версия шаблона 2.0 актуальна, обновление не требуется | C35: Информация
A36: 8/14/2014 11:21:19 AM | B36: Проверка доступных обновлений... | C36: Информация
A37: 8/14/2014 11:21:20 AM | B37: Версия шаблона 2.0 актуальна, обновление не требуется | C37: Информация
A38: 8/14/2014 5:08:09 PM | B38: Проверка доступных обновлений... | C38: Информация
A39: 8/14/2014 5:08:12 PM | B39: Версия шаблона 2.0 актуальна, обновление не требуется | C39: Информация
A40: 8/15/2014 8:24:50 AM | B40: Проверка доступных обновлений... | C40: Информация
A41: 8/15/2014 8:24:51 AM | B41: Версия шаблона 2.0 актуальна, обновление не требуется | C41: Информация
A42: 8/15/2014 8:33:07 AM | B42: Проверка доступных обновлений... | C42: Информация
A43: 8/15/2014 8:33:08 AM | B43: Версия шаблона 2.0 актуальна, обновление не требуется | C43: Информация
A44: 11/14/2014 9:52:31 AM | B44: Проверка доступных обновлений... | C44: Информация
A45: 11/14/2014 9:52:33 AM | B45: Версия шаблона 2.0 актуальна, обновление не требуется | C45: Информация
A46: 2/13/2015 10:06:53 AM | B46: Проверка доступных обновлений... | C46: Информация
A47: 2/13/2015 10:06:54 AM | B47: Версия шаблона 2.0 актуальна, обновление не требуется | C47: Информация
A48: 2/13/2015 4:26:48 PM | B48: Проверка доступных обновлений... | C48: Информация
A49: 2/13/2015 4:26:50 PM | B49: Версия шаблона 2.0 актуальна, обновление не требуется | C49: Информация
A50: 2/13/2015 4:35:53 PM | B50: Проверка доступных обновлений... | C50: Информация
A51: 2/13/2015 4:35:54 PM | B51: Версия шаблона 2.0 актуальна, обновление не требуется | C51: Информация
A52: 5/15/2015 9:15:37 AM | B52: Проверка доступных обновлений... | C52: Информация
A53: 5/15/2015 9:15:40 AM | B53: Нет доступных обновлений для шаблона с кодом INVEST.EE.FACT! | C53: Информация
A54: 8/12/2015 8:46:21 AM | B54: Проверка доступных обновлений... | C54: Информация
A55: 8/12/2015 8:46:22 AM | B55: Нет доступных обновлений для шаблона с кодом INVEST.EE.FACT! | C55: Информация
A56: 8/13/2015 10:52:28 AM | B56: Проверка доступных обновлений... | C56: Информация
A57: 8/13/2015 10:52:30 AM | B57: Нет доступных обновлений для шаблона с кодом INVEST.EE.FACT! | C57: Информация
A58: 11/12/2015 5:42:03 PM | B58: Проверка доступных обновлений... | C58: Информация
A59: 11/12/2015 5:42:06 PM | B59: Нет доступных обновлений для шаблона с кодом INVEST.EE.FACT! | C59: Информация
A60: 11/13/2015 8:54:24 AM | B60: Проверка доступных обновлений... | C60: Информация
A61: 11/13/2015 8:54:25 AM | B61: Нет доступных обновлений для шаблона с кодом INVEST.EE.FACT! | C61: Информация
A62: 2/15/2016 3:02:07 PM | B62: Проверка доступных обновлений... | C62: Информация
A63: 2/15/2016 3:02:08 PM | B63: Нет доступных обновлений для шаблона с кодом INVEST.EE.FACT! | C63: Информация
A64: 3/2/2017 10:47:06 AM | B64: Проверка доступных обновлений... | C64: Информация
A65: 3/2/2017 10:47:09 AM | B65: Версия шаблона 2.0 актуальна, обновление не требуется | C65: Информация

Sheet Титульный
G3: =version -> Версия 2.0
D5: Инвестиционные проекты
E8: Субъект РФ | F8: Ростовская область
E10: Тип данных | F10: Факт
E12: Год начала реализации инвестиционной программы | F12: 2015
E14: Отчетный период | F14: 2015 | G14: Год
F15: IV квартал | G15: Квартал
F16: Дата последнего обновления реестра организаций: 15.08.2014 8:34:35
E17: Наименование организации | F17: ООО "Ростсельмашэнерго"
E19: ИНН | F19: 6166047727
E20: КПП | F20: 616601001
E22: Вид деятельности | F22: Сетевая компания
E24: Проекты, финансируемые полностью или частично за счет средств федерального бюджета, и/или включенные в федеральные целевые программы. | F24: Нет
E25: Объекты выдачи мощности ТЭС, ГЭС, АЭС. | F25: Нет
E26: Генерирующие объекты мощностью свыше 100 МВт. | F26: Нет
E27: Проекты, имеющие федеральное значение (объекты энергоснабжения Олимпиады в г. Сочи, саммита АТЭС в г. Владивосток, ВСТО и др.). | F27: Нет
E28: Проекты сметной стоимостью свыше 3 млрд. руб. (в текущих ценах с НДС). | F28: Нет
E29: Объекты, предусмотренные Генеральной схемой размещения объектов электроэнергетики до 2020 года. | F29: Нет
E31: Адрес организации
A32: L8.1 | B32: Юридический адрес | E32: Юридический адрес: | F32: г. Ростов-на-Дону, ул. Менжинского, 2с
A33: L8.2 | B33: Почтовый адрес | E33: Почтовый адрес: | F33: г. Ростов-на-Дону, ул. Менжинского, 2с
E35: Руководитель
A36: L9.1 | B36: Руководитель.ФИО | E36: Фамилия, имя, отчество: | F36: Мижерицкий Роман Александрович
A37: L9.2 | B37: Руководитель.Телефон | E37: Контактный телефон: | F37: (863) 250-31-02
E39: Главный бухгалтер
A40: L10.1 | B40: Гл.бухгалтер.ФИО | E40: Фамилия, имя, отчество: | F40: Аржановская Наталья Александровна
A41: L10.2 | B41: Гл.бухгалтер.Телефон | E41: Контактный телефон: | F41: (863) 250-31-56
E43: Должностное лицо, ответственное за составление формы
A44: L11.1 | B44: Ответственный.ФИО | E44: Фамилия, имя, отчество: | F44: Смотров Николай Александрович
A45: L11.2 | B45: Ответственный.Должность | E45: Должность: | F45: Начальник коммерческой службы
A46: L11.3 | B46: Ответственный.Телефон | E46: Контактный телефон: | F46: (863) 255-23-18
A47: L11.4 | B47: Ответственный. E-Mail | E47: e-mail:

Sheet Список листов
B2: Лист | C2: Заголовок листа | D2: Ссылка
B3: Ф.7.1 | C3: =Ф.7.1!D12 -> Отчет об исполнении инвестиционной программы, млн. рублей с НДС (представляется ежеквартально) | D3: Перейти на лист
B4: Ф.7.2 | C4: =Ф.7.2!D12 -> Отчет об исполнении основных этапов работ по реализации инвестиционной программы компании в 2015 году (представляется ежеквартально) | D4: Перейти на лист
B5: Ф.8 | C5: =Ф.8!D12 -> Отчет об источниках финансирования инвестиционных программ, млн. рублей (представляется ежеквартально) | D5: Перейти на лист
B6: Ф.9 | C6: =Ф.9!D12 -> Отчет о вводах/выводах объектов (представляется ежеквартально) | D6: Перейти на лист
B7: Ф.10 | C7: =Ф.10!D12 -> Отчет о ходе реализации проектов (заполняется для наиболее значимых проектов *) (представляется ежеквартально) | D7: Перейти на лист
B8: Ф.11.1 | C8: =Ф.11.1!D12 -> Отчет об исполнении сетевых графиков строительства проектов (представляется ежеквартально). | D8: Перейти на лист
B9: Ф.11.2 | C9: Контрольные этапы реализации инвестиционного проекта | D9: Перейти на лист
B10: Ф.12 | C10: =Ф.12!D12 -> Форма представления показателей финансовой отчетности (представляется ежеквартально) | D10: Перейти на лист
B11: Ф.13 | C11: =Ф.13!D13 -> Отчет о техническом состоянии объекта (представляется ежеквартально) | D11: Перейти на лист

Sheet Ф.7.1
L1: 2 | M1: 2 | N1: 3 | O1: 3 | P1: 4 | Q1: 4
C6: Список листов | AA6: Приложение № 7.1 к Приказу Минэнерго России от 24.03.2010 № 114
AA7: Утверждаю руководитель организации
AA9: (подпись)
AA10: "___" _____________ 20__ года
AA11: М.П.
D12: Отчет об исполнении инвестиционной программы, млн. рублей с НДС (представляется ежеквартально)
D13: =org & ", Факт за " & otchet_god & " г. " & kvartal -> ООО "Ростсельмашэнерго", Факт за 2015 г. IV квартал
AA14: млн.руб
D15: № п/п | E15: Наименование объекта | F15: Примечание | G15: Остаток стоимости на начало года * | H15: ="Объем финансирования ("& otchet_god &" год)" -> Объем финансирования (2015 год) | R15: Освоено (закрыто актами выполненных работ) | T15: Введено (оформлено актами ввода в эксплуатацию) | V15: Осталось профинанси- ровать по ре- зультатам отчетного периода * | W15: Отклонение *** | AA15: Причины отклонений
H16: Всего | J16: I кв. | L16: II кв. | N16: III кв. | P16: IV кв. | W16: млн.руб | X16: % | Y16: в том числе за счет
H17: План ** | I17: Факт *** | J17: План | K17: Факт | L17: План | M17: Факт | N17: План | O17: Факт | P17: План | Q17: Факт | R17: Всего *** | S17: за отчетный период | T17: Всего *** | U17: за отчетный период | Y17: уточнения стоимости по результатам утвержденной ПСД | Z17: уточнения стоимости по результатам закупочных процедур
D18: 1 | E18: 2 | F18: 3 | G18: 4 | H18: 5 | I18: 6 | J18: 7 | K18: 8 | L18: 9 | M18: 10 | N18: 11 | O18: 12 | P18: 13 | Q18: 14 | R18: 15 | S18: 16 | T18: 17 | U18: 18 | V18: 19 | W18: 20 | X18: 21 | Y18: 22 | Z18: 23 | AA18: 24
E19: ВСЕГО | G19: =nerr(G20+G154) -> 0 | H19: 8.13256 | I19: 8.12203068 | J19: 0.60177747 | K19: 0.60177747 | L19: 1.54142233 | M19: 1.54142233 | N19: 1.35843497 | O19: 1.35843497 | P19: 4.63092523 | Q19: 4.62039591 | R19: 8.12203068 | S19: 8.12203068 | T19: 8.12203068 | U19: 8.12203068 | V19: 0 | W19: 0.01052932 | X19: =nerr(W19/H19*100) -> 0.1294711628 | Y19: =nerr(Y20+Y154) -> 0 | Z19: =nerr(Z20+Z154) -> 0
D20: 1 | E20: Техническое перевооружение и реконструкция | G20: =G21+G63+G104+G107+G110+G113 -> 0 | H20: 8.13256 | I20: 8.12203068 | J20: 0.60177747 | K20: 0.60177747 | L20: 1.54142233 | M20: 1.54142233 | N20: 1.35843497 | O20: 1.35843497 | P20: 4.63092523 | Q20: 4.62039591 | R20: 8.12203068 | S20: 8.12203068 | T20: 8.12203068 | U20: 8.12203068 | V20: 0 | W20: 0.01052932 | X20: 0.1294711628 | Y20: =Y21+Y63+Y104+Y107+Y110+Y113 -> 0 | Z20: =Z21+Z63+Z104+Z107+Z110+Z113 -> 0
C21: - | D21: 1.1 | E21: Реконструкция | G21: =G22+G49+G59 -> 0 | H21: 8.13256 | I21: 8.12203068 | J21: 0.60177747 | K21: 0.60177747 | L21: 1.54142233 | M21: 1.54142233 | N21: 1.35843497 | O21: 1.35843497 | P21: 4.63092523 | Q21: 4.62039591 | R21: 8.12203068 | S21: 8.12203068 | T21: 8.12203068 | U21: 8.12203068 | V21: 0 | W21: 0.01052932 | X21: 0.1294711628 | Y21: =Y22+Y49+Y59 -> 0 | Z21: =Z22+Z49+Z59 -> 0
C22: + | D22: 1.1.1 | E22: Электрические линии | G22: =G23+G36 -> 0 | H22: 0 | I22: 0 | J22: 0 | K22: 0 | L22: 0 | M22: 0 | N22: 0 | O22: 0 | P22: 0 | Q22: 0 | R22: 0 | S22: 0 | T22: 0 | U22: 0 | V22: 0 | W22: 0 | X22: 0 | Y22: =Y23+Y36 -> 0 | Z22: =Z23+Z36 -> 0
C23: + | D23: 1.1.1.1 | E23: Воздушные линии | G23: =G24+G27+G30+G33 -> 0 | H23: 0 | I23: 0 | J23: 0 | K23: 0 | L23: 0 | M23: 0 | N23: 0 | O23: 0 | P23: 0 | Q23: 0 | R23: 0 | S23: 0 | T23: 0 | U23: 0 | V23: 0 | W23: 0 | X23: 0 | Y23: =Y24+Y27+Y30+Y33 -> 0 | Z23: =Z24+Z27+Z30+Z33 -> 0
C24: + | D24: 1.1.1.1.1 | E24: ВЛЭП 110-220 кВ (ВН) | G24: =nerr(SUM(G25:G26)-G25) -> 0 | H24: 0 | I24: 0 | J24: 0 | K24: 0 | L24: 0 | M24: 0 | N24: 0 | O24: 0 | P24: 0 | Q24: 0 | R24: 0 | S24: 0 | T24: 0 | U24: 0 | V24: 0 | W24: 0 | X24: 0 | Y24: =nerr(SUM(Y25:Y26)-Y25) -> 0 | Z24: =nerr(SUM(Z25:Z26)-Z25) -> 0
D25: 1.1.1.1.1.0 | H25: =nerr(J25+L25+N25+P25) -> 0 | I25: =nerr(K25+M25+O25+Q25) -> 0 | W25: =H25-I25 -> 0 | X25: 0
E26: Добавить
C27: + | D27: 1.1.1.1.2 | E27: ВЛЭП 35 кВ (СН1) | G27: =nerr(SUM(G28:G29)-G28) -> 0 | H27: 0 | I27: 0 | J27: 0 | K27: 0 | L27: 0 | M27: 0 | N27: 0 | O27: 0 | P27: 0 | Q27: 0 | R27: 0 | S27: 0 | T27: 0 | U27: 0 | V27: 0 | W27: 0 | X27: =nerr(W27/H27*100) -> 0 | Y27: =nerr(SUM(Y28:Y29)-Y28) -> 0 | Z27: =nerr(SUM(Z28:Z29)-Z28) -> 0
D28: 1.1.1.1.2.0 | H28: =nerr(J28+L28+N28+P28) -> 0 | I28: =nerr(K28+M28+O28+Q28) -> 0 | W28: =H28-I28 -> 0 | X28: =nerr(W28/H28*100) -> 0
E29: Добавить
C30: + | D30: 1.1.1.1.3 | E30: ВЛЭП 1-20 кВ (СН2) | G30: =nerr(SUM(G31:G32)-G31) -> 0 | H30: 0 | I30: 0 | J30: 0 | K30: 0 | L30: 0 | M30: 0 | N30: 0 | O30: 0 | P30: 0 | Q30: 0 | R30: 0 | S30: 0 | T30: 0 | U30: 0 | V30: 0 | W30: 0 | X30: =nerr(W30/H30*100) -> 0 | Y30: =nerr(SUM(Y31:Y32)-Y31) -> 0 | Z30: =nerr(SUM(Z31:Z32)-Z31) -> 0
D31: 1.1.1.1.3.0 | H31: =nerr(J31+L31+N31+P31) -> 0 | I31: =nerr(K31+M31+O31+Q31) -> 0 | W31: =H31-I31 -> 0 | X31: =nerr(W31/H31*100) -> 0
E32: Добавить
C33: + | D33: 1.1.1.1.4 | E33: ВЛЭП 0,4 кВ (НН) | G33: =nerr(SUM(G34:G35)-G34) -> 0 | H33: 0 | I33: 0 | J33: 0 | K33: 0 | L33: 0 | M33: 0 | N33: 0 | O33: 0 | P33: 0 | Q33: 0 | R33: 0 | S33: 0 | T33: 0 | U33: 0 | V33: 0 | W33: 0 | X33: =nerr(W33/H33*100) -> 0 | Y33: =nerr(SUM(Y34:Y35)-Y34) -> 0 | Z33: =nerr(SUM(Z34:Z35)-Z34) -> 0
D34: 1.1.1.1.4.0 | H34: =nerr(J34+L34+N34+P34) -> 0 | I34: =nerr(K34+M34+O34+Q34) -> 0 | W34: =H34-I34 -> 0 | X34: =nerr(W34/H34*100) -> 0
E35: Добавить
C36: + | D36: 1.1.1.2 | E36: Кабельные линии | G36: =G37+G40+G43+G46 -> 0 | H36: =H37+H40+H43+H46 -> 0 | I36: 0 | J36: 0 | K36: 0 | L36: 0 | M36: 0 | N36: 0 | O36: 0 | P36: 0 | Q36: 0 | R36: 0 | S36: 0 | T36: 0 | U36: 0 | V36: 0 | W36: 0 | X36: =nerr(W36/H36*100) -> 0 | Y36: 0 | Z36: 0
C37: + | D37: 1.1.1.2.1 | E37: КЛЭП 110 кВ (ВН) | G37: =nerr(SUM(G38:G39)-G38) -> 0 | H37: 0 | I37: 0 | J37: 0 | K37: 0 | L37: 0 | M37: 0 | N37: 0 | O37: 0 | P37: 0 | Q37: 0 | R37: 0 | S37: 0 | T37: 0 | U37: 0 | V37: 0 | W37: 0 | X37: =nerr(W37/H37*100) -> 0 | Y37: =nerr(SUM(Y38:Y39)-Y38) -> 0 | Z37: =nerr(SUM(Z38:Z39)-Z38) -> 0
D38: 1.1.1.2.1.0 | H38: =nerr(J38+L38+N38+P38) -> 0 | I38: =nerr(K38+M38+O38+Q38) -> 0 | W38: =H38-I38 -> 0 | X38: =nerr(W38/H38*100) -> 0
E39: Добавить
C40: + | D40: 1.1.1.2.2 | E40: КЛЭП 20-35 кВ (СН1) | G40: =nerr(SUM(G41:G42)-G41) -> 0 | H40: 0 | I40: 0 | J40: 0 | K40: 0 | L40: 0 | M40: 0 | N40: 0 | O40: 0 | P40: 0 | Q40: 0 | R40: 0 | S40: 0 | T40: 0 | U40: 0 | V40: 0 | W40: 0 | X40: =nerr(W40/H40*100) -> 0 | Y40: =nerr(SUM(Y41:Y42)-Y41) -> 0 | Z40: =nerr(SUM(Z41:Z42)-Z41) -> 0
D41: 1.1.1.2.2.0 | H41: =nerr(J41+L41+N41+P41) -> 0 | I41: =nerr(K41+M41+O41+Q41) -> 0 | W41: =H41-I41 -> 0 | X41: =nerr(W41/H41*100) -> 0
E42: Добавить
C43: + | D43: 1.1.1.2.3 | E43: КЛЭП 3-10 кВ (СН2) | G43: =nerr(SUM(G44:G45)-G44) -> 0 | H43: 0 | I43: 0 | J43: 0 | K43: 0 | L43: 0 | M43: 0 | N43: 0 | O43: 0 | P43: 0 | Q43: 0 | R43: 0 | S43: 0 | T43: 0 | U43: 0 | V43: 0 | W43: 0 | X43: =nerr(W43/H43*100) -> 0 | Y43: =nerr(SUM(Y44:Y45)-Y44) -> 0 | Z43: =nerr(SUM(Z44:Z45)-Z44) -> 0
D44: 1.1.1.2.3.0 | H44: =nerr(J44+L44+N44+P44) -> 0 | I44: =nerr(K44+M44+O44+Q44) -> 0 | W44: =H44-I44 -> 0 | X44: =nerr(W44/H44*100) -> 0
E45: Добавить
C46: + | D46: 1.1.1.2.4 | E46: КЛЭП до 1 кВ (НН) | G46: =nerr(SUM(G47:G48)-G47) -> 0 | H46: 0 | I46: 0 | J46: 0 | K46: 0 | L46: 0 | M46: 0 | N46: 0 | O46: 0 | P46: 0 | Q46: 0 | R46: 0 | S46: 0 | T46: 0 | U46: 0 | V46: 0 | W46: 0 | X46: =nerr(W46/H46*100) -> 0 | Y46: =nerr(SUM(Y47:Y48)-Y47) -> 0 | Z46: =nerr(SUM(Z47:Z48)-Z47) -> 0
D47: 1.1.1.2.4.0 | H47: =nerr(J47+L47+N47+P47) -> 0 | I47: =nerr(K47+M47+O47+Q47) -> 0 | W47: =H47-I47 -> 0 | X47: =nerr(W47/H47*100) -> 0
E48: Добавить
C49: + | D49: 1.1.2 | E49: Подстанции | G49: =G50+G53+G56 -> 0 | H49: 0 | I49: 0 | J49: 0 | K49: 0 | L49: 0 | M49: 0 | N49: 0 | O49: 0 | P49: 0 | Q49: 0 | R49: 0 | S49: 0 | T49: 0 | U49: 0 | V49: 0 | W49: 0 | X49: =nerr(W49/H49*100) -> 0 | Y49: =Y50+Y53+Y56 -> 0 | Z49: =Z50+Z53+Z56 -> 0
C50: + | D50: 1.1.2.1 | E50: Уровень входящего напряжения ВН | G50: =nerr(SUM(G51:G52)-G51) -> 0 | H50: 0 | I50: 0 | J50: 0 | K50: 0 | L50: 0 | M50: 0 | N50: 0 | O50: 0 | P50: 0 | Q50: 0 | R50: 0 | S50: 0 | T50: 0 | U50: 0 | V50: 0 | W50: 0 | X50: =nerr(W50/H50*100) -> 0 | Y50: =nerr(SUM(Y51:Y52)-Y51) -> 0 | Z50: =nerr(SUM(Z51:Z52)-Z51) -> 0
D51: 1.1.2.1.0 | H51: =nerr(J51+L51+N51+P51) -> 0 | I51: =nerr(K51+M51+O51+Q51) -> 0 | W51: =H51-I51 -> 0 | X51: =nerr(W51/H51*100) -> 0
E52: Добавить
C53: + | D53: 1.1.2.2 | E53: Уровень входящего напряжения СН1 | G53: =nerr(SUM(G54:G55)-G54) -> 0 | H53: 0 | I53: 0 | J53: 0 | K53: 0 | L53: 0 | M53: 0 | N53: 0 | O53: 0 | P53: 0 | Q53: 0 | R53: 0 | S53: 0 | T53: 0 | U53: 0 | V53: 0 | W53: 0 | X53: =nerr(W53/H53*100) -> 0 | Y53: =nerr(SUM(Y54:Y55)-Y54) -> 0 | Z53: =nerr(SUM(Z54:Z55)-Z54) -> 0
D54: 1.1.2.2.0 | H54: =nerr(J54+L54+N54+P54) -> 0 | I54: =nerr(K54+M54+O54+Q54) -> 0 | W54: =H54-I54 -> 0 | X54: =nerr(W54/H54*100) -> 0
E55: Добавить
C56: + | D56: 1.1.2.3 | E56: Уровень входящего напряжения СН2 | G56: =nerr(SUM(G57:G58)-G57) -> 0 | H56: 0 | I56: 0 | J56: 0 | K56: 0 | L56: 0 | M56: 0 | N56: 0 | O56: 0 | P56: 0 | Q56: 0 | R56: 0 | S56: 0 | T56: 0 | U56: 0 | V56: 0 | W56: 0 | X56: =nerr(W56/H56*100) -> 0 | Y56: =nerr(SUM(Y57:Y58)-Y57) -> 0 | Z56: =nerr(SUM(Z57:Z58)-Z57) -> 0
D57: 1.1.2.3.0 | H57: =nerr(J57+L57+N57+P57) -> 0 | I57: =nerr(K57+M57+O57+Q57) -> 0 | W57: =H57-I57 -> 0 | X57: =nerr(W57/H57*100) -> 0
E58: Добавить
C59: - | D59: 1.1.3 | E59: Прочие электросетевые объекты | G59: =nerr(SUM(G60:G62)-G60) -> 0 | H59: 8.13256 | I59: 8.12203068 | J59: 0.60177747 | K59: 0.60177747 | L59: 1.54142233 | M59: 1.54142233 | N59: 1.35843497 | O59: 1.35843497 | P59: 4.63092523 | Q59: 4.62039591 | R59: 8.12203068 | S59: 8.12203068 | T59: 8.12203068 | U59: 8.12203068 | V59: 0 | W59: 0.01052932 | X59: =nerr(W59/H59*100) -> 0.1294711628 | Y59: =nerr(SUM(Y60:Y62)-Y60) -> 0 | Z59: =nerr(SUM(Z60:Z62)-Z60) -> 0
D60: 1.1.3.0 | H60: =nerr(J60+L60+N60+P60) -> 0 | I60: =nerr(K60+M60+O60+Q60) -> 0 | W60: =H60-I60 -> 0 | X60: =nerr(W60/H60*100) -> 0
C61: Удалить | D61: 1.1.3.1 | E61: Реконструкция ПС 110/6 кВ ГПП-1, ПС 110/6 кВ ГПП-3 | H61: =nerr(J61+L61+N61+P61) -> 8.13256 | I61: =nerr(K61+M61+O61+Q61) -> 8.12203068 | J61: =0.509980906779661*1.18 -> 0.60177747 | K61: =0.509980906779661*1.18 -> 0.60177747 | L61: =1.30629011016949*1.18 -> 1.54142233 | M61: =1.30629011016949*1.18 -> 1.54142233 | N61: 1.35843497 | O61: 1.35843497 | P61: =(4.894+1.998)*1.18-N61-L61-J61 -> 4.63092523 | Q61: =8.12203068-O61-M61-K61 -> 4.62039591 | R61: =+K61+M61+O61+Q61 -> 8.12203068 | S61: =+Q61+O61+M61+K61 -> 8.12203068 | T61: =+R61 -> 8.12203068 | U61: =+S61 -> 8.12203068 | V61: 0 | W61: =H61-I61 -> 0.01052932 | X61: =nerr(W61/H61*100) -> 0.1294711628 | Y61: 0 | Z61: 0 | AA61: см.комментарии | AC61: 8
E62: Добавить
C63: + | D63: 1.2 | E63: Энергосбережение и повышение энергетической эффективности | G63: =G64+G91+G101 -> 0 | H63: 0 | I63: 0 | J63: 0 | K63: 0 | L63: 0 | M63: 0 | N63: 0 | O63: 0 | P63: 0 | Q63: 0 | R63: 0 | S63: 0 | T63: 0 | U63: 0 | V63: 0 | W63: =W64+W91+W101 -> 0 | X63: =nerr(W63/H63*100) -> 0 | Y63: =Y64+Y91+Y101 -> 0 | Z63: =Z64+Z91+Z101 -> 0
C64: - | D64: 1.2.1 | E64: Электрические линии | G64: =G65+G78 -> 0 | H64: 0 | I64: 0 | J64: 0 | K64: 0 | L64: 0 | M64: 0 | N64: 0 | O64: 0 | P64: 0 | Q64: 0 | R64: 0 | S64: 0 | T64: 0 | U64: 0 | V64: 0 | W64: =W65+W78 -> 0 | X64: =nerr(W64/H64*100) -> 0 | Y64: =Y65+Y78 -> 0 | Z64: =Z65+Z78 -> 0
C65: - | D65: 1.2.1.1 | E65: Воздушные линии | G65: =G66+G69+G72+G75 -> 0 | H65: 0 | I65: 0 | J65: 0 | K65: 0 | L65: 0 | M65: 0 | N65: 0 | O65: 0 | P65: 0 | Q65: 0 | R65: 0 | S65: 0 | T65: 0 | U65: 0 | V65: 0 | W65: =W66+W69+W72+W75 -> 0 | X65: =nerr(W65/H65*100) -> 0 | Y65: =Y66+Y69+Y72+Y75 -> 0 | Z65: =Z66+Z69+Z72+Z75 -> 0
C66: - | D66: 1.2.1.1.1 | E66: ВЛЭП 110-220 кВ (ВН) | G66: =nerr(SUM(G67:G68)-G67) -> 0 | H66: 0 | I66: 0 | J66: 0 | K66: 0 | L66: 0 | M66: 0 | N66: 0 | O66: 0 | P66: 0 | Q66: 0 | R66: 0 | S66: 0 | T66: 0 | U66: 0 | V66: 0 | W66: =nerr(SUM(W67:W68)-W67) -> 0 | X66: =nerr(W66/H66*100) -> 0 | Y66: =nerr(SUM(Y67:Y68)-Y67) -> 0 | Z66: =nerr(SUM(Z67:Z68)-Z67) -> 0
D67: 1.2.1.1.1.0 | H67: =nerr(J67+L67+N67+P67) -> 0 | I67: =nerr(K67+M67+O67+Q67) -> 0 | W67: =H67-I67 -> 0 | X67: =nerr(W67/H67*100) -> 0
E68: Добавить
C69: - | D69: 1.2.1.1.2 | E69: ВЛЭП 35 кВ (СН1) | G69: =nerr(SUM(G70:G71)-G70) -> 0 | H69: 0 | I69: 0 | J69: 0 | K69: 0 | L69: 0 | M69: 0 | N69: 0 | O69: 0 | P69: 0 | Q69: 0 | R69: 0 | S69: 0 | T69: 0 | U69: 0 | V69: 0 | W69: 0 | X69: =nerr(W69/H69*100) -> 0 | Y69: =nerr(SUM(Y70:Y71)-Y70) -> 0 | Z69: =nerr(SUM(Z70:Z71)-Z70) -> 0
D70: 1.2.1.1.2.0 | H70: =nerr(J70+L70+N70+P70) -> 0 | I70: =nerr(K70+M70+O70+Q70) -> 0 | W70: =H70-I70 -> 0 | X70: =nerr(W70/H70*100) -> 0
E71: Добавить
C72: - | D72: 1.2.1.1.3 | E72: ВЛЭП 1-20 кВ (СН2) | G72: =nerr(SUM(G73:G74)-G73) -> 0 | H72: 0 | I72: 0 | J72: 0 | K72: 0 | L72: 0 | M72: 0 | N72: 0 | O72: 0 | P72: 0 | Q72: 0 | R72: 0 | S72: 0 | T72: 0 | U72: 0 | V72: 0 | W72: 0 | X72: =nerr(W72/H72*100) -> 0 | Y72: =nerr(SUM(Y73:Y74)-Y73) -> 0 | Z72: =nerr(SUM(Z73:Z74)-Z73) -> 0
D73: 1.2.1.1.3.0 | H73: =nerr(J73+L73+N73+P73) -> 0 | I73: =nerr(K73+M73+O73+Q73) -> 0 | W73: =H73-I73 -> 0 | X73: =nerr(W73/H73*100) -> 0
E74: Добавить
C75: - | D75: 1.2.1.1.4 | E75: ВЛЭП 0,4 кВ (НН) | G75: =nerr(SUM(G76:G77)-G76) -> 0 | H75: 0 | I75: 0 | J75: 0 | K75: 0 | L75: 0 | M75: 0 | N75: 0 | O75: 0 | P75: 0 | Q75: 0 | R75: 0 | S75: 0 | T75: 0 | U75: 0 | V75: 0 | W75: 0 | X75: =nerr(W75/H75*100) -> 0 | Y75: =nerr(SUM(Y76:Y77)-Y76) -> 0 | Z75: =nerr(SUM(Z76:Z77)-Z76) -> 0
D76: 1.2.1.1.4.0 | H76: =nerr(J76+L76+N76+P76) -> 0 | I76: =nerr(K76+M76+O76+Q76) -> 0 | W76: =H76-I76 -> 0 | X76: =nerr(W76/H76*100) -> 0
E77: Добавить
C78: - | D78: 1.2.1.2 | E78: Кабельные линии | G78: =G79+G82+G85+G88 -> 0 | H78: 0 | I78: 0 | J78: 0 | K78: 0 | L78: 0 | M78: 0 | N78: 0 | O78: 0 | P78: 0 | Q78: 0 | R78: 0 | S78: 0 | T78: 0 | U78: 0 | V78: 0 | W78: 0 | X78: =nerr(W78/H78*100) -> 0 | Y78: =Y79+Y82+Y85+Y88 -> 0 | Z78: =Z79+Z82+Z85+Z88 -> 0
C79: - | D79: 1.2.1.2.1 | E79: КЛЭП 110 кВ (ВН) | G79: =nerr(SUM(G80:G81)-G80) -> 0 | H79: 0 | I79: 0 | J79: 0 | K79: 0 | L79: 0 | M79: 0 | N79: 0 | O79: 0 | P79: 0 | Q79: 0 | R79: 0 | S79: 0 | T79: 0 | U79: 0 | V79: 0 | W79: 0 | X79: =nerr(W79/H79*100) -> 0 | Y79: =nerr(SUM(Y80:Y81)-Y80) -> 0 | Z79: =nerr(SUM(Z80:Z81)-Z80) -> 0
D80: 1.2.1.2.1.0 | H80: =nerr(J80+L80+N80+P80) -> 0 | I80: =nerr(K80+M80+O80+Q80) -> 0 | W80: =H80-I80 -> 0 | X80: =nerr(W80/H80*100) -> 0
E81: Добавить
C82: - | D82: 1.2.1.2.2 | E82: КЛЭП 20-35 кВ (СН1) | G82: =nerr(SUM(G83:G84)-G83) -> 0 | H82: 0 | I82: 0 | J82: 0 | K82: 0 | L82: 0 | M82: 0 | N82: 0 | O82: 0 | P82: 0 | Q82: 0 | R82: 0 | S82: 0 | T82: 0 | U82: 0 | V82: 0 | W82: 0 | X82: =nerr(W82/H82*100) -> 0 | Y82: =nerr(SUM(Y83:Y84)-Y83) -> 0 | Z82: =nerr(SUM(Z83:Z84)-Z83) -> 0
D83: 1.2.1.2.2.0 | H83: =nerr(J83+L83+N83+P83) -> 0 | I83: =nerr(K83+M83+O83+Q83) -> 0 | W83: =H83-I83 -> 0 | X83: =nerr(W83/H83*100) -> 0
E84: Добавить
C85: - | D85: 1.2.1.2.3 | E85: КЛЭП 3-10 кВ (СН2) | G85: =nerr(SUM(G86:G87)-G86) -> 0 | H85: 0 | I85: 0 | J85: 0 | K85: 0 | L85: 0 | M85: 0 | N85: 0 | O85: 0 | P85: 0 | Q85: 0 | R85: 0 | S85: 0 | T85: 0 | U85: 0 | V85: 0 | W85: 0 | X85: =nerr(W85/H85*100) -> 0 | Y85: =nerr(SUM(Y86:Y87)-Y86) -> 0 | Z85: =nerr(SUM(Z86:Z87)-Z86) -> 0
D86: 1.2.1.2.3.0 | H86: =nerr(J86+L86+N86+P86) -> 0 | I86: =nerr(K86+M86+O86+Q86) -> 0 | W86: =H86-I86 -> 0 | X86: =nerr(W86/H86*100) -> 0
E87: Добавить
C88: - | D88: 1.2.1.2.4 | E88: КЛЭП до 1 кВ (НН) | G88: =nerr(SUM(G89:G90)-G89) -> 0 | H88: 0 | I88: 0 | J88: 0 | K88: 0 | L88: 0 | M88: 0 | N88: 0 | O88: 0 | P88: 0 | Q88: 0 | R88: 0 | S88: 0 | T88: 0 | U88: 0 | V88: 0 | W88: 0 | X88: =nerr(W88/H88*100) -> 0 | Y88: =nerr(SUM(Y89:Y90)-Y89) -> 0 | Z88: =nerr(SUM(Z89:Z90)-Z89) -> 0
D89: 1.2.1.2.4.0 | H89: =nerr(J89+L89+N89+P89) -> 0 | I89: =nerr(K89+M89+O89+Q89) -> 0 | W89: =H89-I89 -> 0 | X89: =nerr(W89/H89*100) -> 0
E90: Добавить
C91: - | D91: 1.2.2 | E91: Подстанции | G91: =G92+G95+G98 -> 0 | H91: 0 | I91: 0 | J91: 0 | K91: 0 | L91: 0 | M91: 0 | N91: 0 | O91: 0 | P91: 0 | Q91: 0 | R91: 0 | S91: 0 | T91: 0 | U91: 0 | V91: 0 | W91: 0 | X91: =nerr(W91/H91*100) -> 0 | Y91: =Y92+Y95+Y98 -> 0 | Z91: =Z92+Z95+Z98 -> 0
C92: - | D92: 1.2.2.1 | E92: Уровень входящего напряжения ВН | G92: =nerr(SUM(G93:G94)-G93) -> 0 | H92: 0 | I92: 0 | J92: 0 | K92: 0 | L92: 0 | M92: 0 | N92: 0 | O92: 0 | P92: 0 | Q92: 0 | R92: 0 | S92: 0 | T92: 0 | U92: 0 | V92: 0 | W92: 0 | X92: =nerr(W92/H92*100) -> 0 | Y92: =nerr(SUM(Y93:Y94)-Y93) -> 0 | Z92: =nerr(SUM(Z93:Z94)-Z93) -> 0
D93: 1.2.2.1.0 | H93: =nerr(J93+L93+N93+P93) -> 0 | I93: =nerr(K93+M93+O93+Q93) -> 0 | W93: =H93-I93 -> 0 | X93: =nerr(W93/H93*100) -> 0
E94: Добавить
C95: - | D95: 1.2.2.2 | E95: Уровень входящего напряжения СН1 | G95: =nerr(SUM(G96:G97)-G96) -> 0 | H95: 0 | I95: 0 | J95: 0 | K95: 0 | L95: 0 | M95: 0 | N95: 0 | O95: 0 | P95: 0 | Q95: 0 | R95: 0 | S95: 0 | T95: 0 | U95: 0 | V95: 0 | W95: 0 | X95: =nerr(W95/H95*100) -> 0 | Y95: =nerr(SUM(Y96:Y97)-Y96) -> 0 | Z95: =nerr(SUM(Z96:Z97)-Z96) -> 0
D96: 1.2.2.2.0 | H96: =nerr(J96+L96+N96+P96) -> 0 | I96: =nerr(K96+M96+O96+Q96) -> 0 | W96: =H96-I96 -> 0 | X96: =nerr(W96/H96*100) -> 0
E97: Добавить
C98: - | D98: 1.2.2.3 | E98: Уровень входящего напряжения СН2 | G98: =nerr(SUM(G99:G100)-G99) -> 0 | H98: 0 | I98: 0 | J98: 0 | K98: 0 | L98: 0 | M98: 0 | N98: 0 | O98: 0 | P98: 0 | Q98: 0 | R98: 0 | S98: 0 | T98: 0 | U98: 0 | V98: 0 | W98: 0 | X98: =nerr(W98/H98*100) -> 0 | Y98: =nerr(SUM(Y99:Y100)-Y99) -> 0 | Z98: =nerr(SUM(Z99:Z100)-Z99) -> 0
D99: 1.2.2.3.0 | H99: =nerr(J99+L99+N99+P99) -> 0 | I99: =nerr(K99+M99+O99+Q99) -> 0 | W99: =H99-I99 -> 0 | X99: =nerr(W99/H99*100) -> 0
E100: Добавить
C101: - | D101: 1.2.3 | E101: Прочие электросетевые объекты | G101: =nerr(SUM(G102:G103)-G102) -> 0 | H101: 0 | I101: 0 | J101: 0 | K101: 0 | L101: 0 | M101: 0 | N101: 0 | O101: 0 | P101: 0 | Q101: 0 | R101: 0 | S101: 0 | T101: 0 | U101: 0 | V101: 0 | W101: 0 | X101: =nerr(W101/H101*100) -> 0 | Y101: =nerr(SUM(Y102:Y103)-Y102) -> 0 | Z101: =nerr(SUM(Z102:Z103)-Z102) -> 0
D102: 1.2.3.0 | H102: =nerr(J102+L102+N102+P102) -> 0 | I102: =nerr(K102+M102+O102+Q102) -> 0 | W102: =H102-I102 -> 0 | X102: =nerr(W102/H102*100) -> 0
E103: Добавить
C104: + | D104: 1.3 | E104: Создание систем противоаварийной и режимной автоматики | G104: =nerr(SUM(G105:G106)-G105) -> 0 | H104: 0 | I104: 0 | J104: 0 | K104: 0 | L104: 0 | M104: 0 | N104: 0 | O104: 0 | P104: 0 | Q104: 0 | R104: 0 | S104: 0 | T104: 0 | U104: 0 | V104: 0 | W104: 0 | X104: =nerr(W104/H104*100) -> 0 | Y104: =nerr(SUM(Y105:Y106)-Y105) -> 0 | Z104: =nerr(SUM(Z105:Z106)-Z105) -> 0
D105: 1.3.0 | H105: =nerr(J105+L105+N105+P105) -> 0 | I105: =nerr(K105+M105+O105+Q105) -> 0 | W105: =H105-I105 -> 0 | X105: =nerr(W105/H105*100) -> 0
E106: Добавить
C107: + | D107: 1.4 | E107: Создание систем телемеханики и связи | G107: =nerr(SUM(G108:G109)-G108) -> 0 | H107: 0 | I107: 0 | J107: 0 | K107: 0 | L107: 0 | M107: 0 | N107: 0 | O107: 0 | P107: 0 | Q107: 0 | R107: 0 | S107: 0 | T107: 0 | U107: 0 | V107: 0 | W107: 0 | X107: =nerr(W107/H107*100) -> 0 | Y107: =nerr(SUM(Y108:Y109)-Y108) -> 0 | Z107: =nerr(SUM(Z108:Z109)-Z108) -> 0
D108: 1.4.0 | H108: =nerr(J108+L108+N108+P108) -> 0 | I108: =nerr(K108+M108+O108+Q108) -> 0 | W108: =H108-I108 -> 0 | X108: =nerr(W108/H108*100) -> 0
E109: Добавить
C110: + | D110: 1.5 | E110: Установка устройств регулирования напряжения и компенсации реактивной мощности | G110: =nerr(SUM(G111:G112)-G111) -> 0 | H110: 0 | I110: 0 | J110: 0 | K110: 0 | L110: 0 | M110: 0 | N110: 0 | O110: 0 | P110: 0 | Q110: 0 | R110: 0 | S110: 0 | T110: 0 | U110: 0 | V110: 0 | W110: 0 | X110: =nerr(W110/H110*100) -> 0 | Y110: =nerr(SUM(Y111:Y112)-Y111) -> 0 | Z110: =nerr(SUM(Z111:Z112)-Z111) -> 0
D111: 1.5.0 | H111: =nerr(J111+L111+N111+P111) -> 0 | I111: =nerr(K111+M111+O111+Q111) -> 0 | W111: =H111-I111 -> 0 | X111: =nerr(W111/H111*100) -> 0
E112: Добавить
C113: + | D113: 1.6 | E113: Исполнение договоров технологического присоединения | G113: =G114+G141+G151 -> 0 | H113: 0 | I113: 0 | J113: 0 | K113: 0 | L113: 0 | M113: 0 | N113: 0 | O113: 0 | P113: 0 | Q113: 0 | R113: 0 | S113: 0 | T113: 0 | U113: 0 | V113: 0 | W113: =W114+W141+W151 -> 0 | X113: =nerr(W113/H113*100) -> 0 | Y113: =Y114+Y141+Y151 -> 0 | Z113: =Z114+Z141+Z151 -> 0
C114: - | D114: 1.6.1 | E114: Электрические линии | G114: =G115+G128 -> 0 | H114: 0 | I114: 0 | J114: 0 | K114: 0 | L114: 0 | M114: 0 | N114: 0 | O114: 0 | P114: 0 | Q114: 0 | R114: 0 | S114: 0 | T114: 0 | U114: 0 | V114: 0 | W114: =W115+W128 -> 0 | X114: =nerr(W114/H114*100) -> 0 | Y114: =Y115+Y128 -> 0 | Z114: =Z115+Z128 -> 0
C115: - | D115: 1.6.1.1 | E115: Воздушные линии | G115: =G116+G119+G122+G125 -> 0 | H115: 0 | I115: 0 | J115: 0 | K115: 0 | L115: 0 | M115: 0 | N115: 0 | O115: 0 | P115: 0 | Q115: 0 | R115: 0 | S115: 0 | T115: 0 | U115: 0 | V115: 0 | W115: =W116+W119+W122+W125 -> 0 | X115: =nerr(W115/H115*100) -> 0 | Y115: =Y116+Y119+Y122+Y125 -> 0 | Z115: =Z116+Z119+Z122+Z125 -> 0
C116: - | D116: 1.6.1.1.1 | E116: ВЛЭП 110-220 кВ (ВН) | G116: =nerr(SUM(G117:G118)-G117) -> 0 | H116: 0 | I116: 0 | J116: 0 | K116: 0 | L116: 0 | M116: 0 | N116: 0 | O116: 0 | P116: 0 | Q116: 0 | R116: 0 | S116: 0 | T116: 0 | U116: 0 | V116: 0 | W116: =nerr(SUM(W117:W118)-W117) -> 0 | X116: =nerr(W116/H116*100) -> 0 | Y116: =nerr(SUM(Y117:Y118)-Y117) -> 0 | Z116: =nerr(SUM(Z117:Z118)-Z117) -> 0
D117: 1.6.1.1.1.0 | H117: =nerr(J117+L117+N117+P117) -> 0 | I117: =nerr(K117+M117+O117+Q117) -> 0 | W117: =H117-I117 -> 0 | X117: =nerr(W117/H117*100) -> 0
E118: Добавить
C119: - | D119: 1.6.1.1.2 | E119: ВЛЭП 35 кВ (СН1) | G119: =nerr(SUM(G120:G121)-G120) -> 0 | H119: 0 | I119: 0 | J119: 0 | K119: 0 | L119: 0 | M119: 0 | N119: 0 | O119: 0 | P119: 0 | Q119: 0 | R119: 0 | S119: 0 | T119: 0 | U119: 0 | V119: 0 | W119: 0 | X119: =nerr(W119/H119*100) -> 0 | Y119: =nerr(SUM(Y120:Y121)-Y120) -> 0 | Z119: =nerr(SUM(Z120:Z121)-Z120) -> 0
D120: 1.6.1.1.2.0 | H120: =nerr(J120+L120+N120+P120) -> 0 | I120: =nerr(K120+M120+O120+Q120) -> 0 | W120: =H120-I120 -> 0 | X120: =nerr(W120/H120*100) -> 0
E121: Добавить
C122: - | D122: 1.6.1.1.3 | E122: ВЛЭП 1-20 кВ (СН2) | G122: =nerr(SUM(G123:G124)-G123) -> 0 | H122: 0 | I122: 0 | J122: 0 | K122: 0 | L122: 0 | M122: 0 | N122: 0 | O122: 0 | P122: 0 | Q122: 0 | R122: 0 | S122: 0 | T122: 0 | U122: 0 | V122: 0 | W122: 0 | X122: =nerr(W122/H122*100) -> 0 | Y122: =nerr(SUM(Y123:Y124)-Y123) -> 0 | Z122: =nerr(SUM(Z123:Z124)-Z123) -> 0
D123: 1.6.1.1.3.0 | H123: =nerr(J123+L123+N123+P123) -> 0 | I123: =nerr(K123+M123+O123+Q123) -> 0 | W123: =H123-I123 -> 0 | X123: =nerr(W123/H123*100) -> 0
E124: Добавить
C125: - | D125: 1.6.1.1.4 | E125: ВЛЭП 0,4 кВ (НН) | G125: =nerr(SUM(G126:G127)-G126) -> 0 | H125: 0 | I125: 0 | J125: 0 | K125: 0 | L125: 0 | M125: 0 | N125: 0 | O125: 0 | P125: 0 | Q125: 0 | R125: 0 | S125: 0 | T125: 0 | U125: 0 | V125: 0 | W125: 0 | X125: =nerr(W125/H125*100) -> 0 | Y125: =nerr(SUM(Y126:Y127)-Y126) -> 0 | Z125: =nerr(SUM(Z126:Z127)-Z126) -> 0
D126: 1.6.1.1.4.0 | H126: =nerr(J126+L126+N126+P126) -> 0 | I126: =nerr(K126+M126+O126+Q126) -> 0 | W126: =H126-I126 -> 0 | X126: =nerr(W126/H126*100) -> 0
E127: Добавить
C128: - | D128: 1.6.1.2 | E128: Кабельные линии | G128: =G129+G132+G135+G138 -> 0 | H128: 0 | I128: 0 | J128: 0 | K128: 0 | L128: 0 | M128: 0 | N128: 0 | O128: 0 | P128: 0 | Q128: 0 | R128: 0 | S128: 0 | T128: 0 | U128: 0 | V128: 0 | W128: 0 | X128: =nerr(W128/H128*100) -> 0 | Y128: =Y129+Y132+Y135+Y138 -> 0 | Z128: =Z129+Z132+Z135+Z138 -> 0
C129: - | D129: 1.6.1.2.1 | E129: КЛЭП 110 кВ (ВН) | G129: =nerr(SUM(G130:G131)-G130) -> 0 | H129: 0 | I129: 0 | J129: 0 | K129: 0 | L129: 0 | M129: 0 | N129: 0 | O129: 0 | P129: 0 | Q129: 0 | R129: 0 | S129: 0 | T129: 0 | U129: 0 | V129: 0 | W129: 0 | X129: =nerr(W129/H129*100) -> 0 | Y129: =nerr(SUM(Y130:Y131)-Y130) -> 0 | Z129: =nerr(SUM(Z130:Z131)-Z130) -> 0
D130: 1.6.1.2.1.0 | H130: =nerr(J130+L130+N130+P130) -> 0 | I130: =nerr(K130+M130+O130+Q130) -> 0 | W130: =H130-I130 -> 0 | X130: =nerr(W130/H130*100) -> 0
E131: Добавить
C132: - | D132: 1.6.1.2.2 | E132: КЛЭП 20-35 кВ (СН1) | G132: =nerr(SUM(G133:G134)-G133) -> 0 | H132: 0 | I132: 0 | J132: 0 | K132: 0 | L132: 0 | M132: 0 | N132: 0 | O132: 0 | P132: 0 | Q132: 0 | R132: 0 | S132: 0 | T132: 0 | U132: 0 | V132: 0 | W132: 0 | X132: =nerr(W132/H132*100) -> 0 | Y132: =nerr(SUM(Y133:Y134)-Y133) -> 0 | Z132: =nerr(SUM(Z133:Z134)-Z133) -> 0
D133: 1.6.1.2.2.0 | H133: =nerr(J133+L133+N133+P133) -> 0 | I133: =nerr(K133+M133+O133+Q133) -> 0 | W133: =H133-I133 -> 0 | X133: =nerr(W133/H133*100) -> 0
E134: Добавить
C135: - | D135: 1.6.1.2.3 | E135: КЛЭП 3-10 кВ (СН2) | G135: =nerr(SUM(G136:G137)-G136) -> 0 | H135: 0 | I135: 0 | J135: 0 | K135: 0 | L135: 0 | M135: 0 | N135: 0 | O135: 0 | P135: 0 | Q135: 0 | R135: 0 | S135: 0 | T135: 0 | U135: 0 | V135: 0 | W135: 0 | X135: =nerr(W135/H135*100) -> 0 | Y135: =nerr(SUM(Y136:Y137)-Y136) -> 0 | Z135: =nerr(SUM(Z136:Z137)-Z136) -> 0
D136: 1.6.1.2.3.0 | H136: =nerr(J136+L136+N136+P136) -> 0 | I136: =nerr(K136+M136+O136+Q136) -> 0 | W136: =H136-I136 -> 0 | X136: =nerr(W136/H136*100) -> 0
E137: Добавить
C138: - | D138: 1.6.1.2.4 | E138: КЛЭП до 1 кВ (НН) | G138: =nerr(SUM(G139:G140)-G139) -> 0 | H138: 0 | I138: 0 | J138: 0 | K138: 0 | L138: 0 | M138: 0 | N138: 0 | O138: 0 | P138: 0 | Q138: 0 | R138: 0 | S138: 0 | T138: 0 | U138: 0 | V138: 0 | W138: 0 | X138: =nerr(W138/H138*100) -> 0 | Y138: =nerr(SUM(Y139:Y140)-Y139) -> 0 | Z138: =nerr(SUM(Z139:Z140)-Z139) -> 0
D139: 1.6.1.2.4.0 | H139: =nerr(J139+L139+N139+P139) -> 0 | I139: =nerr(K139+M139+O139+Q139) -> 0 | W139: =H139-I139 -> 0 | X139: =nerr(W139/H139*100) -> 0
E140: Добавить
C141: - | D141: 1.6.2 | E141: Подстанции | G141: =G142+G145+G148 -> 0 | H141: 0 | I141: 0 | J141: 0 | K141: 0 | L141: 0 | M141: 0 | N141: 0 | O141: 0 | P141: 0 | Q141: 0 | R141: 0 | S141: 0 | T141: 0 | U141: 0 | V141: 0 | W141: 0 | X141: =nerr(W141/H141*100) -> 0 | Y141: =Y142+Y145+Y148 -> 0 | Z141: =Z142+Z145+Z148 -> 0
C142: - | D142: 1.6.2.1 | E142: Уровень входящего напряжения ВН | G142: =nerr(SUM(G143:G144)-G143) -> 0 | H142: 0 | I142: 0 | J142: 0 | K142: 0 | L142: 0 | M142: 0 | N142: 0 | O142: 0 | P142: 0 | Q142: 0 | R142: 0 | S142: 0 | T142: 0 | U142: 0 | V142: 0 | W142: 0 | X142: =nerr(W142/H142*100) -> 0 | Y142: =nerr(SUM(Y143:Y144)-Y143) -> 0 | Z142: =nerr(SUM(Z143:Z144)-Z143) -> 0
D143: 1.6.2.1.0 | H143: =nerr(J143+L143+N143+P143) -> 0 | I143: =nerr(K143+M143+O143+Q143) -> 0 | W143: =H143-I143 -> 0 | X143: =nerr(W143/H143*100) -> 0
E144: Добавить
C145: - | D145: 1.6.2.2 | E145: Уровень входящего напряжения СН1 | G145: =nerr(SUM(G146:G147)-G146) -> 0 | H145: 0 | I145: 0 | J145: 0 | K145: 0 | L145: 0 | M145: 0 | N145: 0 | O145: 0 | P145: 0 | Q145: 0 | R145: 0 | S145: 0 | T145: 0 | U145: 0 | V145: 0 | W145: 0 | X145: =nerr(W145/H145*100) -> 0 | Y145: =nerr(SUM(Y146:Y147)-Y146) -> 0 | Z145: =nerr(SUM(Z146:Z147)-Z146) -> 0
D146: 1.6.2.2.0 | H146: =nerr(J146+L146+N146+P146) -> 0 | I146: =nerr(K146+M146+O146+Q146) -> 0 | W146: =H146-I146 -> 0 | X146: =nerr(W146/H146*100) -> 0
E147: Добавить
C148: - | D148: 1.6.2.3 | E148: Уровень входящего напряжения СН2 | G148: =nerr(SUM(G149:G150)-G149) -> 0 | H148: 0 | I148: 0 | J148: 0 | K148: 0 | L148: 0 | M148: 0 | N148: 0 | O148: 0 | P148: 0 | Q148: 0 | R148: 0 | S148: 0 | T148: 0 | U148: 0 | V148: 0 | W148: 0 | X148: =nerr(W148/H148*100) -> 0 | Y148: =nerr(SUM(Y149:Y150)-Y149) -> 0 | Z148: =nerr(SUM(Z149:Z150)-Z149) -> 0
D149: 1.6.2.3.0 | H149: =nerr(J149+L149+N149+P149) -> 0 | I149: =nerr(K149+M149+O149+Q149) -> 0 | W149: =H149-I149 -> 0 | X149: =nerr(W149/H149*100) -> 0
E150: Добавить
C151: - | D151: 1.6.3 | E151: Прочие электросетевые объекты | G151: =nerr(SUM(G152:G153)-G152) -> 0 | H151: 0 | I151: 0 | J151: 0 | K151: 0 | L151: 0 | M151: 0 | N151: 0 | O151: 0 | P151: 0 | Q151: 0 | R151: 0 | S151: 0 | T151: 0 | U151: 0 | V151: 0 | W151: 0 | X151: =nerr(W151/H151*100) -> 0 | Y151: =nerr(SUM(Y152:Y153)-Y152) -> 0 | Z151: =nerr(SUM(Z152:Z153)-Z152) -> 0
D152: 1.6.3.0 | H152: =nerr(J152+L152+N152+P152) -> 0 | I152: =nerr(K152+M152+O152+Q152) -> 0 | W152: =H152-I152 -> 0 | X152: =nerr(W152/H152*100) -> 0
E153: Добавить
D154: 2 | E154: Новое строительство | G154: =G155+G196+G237 -> 0 | H154: 0 | I154: 0 | J154: 0 | K154: 0 | L154: 0 | M154: 0 | N154: 0 | O154: 0 | P154: 0 | Q154: 0 | R154: 0 | S154: 0 | T154: 0 | U154: 0 | V154: 0 | W154: 0 | X154: =nerr(W154/H154*100) -> 0 | Y154: =Y155+Y196+Y237 -> 0 | Z154: =Z155+Z196+Z237 -> 0
C155: + | D155: 2.1 | E155: Энергосбережение и повышение энергетической эффективности | G155: =G156+G183+G193 -> 0 | H155: 0 | I155: 0 | J155: 0 | K155: 0 | L155: 0 | M155: 0 | N155: 0 | O155: 0 | P155: 0 | Q155: 0 | R155: 0 | S155: 0 | T155: 0 | U155: 0 | V155: 0 | W155: =W156+W183+W193 -> 0 | X155: 0 | Y155: =Y156+Y183+Y193 -> 0 | Z155: =Z156+Z183+Z193 -> 0
C156: - | D156: 2.1.1 | E156: Электрические линии | G156: =G157+G170 -> 0 | H156: 0 | I156: 0 | J156: 0 | K156: 0 | L156: 0 | M156: 0 | N156: 0 | O156: 0 | P156: 0 | Q156: 0 | R156: 0 | S156: 0 | T156: 0 | U156: 0 | V156: 0 | W156: =W157+W170 -> 0 | X156: 0 | Y156: =Y157+Y170 -> 0 | Z156: =Z157+Z170 -> 0
C157: - | D157: 2.1.1.1 | E157: Воздушные линии | G157: =G158+G161+G164+G167 -> 0 | H157: 0 | I157: 0 | J157: 0 | K157: 0 | L157: 0 | M157: 0 | N157: 0 | O157: 0 | P157: 0 | Q157: 0 | R157: 0 | S157: 0 | T157: 0 | U157: 0 | V157: 0 | W157: =W158+W161+W164+W167 -> 0 | X157: 0 | Y157: =Y158+Y161+Y164+Y167 -> 0 | Z157: =Z158+Z161+Z164+Z167 -> 0
C158: - | D158: 2.1.1.1.1 | E158: ВЛЭП 110-220 кВ (ВН) | G158: =nerr(SUM(G159:G160)-G159) -> 0 | H158: 0 | I158: 0 | J158: 0 | K158: 0 | L158: 0 | M158: 0 | N158: 0 | O158: 0 | P158: 0 | Q158: 0 | R158: 0 | S158: 0 | T158: 0 | U158: 0 | V158: 0 | W158: =nerr(SUM(W159:W160)-W159) -> 0 | X158: 0 | Y158: =nerr(SUM(Y159:Y160)-Y159) -> 0 | Z158: =nerr(SUM(Z159:Z160)-Z159) -> 0
D159: 2.1.1.1.1.0 | H159: =nerr(J159+L159+N159+P159) -> 0 | I159: =nerr(K159+M159+O159+Q159) -> 0 | W159: =H159-I159 -> 0 | X159: 0
E160: Добавить
C161: - | D161: 2.1.1.1.2 | E161: ВЛЭП 35 кВ (СН1) | G161: =nerr(SUM(G162:G163)-G162) -> 0 | H161: 0 | I161: 0 | J161: 0 | K161: 0 | L161: 0 | M161: 0 | N161: 0 | O161: 0 | P161: 0 | Q161: 0 | R161: 0 | S161: 0 | T161: 0 | U161: 0 | V161: 0 | W161: 0 | X161: =nerr(W161/H161*100) -> 0 | Y161: =nerr(SUM(Y162:Y163)-Y162) -> 0 | Z161: =nerr(SUM(Z162:Z163)-Z162) -> 0
D162: 2.1.1.1.2.0 | H162: =nerr(J162+L162+N162+P162) -> 0 | I162: =nerr(K162+M162+O162+Q162) -> 0 | W162: =H162-I162 -> 0 | X162: =nerr(W162/H162*100) -> 0
E163: Добавить
C164: - | D164: 2.1.1.1.3 | E164: ВЛЭП 1-20 кВ (СН2) | G164: =nerr(SUM(G165:G166)-G165) -> 0 | H164: 0 | I164: 0 | J164: 0 | K164: 0 | L164: 0 | M164: 0 | N164: 0 | O164: 0 | P164: 0 | Q164: 0 | R164: 0 | S164: 0 | T164: 0 | U164: 0 | V164: 0 | W164: 0 | X164: =nerr(W164/H164*100) -> 0 | Y164: =nerr(SUM(Y165:Y166)-Y165) -> 0 | Z164: =nerr(SUM(Z165:Z166)-Z165) -> 0
D165: 2.1.1.1.3.0 | H165: =nerr(J165+L165+N165+P165) -> 0 | I165: =nerr(K165+M165+O165+Q165) -> 0 | W165: =H165-I165 -> 0 | X165: =nerr(W165/H165*100) -> 0
E166: Добавить
C167: - | D167: 2.1.1.1.4 | E167: ВЛЭП 0,4 кВ (НН) | G167: =nerr(SUM(G168:G169)-G168) -> 0 | H167: 0 | I167: 0 | J167: 0 | K167: 0 | L167: 0 | M167: 0 | N167: 0 | O167: 0 | P167: 0 | Q167: 0 | R167: 0 | S167: 0 | T167: 0 | U167: 0 | V167: 0 | W167: 0 | X167: =nerr(W167/H167*100) -> 0 | Y167: =nerr(SUM(Y168:Y169)-Y168) -> 0 | Z167: =nerr(SUM(Z168:Z169)-Z168) -> 0
D168: 2.1.1.1.4.0 | H168: =nerr(J168+L168+N168+P168) -> 0 | I168: =nerr(K168+M168+O168+Q168) -> 0 | W168: =H168-I168 -> 0 | X168: =nerr(W168/H168*100) -> 0
E169: Добавить
C170: - | D170: 2.1.1.2 | E170: Кабельные линии | G170: =G171+G174+G177+G180 -> 0 | H170: 0 | I170: 0 | J170: 0 | K170: 0 | L170: 0 | M170: 0 | N170: 0 | O170: 0 | P170: 0 | Q170: 0 | R170: 0 | S170: 0 | T170: 0 | U170: 0 | V170: 0 | W170: 0 | X170: =nerr(W170/H170*100) -> 0 | Y170: =Y171+Y174+Y177+Y180 -> 0 | Z170: =Z171+Z174+Z177+Z180 -> 0
C171: - | D171: 2.1.1.2.1 | E171: КЛЭП 110 кВ (ВН) | G171: =nerr(SUM(G172:G173)-G172) -> 0 | H171: 0 | I171: 0 | J171: 0 | K171: 0 | L171: 0 | M171: 0 | N171: 0 | O171: 0 | P171: 0 | Q171: 0 | R171: 0 | S171: 0 | T171: 0 | U171: 0 | V171: 0 | W171: 0 | X171: =nerr(W171/H171*100) -> 0 | Y171: =nerr(SUM(Y172:Y173)-Y172) -> 0 | Z171: =nerr(SUM(Z172:Z173)-Z172) -> 0
D172: 2.1.1.2.1.0 | H172: =nerr(J172+L172+N172+P172) -> 0 | I172: =nerr(K172+M172+O172+Q172) -> 0 | W172: =H172-I172 -> 0 | X172: =nerr(W172/H172*100) -> 0
E173: Добавить
C174: - | D174: 2.1.1.2.2 | E174: КЛЭП 20-35 кВ (СН1) | G174: =nerr(SUM(G175:G176)-G175) -> 0 | H174: 0 | I174: 0 | J174: 0 | K174: 0 | L174: 0 | M174: 0 | N174: 0 | O174: 0 | P174: 0 | Q174: 0 | R174: 0 | S174: 0 | T174: 0 | U174: 0 | V174: 0 | W174: 0 | X174: =nerr(W174/H174*100) -> 0 | Y174: =nerr(SUM(Y175:Y176)-Y175) -> 0 | Z174: =nerr(SUM(Z175:Z176)-Z175) -> 0
D175: 2.1.1.2.2.0 | H175: =nerr(J175+L175+N175+P175) -> 0 | I175: =nerr(K175+M175+O175+Q175) -> 0 | W175: =H175-I175 -> 0 | X175: =nerr(W175/H175*100) -> 0
E176: Добавить
C177: - | D177: 2.1.1.2.3 | E177: КЛЭП 3-10 кВ (СН2) | G177: =nerr(SUM(G178:G179)-G178) -> 0 | H177: 0 | I177: 0 | J177: 0 | K177: 0 | L177: 0 | M177: 0 | N177: 0 | O177: 0 | P177: 0 | Q177: 0 | R177: 0 | S177: 0 | T177: 0 | U177: 0 | V177: 0 | W177: 0 | X177: =nerr(W177/H177*100) -> 0 | Y177: =nerr(SUM(Y178:Y179)-Y178) -> 0 | Z177: =nerr(SUM(Z178:Z179)-Z178) -> 0
D178: 2.1.1.2.3.0 | H178: =nerr(J178+L178+N178+P178) -> 0 | I178: =nerr(K178+M178+O178+Q178) -> 0 | W178: =H178-I178 -> 0 | X178: =nerr(W178/H178*100) -> 0
E179: Добавить
C180: - | D180: 2.1.1.2.4 | E180: КЛЭП до 1 кВ (НН) | G180: =nerr(SUM(G181:G182)-G181) -> 0 | H180: 0 | I180: 0 | J180: 0 | K180: 0 | L180: 0 | M180: 0 | N180: 0 | O180: 0 | P180: 0 | Q180: 0 | R180: 0 | S180: 0 | T180: 0 | U180: 0 | V180: 0 | W180: 0 | X180: =nerr(W180/H180*100) -> 0 | Y180: =nerr(SUM(Y181:Y182)-Y181) -> 0 | Z180: =nerr(SUM(Z181:Z182)-Z181) -> 0
D181: 2.1.1.2.4.0 | H181: =nerr(J181+L181+N181+P181) -> 0 | I181: =nerr(K181+M181+O181+Q181) -> 0 | W181: =H181-I181 -> 0 | X181: =nerr(W181/H181*100) -> 0
E182: Добавить
C183: - | D183: 2.1.2 | E183: Подстанции | G183: =G184+G187+G190 -> 0 | H183: 0 | I183: 0 | J183: 0 | K183: 0 | L183: 0 | M183: 0 | N183: 0 | O183: 0 | P183: 0 | Q183: 0 | R183: 0 | S183: 0 | T183: 0 | U183: 0 | V183: 0 | W183: 0 | X183: =nerr(W183/H183*100) -> 0 | Y183: =Y184+Y187+Y190 -> 0 | Z183: =Z184+Z187+Z190 -> 0
C184: - | D184: 2.1.2.1 | E184: Уровень входящего напряжения ВН | G184: =nerr(SUM(G185:G186)-G185) -> 0 | H184: 0 | I184: 0 | J184: 0 | K184: 0 | L184: 0 | M184: 0 | N184: 0 | O184: 0 | P184: 0 | Q184: 0 | R184: 0 | S184: 0 | T184: 0 | U184: 0 | V184: 0 | W184: 0 | X184: =nerr(W184/H184*100) -> 0 | Y184: =nerr(SUM(Y185:Y186)-Y185) -> 0 | Z184: =nerr(SUM(Z185:Z186)-Z185) -> 0
D185: 2.1.2.1.0 | H185: =nerr(J185+L185+N185+P185) -> 0 | I185: =nerr(K185+M185+O185+Q185) -> 0 | W185: =H185-I185 -> 0 | X185: =nerr(W185/H185*100) -> 0
E186: Добавить
C187: - | D187: 2.1.2.2 | E187: Уровень входящего напряжения СН1 | G187: =nerr(SUM(G188:G189)-G188) -> 0 | H187: 0 | I187: 0 | J187: 0 | K187: 0 | L187: 0 | M187: 0 | N187: 0 | O187: 0 | P187: 0 | Q187: 0 | R187: 0 | S187: 0 | T187: 0 | U187: 0 | V187: 0 | W187: 0 | X187: =nerr(W187/H187*100) -> 0 | Y187: =nerr(SUM(Y188:Y189)-Y188) -> 0 | Z187: =nerr(SUM(Z188:Z189)-Z188) -> 0
D188: 2.1.2.2.0 | H188: =nerr(J188+L188+N188+P188) -> 0 | I188: =nerr(K188+M188+O188+Q188) -> 0 | W188: =H188-I188 -> 0 | X188: =nerr(W188/H188*100) -> 0
E189: Добавить
C190: - | D190: 2.1.2.3 | E190: Уровень входящего напряжения СН2 | G190: =nerr(SUM(G191:G192)-G191) -> 0 | H190: 0 | I190: 0 | J190: 0 | K190: 0 | L190: 0 | M190: 0 | N190: 0 | O190: 0 | P190: 0 | Q190: 0 | R190: 0 | S190: 0 | T190: 0 | U190: 0 | V190: 0 | W190: 0 | X190: =nerr(W190/H190*100) -> 0 | Y190: =nerr(SUM(Y191:Y192)-Y191) -> 0 | Z190: =nerr(SUM(Z191:Z192)-Z191) -> 0
D191: 2.1.2.3.0 | H191: =nerr(J191+L191+N191+P191) -> 0 | I191: =nerr(K191+M191+O191+Q191) -> 0 | W191: =H191-I191 -> 0 | X191: =nerr(W191/H191*100) -> 0
E192: Добавить
C193: - | D193: 2.1.3 | E193: Прочие электросетевые объекты | G193: =nerr(SUM(G194:G195)-G194) -> 0 | H193: 0 | I193: 0 | J193: 0 | K193: 0 | L193: 0 | M193: 0 | N193: 0 | O193: 0 | P193: 0 | Q193: 0 | R193: 0 | S193: 0 | T193: 0 | U193: 0 | V193: 0 | W193: 0 | X193: =nerr(W193/H193*100) -> 0 | Y193: =nerr(SUM(Y194:Y195)-Y194) -> 0 | Z193: =nerr(SUM(Z194:Z195)-Z194) -> 0
D194: 2.1.3.0 | H194: =nerr(J194+L194+N194+P194) -> 0 | I194: =nerr(K194+M194+O194+Q194) -> 0 | W194: =H194-I194 -> 0 | X194: =nerr(W194/H194*100) -> 0
E195: Добавить
C196: + | D196: 2.2 | E196: Исполнение договоров технологического присоединения | G196: =G197+G224+G234 -> 0 | H196: 0 | I196: 0 | J196: 0 | K196: 0 | L196: 0 | M196: 0 | N196: 0 | O196: 0 | P196: 0 | Q196: 0 | R196: 0 | S196: 0 | T196: 0 | U196: 0 | V196: 0 | W196: =W197+W224+W234 -> 0 | X196: =nerr(W196/H196*100) -> 0 | Y196: =Y197+Y224+Y234 -> 0 | Z196: =Z197+Z224+Z234 -> 0
C197: - | D197: 2.2.1 | E197: Электрические линии | G197: =G198+G211 -> 0 | H197: 0 | I197: 0 | J197: 0 | K197: 0 | L197: 0 | M197: 0 | N197: 0 | O197: 0 | P197: 0 | Q197: 0 | R197: 0 | S197: 0 | T197: 0 | U197: 0 | V197: 0 | W197: =W198+W211 -> 0 | X197: =nerr(W197/H197*100) -> 0 | Y197: =Y198+Y211 -> 0 | Z197: =Z198+Z211 -> 0
C198: - | D198: 2.2.1.1 | E198: Воздушные линии | G198: =G199+G202+G205+G208 -> 0 | H198: 0 | I198: 0 | J198: 0 | K198: 0 | L198: 0 | M198: 0 | N198: 0 | O198: 0 | P198: 0 | Q198: 0 | R198: 0 | S198: 0 | T198: 0 | U198: 0 | V198: 0 | W198: =W199+W202+W205+W208 -> 0 | X198: =nerr(W198/H198*100) -> 0 | Y198: =Y199+Y202+Y205+Y208 -> 0 | Z198: =Z199+Z202+Z205+Z208 -> 0
C199: - | D199: 2.2.1.1.1 | E199: ВЛЭП 110-220 кВ (ВН) | G199: =nerr(SUM(G200:G201)-G200) -> 0 | H199: 0 | I199: 0 | J199: 0 | K199: 0 | L199: 0 | M199: 0 | N199: 0 | O199: 0 | P199: 0 | Q199: 0 | R199: 0 | S199: 0 | T199: 0 | U199: 0 | V199: 0 | W199: =nerr(SUM(W200:W201)-W200) -> 0 | X199: =nerr(W199/H199*100) -> 0 | Y199: =nerr(SUM(Y200:Y201)-Y200) -> 0 | Z199: =nerr(SUM(Z200:Z201)-Z200) -> 0
D200: 2.2.1.1.1.0 | H200: =nerr(J200+L200+N200+P200) -> 0 | I200: =nerr(K200+M200+O200+Q200) -> 0 | W200: =H200-I200 -> 0 | X200: =nerr(W200/H200*100) -> 0
E201: Добавить
C202: - | D202: 2.2.1.1.2 | E202: ВЛЭП 35 кВ (СН1) | G202: =nerr(SUM(G203:G204)-G203) -> 0 | H202: 0 | I202: 0 | J202: 0 | K202: 0 | L202: 0 | M202: 0 | N202: 0 | O202: 0 | P202: 0 | Q202: 0 | R202: 0 | S202: 0 | T202: 0 | U202: 0 | V202: 0 | W202: 0 | X202: =nerr(W202/H202*100) -> 0 | Y202: =nerr(SUM(Y203:Y204)-Y203) -> 0 | Z202: =nerr(SUM(Z203:Z204)-Z203) -> 0
D203: 2.2.1.1.2.0 | H203: =nerr(J203+L203+N203+P203) -> 0 | I203: =nerr(K203+M203+O203+Q203) -> 0 | W203: =H203-I203 -> 0 | X203: =nerr(W203/H203*100) -> 0
E204: Добавить
C205: - | D205: 2.2.1.1.3 | E205: ВЛЭП 1-20 кВ (СН2) | G205: =nerr(SUM(G206:G207)-G206) -> 0 | H205: 0 | I205: 0 | J205: 0 | K205: 0 | L205: 0 | M205: 0 | N205: 0 | O205: 0 | P205: 0 | Q205: 0 | R205: 0 | S205: 0 | T205: 0 | U205: 0 | V205: 0 | W205: 0 | X205: =nerr(W205/H205*100) -> 0 | Y205: =nerr(SUM(Y206:Y207)-Y206) -> 0 | Z205: =nerr(SUM(Z206:Z207)-Z206) -> 0
... 43 more rows

Sheet Ф.7.2
A1: 2
C6: Список листов | AM6: Приложение № 7.2 к Приказу Минэнерго России от 24.03.2010 № 114
AM7: Утверждаю руководитель организации
AM9: (подпись)
AM10: "___" _____________ 20__ года
AM11: М.П.
D12: ="Отчет об исполнении основных этапов работ по реализации инвестиционной программы компании в " & otchet_god & " году (представляется ежеквартально)" -> Отчет об исполнении основных этапов работ по реализации инвестиционной программы компании в 2015 году (представляется ежеквартально)
D13: =org & ", Факт за " & otchet_god & " г. " & kvartal -> ООО "Ростсельмашэнерго", Факт за 2015 г. IV квартал
D15: № п/п | E15: Наименование объекта * | F15: Плановой объем финансирования, млн.руб * | K15: Фактически профинансировано, млн.руб | P15: Отклонение фактической стоимости работ по плановой стоимости, млн.руб | U15: Фактически освоено (закрыто актами выполненных работ), млн.руб | Z15: Технические характеристики созданных объектов
Z16: Генерирующие объекты | AD16: Подстанции | AI16: Линии электропередачи | AN16: Иные объекты
F17: Всего | G17: ПИР | H17: СМР | I17: Оборудо- вание и мате- риалы | J17: Прочие | K17: Всего | L17: ПИР | M17: СМР | N17: Оборудо- вание и мате- риалы | O17: Прочие | P17: Всего | Q17: ПИР | R17: СМР | S17: Оборудо- вание и мате- риалы | T17: Прочие | U17: Всего | V17: ПИР | W17: СМР | X17: Оборудо- вание и мате- риалы | Y17: Прочие | Z17: Год ввода в эксплуа- тацию | AA17: Норма- тивный срок службы, лет | AB17: Мощность, МВт | AC17: Тепловая энергия, Гкал/ч | AD17: Год ввода в эксплуа- тацию | AE17: Норма- тивный срок службы, лет | AF17: Количество силовых трансформа- торов, шт | AG17: Марка силовых трансформаторов | AH17: Мощность, МВА | AI17: Год ввода в эксплуа- тацию | AJ17: Норма- тивный срок службы, лет | AK17: Тип опор | AL17: Марка кабеля | AM17: Протя- жен- ность, км
D18: 1 | E18: 2 | F18: 3 | G18: 4 | H18: 5 | I18: 6 | J18: 7 | K18: 8 | L18: 9 | M18: 10 | N18: 11 | O18: 12 | P18: 13 | Q18: 14 | R18: 15 | S18: 16 | T18: 17 | U18: 18 | V18: 19 | W18: 20 | X18: 21 | Y18: 22 | Z18: 23 | AA18: 24 | AB18: 25 | AC18: 26 | AD18: 27 | AE18: 28 | AF18: 29 | AG18: 30 | AH18: 31 | AI18: 32 | AJ18: 33 | AK18: 34 | AL18: 35 | AM18: 36 | AN18: 37
E19: ВСЕГО | F19: =nerr(F20+F154) -> 4.62039591 | G19: 0 | H19: 0 | I19: 4.62039591 | J19: 0 | K19: 4.62039591 | L19: 0 | M19: 0 | N19: 4.62039591 | O19: 0 | P19: 0 | Q19: 0 | R19: 0 | S19: 0 | T19: 0 | U19: 4.62039591 | V19: 0 | W19: 0 | X19: 4.62039591 | Y19: 0 | AB19: =nerr(AB20+AB154) -> 0 | AC19: =nerr(AC20+AC154) -> 0 | AH19: =nerr(AH20+AH154) -> 0 | AM19: =nerr(AM20+AM154) -> 0
D20: 1 | E20: Техническое перевооружение и реконструкция | F20: =F21+F63+F104+F107+F110+F113 -> 4.62039591 | G20: 0 | H20: 0 | I20: 4.62039591 | J20: 0 | K20: 4.62039591 | L20: 0 | M20: 0 | N20: 4.62039591 | O20: 0 | P20: 0 | Q20: 0 | R20: 0 | S20: 0 | T20: 0 | U20: 4.62039591 | V20: 0 | W20: 0 | X20: 4.62039591 | Y20: 0 | AB20: =AB21+AB63+AB104+AB107+AB110+AB113 -> 0 | AC20: =AC21+AC63+AC104+AC107+AC110+AC113 -> 0 | AH20: =AH21+AH63+AH104+AH107+AH110+AH113 -> 0 | AM20: =AM21+AM63+AM104+AM107+AM110+AM113 -> 0
C21: + | D21: 1.1 | E21: Реконструкция | F21: =F22+F49+F59 -> 4.62039591 | G21: 0 | H21: 0 | I21: 4.62039591 | J21: 0 | K21: 4.62039591 | L21: 0 | M21: 0 | N21: 4.62039591 | O21: 0 | P21: 0 | Q21: 0 | R21: 0 | S21: 0 | T21: 0 | U21: 4.62039591 | V21: 0 | W21: 0 | X21: 4.62039591 | Y21: 0 | AB21: =AB22+AB49+AB59 -> 0 | AC21: =AC22+AC49+AC59 -> 0 | AH21: =AH22+AH49+AH59 -> 0 | AM21: =AM22+AM49+AM59 -> 0
C22: + | D22: 1.1.1 | E22: Электрические линии | F22: =F23+F36 -> 0 | G22: 0 | H22: 0 | I22: 0 | J22: 0 | K22: 0 | L22: 0 | M22: 0 | N22: 0 | O22: 0 | P22: 0 | Q22: 0 | R22: 0 | S22: 0 | T22: 0 | U22: 0 | V22: 0 | W22: 0 | X22: 0 | Y22: 0 | AB22: =AB23+AB36 -> 0 | AC22: =AC23+AC36 -> 0 | AH22: =AH23+AH36 -> 0 | AM22: =AM23+AM36 -> 0
C23: + | D23: 1.1.1.1 | E23: Воздушные линии | F23: =F24+F27+F30+F33 -> 0 | G23: 0 | H23: 0 | I23: 0 | J23: 0 | K23: 0 | L23: 0 | M23: 0 | N23: 0 | O23: 0 | P23: 0 | Q23: 0 | R23: 0 | S23: 0 | T23: 0 | U23: 0 | V23: 0 | W23: 0 | X23: 0 | Y23: 0 | AB23: =AB24+AB27+AB30+AB33 -> 0 | AC23: =AC24+AC27+AC30+AC33 -> 0 | AH23: =AH24+AH27+AH30+AH33 -> 0 | AM23: =AM24+AM27+AM30+AM33 -> 0
C24: + | D24: 1.1.1.1.1 | E24: ВЛЭП 110-220 кВ (ВН) | F24: =nerr(SUM(F25:F26)-F25) -> 0 | G24: 0 | H24: 0 | I24: 0 | J24: 0 | K24: 0 | L24: 0 | M24: 0 | N24: 0 | O24: 0 | P24: 0 | Q24: 0 | R24: 0 | S24: 0 | T24: 0 | U24: 0 | V24: 0 | W24: 0 | X24: 0 | Y24: 0 | AB24: =nerr(SUM(AB25:AB26)-AB25) -> 0 | AC24: =nerr(SUM(AC25:AC26)-AC25) -> 0 | AH24: =nerr(SUM(AH25:AH26)-AH25) -> 0 | AM24: =nerr(SUM(AM25:AM26)-AM25) -> 0
D25: 1.1.1.1.1.0 | F25: =nerr(SUM(G25:J25)) -> 0 | K25: =nerr(SUM(L25:O25)) -> 0 | P25: =nerr(SUM(Q25:T25)) -> 0 | U25: =nerr(SUM(V25:Y25)) -> 0
C27: + | D27: 1.1.1.1.2 | E27: ВЛЭП 35 кВ (СН1) | F27: =nerr(SUM(F28:F29)-F28) -> 0 | G27: 0 | H27: 0 | I27: 0 | J27: 0 | K27: 0 | L27: 0 | M27: 0 | N27: 0 | O27: 0 | P27: 0 | Q27: 0 | R27: 0 | S27: 0 | T27: 0 | U27: 0 | V27: 0 | W27: 0 | X27: 0 | Y27: 0 | AB27: =nerr(SUM(AB28:AB29)-AB28) -> 0 | AC27: =nerr(SUM(AC28:AC29)-AC28) -> 0 | AH27: =nerr(SUM(AH28:AH29)-AH28) -> 0 | AM27: =nerr(SUM(AM28:AM29)-AM28) -> 0
D28: 1.1.1.1.2.0 | F28: =nerr(SUM(G28:J28)) -> 0 | K28: =nerr(SUM(L28:O28)) -> 0 | P28: =nerr(SUM(Q28:T28)) -> 0 | U28: =nerr(SUM(V28:Y28)) -> 0
C30: + | D30: 1.1.1.1.3 | E30: ВЛЭП 1-20 кВ (СН2) | F30: =nerr(SUM(F31:F32)-F31) -> 0 | G30: 0 | H30: 0 | I30: 0 | J30: 0 | K30: 0 | L30: 0 | M30: 0 | N30: 0 | O30: 0 | P30: 0 | Q30: 0 | R30: 0 | S30: 0 | T30: 0 | U30: 0 | V30: 0 | W30: 0 | X30: 0 | Y30: 0 | AB30: =nerr(SUM(AB31:AB32)-AB31) -> 0 | AC30: =nerr(SUM(AC31:AC32)-AC31) -> 0 | AH30: =nerr(SUM(AH31:AH32)-AH31) -> 0 | AM30: =nerr(SUM(AM31:AM32)-AM31) -> 0
D31: 1.1.1.1.3.0 | F31: =nerr(SUM(G31:J31)) -> 0 | K31: =nerr(SUM(L31:O31)) -> 0 | P31: =nerr(SUM(Q31:T31)) -> 0 | U31: =nerr(SUM(V31:Y31)) -> 0
C33: + | D33: 1.1.1.1.4 | E33: ВЛЭП 0,4 кВ (НН) | F33: =nerr(SUM(F34:F35)-F34) -> 0 | G33: 0 | H33: 0 | I33: 0 | J33: 0 | K33: 0 | L33: 0 | M33: 0 | N33: 0 | O33: 0 | P33: 0 | Q33: 0 | R33: 0 | S33: 0 | T33: 0 | U33: 0 | V33: 0 | W33: 0 | X33: 0 | Y33: 0 | AB33: =nerr(SUM(AB34:AB35)-AB34) -> 0 | AC33: =nerr(SUM(AC34:AC35)-AC34) -> 0 | AH33: =nerr(SUM(AH34:AH35)-AH34) -> 0 | AM33: =nerr(SUM(AM34:AM35)-AM34) -> 0
D34: 1.1.1.1.4.0 | F34: =nerr(SUM(G34:J34)) -> 0 | K34: =nerr(SUM(L34:O34)) -> 0 | P34: =nerr(SUM(Q34:T34)) -> 0 | U34: =nerr(SUM(V34:Y34)) -> 0
C36: + | D36: 1.1.1.2 | E36: Кабельные линии | F36: =F37+F40+F43+F46 -> 0 | G36: 0 | H36: 0 | I36: 0 | J36: 0 | K36: 0 | L36: 0 | M36: 0 | N36: 0 | O36: 0 | P36: 0 | Q36: 0 | R36: 0 | S36: 0 | T36: 0 | U36: 0 | V36: 0 | W36: 0 | X36: 0 | Y36: 0 | AB36: =AB37+AB40+AB43+AB46 -> 0 | AC36: =AC37+AC40+AC43+AC46 -> 0 | AH36: =AH37+AH40+AH43+AH46 -> 0 | AM36: =AM37+AM40+AM43+AM46 -> 0
C37: + | D37: 1.1.1.2.1 | E37: КЛЭП 110 кВ (ВН) | F37: =nerr(SUM(F38:F39)-F38) -> 0 | G37: 0 | H37: 0 | I37: 0 | J37: 0 | K37: 0 | L37: 0 | M37: 0 | N37: 0 | O37: 0 | P37: 0 | Q37: 0 | R37: 0 | S37: 0 | T37: 0 | U37: 0 | V37: 0 | W37: 0 | X37: 0 | Y37: 0 | AB37: =nerr(SUM(AB38:AB39)-AB38) -> 0 | AC37: =nerr(SUM(AC38:AC39)-AC38) -> 0 | AH37: =nerr(SUM(AH38:AH39)-AH38) -> 0 | AM37: =nerr(SUM(AM38:AM39)-AM38) -> 0
D38: 1.1.1.2.1.0 | F38: =nerr(SUM(G38:J38)) -> 0 | K38: =nerr(SUM(L38:O38)) -> 0 | P38: =nerr(SUM(Q38:T38)) -> 0 | U38: =nerr(SUM(V38:Y38)) -> 0
C40: + | D40: 1.1.1.2.2 | E40: КЛЭП 20-35 кВ (СН1) | F40: =nerr(SUM(F41:F42)-F41) -> 0 | G40: 0 | H40: 0 | I40: 0 | J40: 0 | K40: 0 | L40: 0 | M40: 0 | N40: 0 | O40: 0 | P40: 0 | Q40: 0 | R40: 0 | S40: 0 | T40: 0 | U40: 0 | V40: 0 | W40: 0 | X40: 0 | Y40: 0 | AB40: =nerr(SUM(AB41:AB42)-AB41) -> 0 | AC40: =nerr(SUM(AC41:AC42)-AC41) -> 0 | AH40: =nerr(SUM(AH41:AH42)-AH41) -> 0 | AM40: =nerr(SUM(AM41:AM42)-AM41) -> 0
D41: 1.1.1.2.2.0 | F41: =nerr(SUM(G41:J41)) -> 0 | K41: =nerr(SUM(L41:O41)) -> 0 | P41: =nerr(SUM(Q41:T41)) -> 0 | U41: =nerr(SUM(V41:Y41)) -> 0
C43: + | D43: 1.1.1.2.3 | E43: КЛЭП 3-10 кВ (СН2) | F43: =nerr(SUM(F44:F45)-F44) -> 0 | G43: 0 | H43: 0 | I43: 0 | J43: 0 | K43: 0 | L43: 0 | M43: 0 | N43: 0 | O43: 0 | P43: 0 | Q43: 0 | R43: 0 | S43: 0 | T43: 0 | U43: 0 | V43: 0 | W43: 0 | X43: 0 | Y43: 0 | AB43: =nerr(SUM(AB44:AB45)-AB44) -> 0 | AC43: =nerr(SUM(AC44:AC45)-AC44) -> 0 | AH43: =nerr(SUM(AH44:AH45)-AH44) -> 0 | AM43: =nerr(SUM(AM44:AM45)-AM44) -> 0
D44: 1.1.1.2.3.0 | F44: =nerr(SUM(G44:J44)) -> 0 | K44: =nerr(SUM(L44:O44)) -> 0 | P44: =nerr(SUM(Q44:T44)) -> 0 | U44: =nerr(SUM(V44:Y44)) -> 0
C46: + | D46: 1.1.1.2.4 | E46: КЛЭП до 1 кВ (НН) | F46: =nerr(SUM(F47:F48)-F47) -> 0 | G46: 0 | H46: 0 | I46: 0 | J46: 0 | K46: 0 | L46: 0 | M46: 0 | N46: 0 | O46: 0 | P46: 0 | Q46: 0 | R46: 0 | S46: 0 | T46: 0 | U46: 0 | V46: 0 | W46: 0 | X46: 0 | Y46: 0 | AB46: =nerr(SUM(AB47:AB48)-AB47) -> 0 | AC46: =nerr(SUM(AC47:AC48)-AC47) -> 0 | AH46: =nerr(SUM(AH47:AH48)-AH47) -> 0 | AM46: =nerr(SUM(AM47:AM48)-AM47) -> 0
D47: 1.1.1.2.4.0 | F47: =nerr(SUM(G47:J47)) -> 0 | K47: =nerr(SUM(L47:O47)) -> 0 | P47: =nerr(SUM(Q47:T47)) -> 0 | U47: =nerr(SUM(V47:Y47)) -> 0
C49: + | D49: 1.1.2 | E49: Подстанции | F49: =F50+F53+F56 -> 0 | G49: 0 | H49: 0 | I49: 0 | J49: 0 | K49: 0 | L49: 0 | M49: 0 | N49: 0 | O49: 0 | P49: 0 | Q49: 0 | R49: 0 | S49: 0 | T49: 0 | U49: 0 | V49: 0 | W49: 0 | X49: 0 | Y49: 0 | AB49: =AB50+AB53+AB56 -> 0 | AC49: =AC50+AC53+AC56 -> 0 | AH49: =AH50+AH53+AH56 -> 0 | AM49: =AM50+AM53+AM56 -> 0
C50: + | D50: 1.1.2.1 | E50: Уровень входящего напряжения ВН | F50: =nerr(SUM(F51:F52)-F51) -> 0 | G50: 0 | H50: 0 | I50: 0 | J50: 0 | K50: 0 | L50: 0 | M50: 0 | N50: 0 | O50: 0 | P50: 0 | Q50: 0 | R50: 0 | S50: 0 | T50: 0 | U50: 0 | V50: 0 | W50: 0 | X50: 0 | Y50: 0 | AB50: =nerr(SUM(AB51:AB52)-AB51) -> 0 | AC50: =nerr(SUM(AC51:AC52)-AC51) -> 0 | AH50: =nerr(SUM(AH51:AH52)-AH51) -> 0 | AM50: =nerr(SUM(AM51:AM52)-AM51) -> 0
D51: 1.1.2.1.0 | F51: =nerr(SUM(G51:J51)) -> 0 | K51: =nerr(SUM(L51:O51)) -> 0 | P51: =nerr(SUM(Q51:T51)) -> 0 | U51: =nerr(SUM(V51:Y51)) -> 0
C53: + | D53: 1.1.2.2 | E53: Уровень входящего напряжения СН1 | F53: =nerr(SUM(F54:F55)-F54) -> 0 | G53: 0 | H53: 0 | I53: 0 | J53: 0 | K53: 0 | L53: 0 | M53: 0 | N53: 0 | O53: 0 | P53: 0 | Q53: 0 | R53: 0 | S53: 0 | T53: 0 | U53: 0 | V53: 0 | W53: 0 | X53: 0 | Y53: 0 | AB53: =nerr(SUM(AB54:AB55)-AB54) -> 0 | AC53: =nerr(SUM(AC54:AC55)-AC54) -> 0 | AH53: =nerr(SUM(AH54:AH55)-AH54) -> 0 | AM53: =nerr(SUM(AM54:AM55)-AM54) -> 0
D54: 1.1.2.2.0 | F54: =nerr(SUM(G54:J54)) -> 0 | K54: =nerr(SUM(L54:O54)) -> 0 | P54: =nerr(SUM(Q54:T54)) -> 0 | U54: =nerr(SUM(V54:Y54)) -> 0
C56: + | D56: 1.1.2.3 | E56: Уровень входящего напряжения СН2 | F56: =nerr(SUM(F57:F58)-F57) -> 0 | G56: 0 | H56: 0 | I56: 0 | J56: 0 | K56: 0 | L56: 0 | M56: 0 | N56: 0 | O56: 0 | P56: 0 | Q56: 0 | R56: 0 | S56: 0 | T56: 0 | U56: 0 | V56: 0 | W56: 0 | X56: 0 | Y56: 0 | AB56: =nerr(SUM(AB57:AB58)-AB57) -> 0 | AC56: =nerr(SUM(AC57:AC58)-AC57) -> 0 | AH56: =nerr(SUM(AH57:AH58)-AH57) -> 0 | AM56: =nerr(SUM(AM57:AM58)-AM57) -> 0
D57: 1.1.2.3.0 | F57: =nerr(SUM(G57:J57)) -> 0 | K57: =nerr(SUM(L57:O57)) -> 0 | P57: =nerr(SUM(Q57:T57)) -> 0 | U57: =nerr(SUM(V57:Y57)) -> 0
C59: + | D59: 1.1.3 | E59: Прочие электросетевые объекты | F59: =nerr(SUM(F60:F62)-F60) -> 4.62039591 | G59: 0 | H59: 0 | I59: 4.62039591 | J59: 0 | K59: 4.62039591 | L59: 0 | M59: 0 | N59: 4.62039591 | O59: 0 | P59: 0 | Q59: 0 | R59: 0 | S59: 0 | T59: 0 | U59: 4.62039591 | V59: 0 | W59: 0 | X59: 4.62039591 | Y59: 0 | AB59: =nerr(SUM(AB60:AB62)-AB60) -> 0 | AC59: =nerr(SUM(AC60:AC62)-AC60) -> 0 | AH59: =nerr(SUM(AH60:AH62)-AH60) -> 0 | AM59: =nerr(SUM(AM60:AM62)-AM60) -> 0
D60: 1.1.3.0 | F60: =nerr(SUM(G60:J60)) -> 0 | K60: =nerr(SUM(L60:O60)) -> 0 | P60: =nerr(SUM(Q60:T60)) -> 0 | U60: =nerr(SUM(V60:Y60)) -> 0
D61: 1.1.3.1 | E61: =Ф.7.1!$E$61 -> Реконструкция ПС 110/6 кВ ГПП-1, ПС 110/6 кВ ГПП-3 | F61: =nerr(SUM(G61:J61)) -> 4.62039591 | G61: 0 | H61: 0 | I61: =+Ф.7.1!Q61 -> 4.62039591 | J61: 0 | K61: =nerr(SUM(L61:O61)) -> 4.62039591 | L61: 0 | M61: 0 | N61: =+I61 -> 4.62039591 | O61: 0 | P61: =nerr(SUM(Q61:T61)) -> 0 | Q61: 0 | R61: 0 | S61: 0 | T61: 0 | U61: =nerr(SUM(V61:Y61)) -> 4.62039591 | V61: 0 | W61: 0 | X61: =+N61 -> 4.62039591 | AD61: 2003 | AI61: 2003
C63: + | D63: 1.2 | E63: Энергосбережение и повышение энергетической эффективности | F63: =F64+F91+F101 -> 0 | G63: 0 | H63: 0 | I63: 0 | J63: 0 | K63: 0 | L63: 0 | M63: 0 | N63: 0 | O63: 0 | P63: 0 | Q63: 0 | R63: 0 | S63: 0 | T63: 0 | U63: 0 | V63: 0 | W63: 0 | X63: 0 | Y63: 0 | AB63: =AB64+AB91+AB101 -> 0 | AC63: =AC64+AC91+AC101 -> 0 | AH63: =AH64+AH91+AH101 -> 0 | AM63: =AM64+AM91+AM101 -> 0
C64: + | D64: 1.2.1 | E64: Электрические линии | F64: =F65+F78 -> 0 | G64: 0 | H64: 0 | I64: 0 | J64: 0 | K64: 0 | L64: 0 | M64: 0 | N64: 0 | O64: 0 | P64: 0 | Q64: 0 | R64: 0 | S64: 0 | T64: 0 | U64: 0 | V64: 0 | W64: 0 | X64: 0 | Y64: 0 | AB64: =AB65+AB78 -> 0 | AC64: =AC65+AC78 -> 0 | AH64: =AH65+AH78 -> 0 | AM64: =AM65+AM78 -> 0
C65: + | D65: 1.2.1.1 | E65: Воздушные линии | F65: =F66+F69+F72+F75 -> 0 | G65: 0 | H65: 0 | I65: 0 | J65: 0 | K65: 0 | L65: 0 | M65: 0 | N65: 0 | O65: 0 | P65: 0 | Q65: 0 | R65: 0 | S65: 0 | T65: 0 | U65: 0 | V65: 0 | W65: 0 | X65: 0 | Y65: 0 | AB65: =AB66+AB69+AB72+AB75 -> 0 | AC65: =AC66+AC69+AC72+AC75 -> 0 | AH65: =AH66+AH69+AH72+AH75 -> 0 | AM65: =AM66+AM69+AM72+AM75 -> 0
C66: + | D66: 1.2.1.1.1 | E66: ВЛЭП 110-220 кВ (ВН) | F66: =nerr(SUM(F67:F68)-F67) -> 0 | G66: 0 | H66: 0 | I66: 0 | J66: 0 | K66: 0 | L66: 0 | M66: 0 | N66: 0 | O66: 0 | P66: 0 | Q66: 0 | R66: 0 | S66: 0 | T66: 0 | U66: 0 | V66: 0 | W66: 0 | X66: 0 | Y66: 0 | AB66: =nerr(SUM(AB67:AB68)-AB67) -> 0 | AC66: =nerr(SUM(AC67:AC68)-AC67) -> 0 | AH66: =nerr(SUM(AH67:AH68)-AH67) -> 0 | AM66: =nerr(SUM(AM67:AM68)-AM67) -> 0
D67: 1.2.1.1.1.0 | F67: =nerr(SUM(G67:J67)) -> 0 | K67: =nerr(SUM(L67:O67)) -> 0 | P67: =nerr(SUM(Q67:T67)) -> 0 | U67: =nerr(SUM(V67:Y67)) -> 0
C69: + | D69: 1.2.1.1.2 | E69: ВЛЭП 35 кВ (СН1) | F69: =nerr(SUM(F70:F71)-F70) -> 0 | G69: 0 | H69: 0 | I69: 0 | J69: 0 | K69: 0 | L69: 0 | M69: 0 | N69: 0 | O69: 0 | P69: 0 | Q69: 0 | R69: 0 | S69: 0 | T69: 0 | U69: 0 | V69: 0 | W69: 0 | X69: 0 | Y69: 0 | AB69: =nerr(SUM(AB70:AB71)-AB70) -> 0 | AC69: =nerr(SUM(AC70:AC71)-AC70) -> 0 | AH69: =nerr(SUM(AH70:AH71)-AH70) -> 0 | AM69: =nerr(SUM(AM70:AM71)-AM70) -> 0
D70: 1.2.1.1.2.0 | F70: =nerr(SUM(G70:J70)) -> 0 | K70: =nerr(SUM(L70:O70)) -> 0 | P70: =nerr(SUM(Q70:T70)) -> 0 | U70: =nerr(SUM(V70:Y70)) -> 0
C72: + | D72: 1.2.1.1.3 | E72: ВЛЭП 1-20 кВ (СН2) | F72: =nerr(SUM(F73:F74)-F73) -> 0 | G72: 0 | H72: 0 | I72: 0 | J72: 0 | K72: 0 | L72: 0 | M72: 0 | N72: 0 | O72: 0 | P72: 0 | Q72: 0 | R72: 0 | S72: 0 | T72: 0 | U72: 0 | V72: 0 | W72: 0 | X72: 0 | Y72: 0 | AB72: =nerr(SUM(AB73:AB74)-AB73) -> 0 | AC72: =nerr(SUM(AC73:AC74)-AC73) -> 0 | AH72: =nerr(SUM(AH73:AH74)-AH73) -> 0 | AM72: =nerr(SUM(AM73:AM74)-AM73) -> 0
D73: 1.2.1.1.3.0 | F73: =nerr(SUM(G73:J73)) -> 0 | K73: =nerr(SUM(L73:O73)) -> 0 | P73: =nerr(SUM(Q73:T73)) -> 0 | U73: =nerr(SUM(V73:Y73)) -> 0
C75: + | D75: 1.2.1.1.4 | E75: ВЛЭП 0,4 кВ (НН) | F75: =nerr(SUM(F76:F77)-F76) -> 0 | G75: 0 | H75: 0 | I75: 0 | J75: 0 | K75: 0 | L75: 0 | M75: 0 | N75: 0 | O75: 0 | P75: 0 | Q75: 0 | R75: 0 | S75: 0 | T75: 0 | U75: 0 | V75: 0 | W75: 0 | X75: 0 | Y75: 0 | AB75: =nerr(SUM(AB76:AB77)-AB76) -> 0 | AC75: =nerr(SUM(AC76:AC77)-AC76) -> 0 | AH75: =nerr(SUM(AH76:AH77)-AH76) -> 0 | AM75: =nerr(SUM(AM76:AM77)-AM76) -> 0
D76: 1.2.1.1.4.0 | F76: =nerr(SUM(G76:J76)) -> 0 | K76: =nerr(SUM(L76:O76)) -> 0 | P76: =nerr(SUM(Q76:T76)) -> 0 | U76: =nerr(SUM(V76:Y76)) -> 0
C78: + | D78: 1.2.1.2 | E78: Кабельные линии | F78: =F79+F82+F85+F88 -> 0 | G78: 0 | H78: 0 | I78: 0 | J78: 0 | K78: 0 | L78: 0 | M78: 0 | N78: 0 | O78: 0 | P78: 0 | Q78: 0 | R78: 0 | S78: 0 | T78: 0 | U78: 0 | V78: 0 | W78: 0 | X78: 0 | Y78: 0 | AB78: =AB79+AB82+AB85+AB88 -> 0 | AC78: =AC79+AC82+AC85+AC88 -> 0 | AH78: =AH79+AH82+AH85+AH88 -> 0 | AM78: =AM79+AM82+AM85+AM88 -> 0
C79: + | D79: 1.2.1.2.1 | E79: КЛЭП 110 кВ (ВН) | F79: =nerr(SUM(F80:F81)-F80) -> 0 | G79: 0 | H79: 0 | I79: 0 | J79: 0 | K79: 0 | L79: 0 | M79: 0 | N79: 0 | O79: 0 | P79: 0 | Q79: 0 | R79: 0 | S79: 0 | T79: 0 | U79: 0 | V79: 0 | W79: 0 | X79: 0 | Y79: 0 | AB79: =nerr(SUM(AB80:AB81)-AB80) -> 0 | AC79: =nerr(SUM(AC80:AC81)-AC80) -> 0 | AH79: =nerr(SUM(AH80:AH81)-AH80) -> 0 | AM79: =nerr(SUM(AM80:AM81)-AM80) -> 0
D80: 1.2.1.2.1.0 | F80: =nerr(SUM(G80:J80)) -> 0 | K80: =nerr(SUM(L80:O80)) -> 0 | P80: =nerr(SUM(Q80:T80)) -> 0 | U80: =nerr(SUM(V80:Y80)) -> 0
C82: + | D82: 1.2.1.2.2 | E82: КЛЭП 20-35 кВ (СН1) | F82: =nerr(SUM(F83:F84)-F83) -> 0 | G82: 0 | H82: 0 | I82: 0 | J82: 0 | K82: 0 | L82: 0 | M82: 0 | N82: 0 | O82: 0 | P82: 0 | Q82: 0 | R82: 0 | S82: 0 | T82: 0 | U82: 0 | V82: 0 | W82: 0 | X82: 0 | Y82: 0 | AB82: =nerr(SUM(AB83:AB84)-AB83) -> 0 | AC82: =nerr(SUM(AC83:AC84)-AC83) -> 0 | AH82: =nerr(SUM(AH83:AH84)-AH83) -> 0 | AM82: =nerr(SUM(AM83:AM84)-AM83) -> 0
D83: 1.2.1.2.2.0 | F83: =nerr(SUM(G83:J83)) -> 0 | K83: =nerr(SUM(L83:O83)) -> 0 | P83: =nerr(SUM(Q83:T83)) -> 0 | U83: =nerr(SUM(V83:Y83)) -> 0
C85: + | D85: 1.2.1.2.3 | E85: КЛЭП 3-10 кВ (СН2) | F85: =nerr(SUM(F86:F87)-F86) -> 0 | G85: 0 | H85: 0 | I85: 0 | J85: 0 | K85: 0 | L85: 0 | M85: 0 | N85: 0 | O85: 0 | P85: 0 | Q85: 0 | R85: 0 | S85: 0 | T85: 0 | U85: 0 | V85: 0 | W85: 0 | X85: 0 | Y85: 0 | AB85: =nerr(SUM(AB86:AB87)-AB86) -> 0 | AC85: =nerr(SUM(AC86:AC87)-AC86) -> 0 | AH85: =nerr(SUM(AH86:AH87)-AH86) -> 0 | AM85: =nerr(SUM(AM86:AM87)-AM86) -> 0
D86: 1.2.1.2.3.0 | F86: =nerr(SUM(G86:J86)) -> 0 | K86: =nerr(SUM(L86:O86)) -> 0 | P86: =nerr(SUM(Q86:T86)) -> 0 | U86: =nerr(SUM(V86:Y86)) -> 0
C88: + | D88: 1.2.1.2.4 | E88: КЛЭП до 1 кВ (НН) | F88: =nerr(SUM(F89:F90)-F89) -> 0 | G88: 0 | H88: 0 | I88: 0 | J88: 0 | K88: 0 | L88: 0 | M88: 0 | N88: 0 | O88: 0 | P88: 0 | Q88: 0 | R88: 0 | S88: 0 | T88: 0 | U88: 0 | V88: 0 | W88: 0 | X88: 0 | Y88: 0 | AB88: =nerr(SUM(AB89:AB90)-AB89) -> 0 | AC88: =nerr(SUM(AC89:AC90)-AC89) -> 0 | AH88: =nerr(SUM(AH89:AH90)-AH89) -> 0 | AM88: =nerr(SUM(AM89:AM90)-AM89) -> 0
D89: 1.2.1.2.4.0 | F89: =nerr(SUM(G89:J89)) -> 0 | K89: =nerr(SUM(L89:O89)) -> 0 | P89: =nerr(SUM(Q89:T89)) -> 0 | U89: =nerr(SUM(V89:Y89)) -> 0
C91: + | D91: 1.2.2 | E91: Подстанции | F91: =F92+F95+F98 -> 0 | G91: 0 | H91: 0 | I91: 0 | J91: 0 | K91: 0 | L91: 0 | M91: 0 | N91: 0 | O91: 0 | P91: 0 | Q91: 0 | R91: 0 | S91: 0 | T91: 0 | U91: 0 | V91: 0 | W91: 0 | X91: 0 | Y91: 0 | AB91: =AB92+AB95+AB98 -> 0 | AC91: =AC92+AC95+AC98 -> 0 | AH91: =AH92+AH95+AH98 -> 0 | AM91: =AM92+AM95+AM98 -> 0
C92: + | D92: 1.2.2.1 | E92: Уровень входящего напряжения ВН | F92: =nerr(SUM(F93:F94)-F93) -> 0 | G92: 0 | H92: 0 | I92: 0 | J92: 0 | K92: 0 | L92: 0 | M92: 0 | N92: 0 | O92: 0 | P92: 0 | Q92: 0 | R92: 0 | S92: 0 | T92: 0 | U92: 0 | V92: 0 | W92: 0 | X92: 0 | Y92: 0 | AB92: =nerr(SUM(AB93:AB94)-AB93) -> 0 | AC92: =nerr(SUM(AC93:AC94)-AC93) -> 0 | AH92: =nerr(SUM(AH93:AH94)-AH93) -> 0 | AM92: =nerr(SUM(AM93:AM94)-AM93) -> 0
D93: 1.2.2.1.0 | F93: =nerr(SUM(G93:J93)) -> 0 | K93: =nerr(SUM(L93:O93)) -> 0 | P93: =nerr(SUM(Q93:T93)) -> 0 | U93: =nerr(SUM(V93:Y93)) -> 0
C95: + | D95: 1.2.2.2 | E95: Уровень входящего напряжения СН1 | F95: =nerr(SUM(F96:F97)-F96) -> 0 | G95: 0 | H95: 0 | I95: 0 | J95: 0 | K95: 0 | L95: 0 | M95: 0 | N95: 0 | O95: 0 | P95: 0 | Q95: 0 | R95: 0 | S95: 0 | T95: 0 | U95: 0 | V95: 0 | W95: 0 | X95: 0 | Y95: 0 | AB95: =nerr(SUM(AB96:AB97)-AB96) -> 0 | AC95: =nerr(SUM(AC96:AC97)-AC96) -> 0 | AH95: =nerr(SUM(AH96:AH97)-AH96) -> 0 | AM95: =nerr(SUM(AM96:AM97)-AM96) -> 0
D96: 1.2.2.2.0 | F96: =nerr(SUM(G96:J96)) -> 0 | K96: =nerr(SUM(L96:O96)) -> 0 | P96: =nerr(SUM(Q96:T96)) -> 0 | U96: =nerr(SUM(V96:Y96)) -> 0
C98: + | D98: 1.2.2.3 | E98: Уровень входящего напряжения СН2 | F98: =nerr(SUM(F99:F100)-F99) -> 0 | G98: 0 | H98: 0 | I98: 0 | J98: 0 | K98: 0 | L98: 0 | M98: 0 | N98: 0 | O98: 0 | P98: 0 | Q98: 0 | R98: 0 | S98: 0 | T98: 0 | U98: 0 | V98: 0 | W98: 0 | X98: 0 | Y98: 0 | AB98: =nerr(SUM(AB99:AB100)-AB99) -> 0 | AC98: =nerr(SUM(AC99:AC100)-AC99) -> 0 | AH98: =nerr(SUM(AH99:AH100)-AH99) -> 0 | AM98: =nerr(SUM(AM99:AM100)-AM99) -> 0
D99: 1.2.2.3.0 | F99: =nerr(SUM(G99:J99)) -> 0 | K99: =nerr(SUM(L99:O99)) -> 0 | P99: =nerr(SUM(Q99:T99)) -> 0 | U99: =nerr(SUM(V99:Y99)) -> 0
C101: + | D101: 1.2.3 | E101: Прочие электросетевые объекты | F101: =nerr(SUM(F102:F103)-F102) -> 0 | G101: 0 | H101: 0 | I101: 0 | J101: 0 | K101: 0 | L101: 0 | M101: 0 | N101: 0 | O101: 0 | P101: 0 | Q101: 0 | R101: 0 | S101: 0 | T101: 0 | U101: 0 | V101: 0 | W101: 0 | X101: 0 | Y101: 0 | AB101: =nerr(SUM(AB102:AB103)-AB102) -> 0 | AC101: =nerr(SUM(AC102:AC103)-AC102) -> 0 | AH101: =nerr(SUM(AH102:AH103)-AH102) -> 0 | AM101: =nerr(SUM(AM102:AM103)-AM102) -> 0
D102: 1.2.3.0 | F102: =nerr(SUM(G102:J102)) -> 0 | K102: =nerr(SUM(L102:O102)) -> 0 | P102: =nerr(SUM(Q102:T102)) -> 0 | U102: =nerr(SUM(V102:Y102)) -> 0
C104: + | D104: 1.3 | E104: Создание систем противоаварийной и режимной автоматики | F104: =nerr(SUM(F105:F106)-F105) -> 0 | G104: 0 | H104: 0 | I104: 0 | J104: 0 | K104: 0 | L104: 0 | M104: 0 | N104: 0 | O104: 0 | P104: 0 | Q104: 0 | R104: 0 | S104: 0 | T104: 0 | U104: 0 | V104: 0 | W104: 0 | X104: 0 | Y104: 0 | AB104: =nerr(SUM(AB105:AB106)-AB105) -> 0 | AC104: =nerr(SUM(AC105:AC106)-AC105) -> 0 | AH104: =nerr(SUM(AH105:AH106)-AH105) -> 0 | AM104: =nerr(SUM(AM105:AM106)-AM105) -> 0
D105: 1.3.0 | F105: =nerr(SUM(G105:J105)) -> 0 | K105: =nerr(SUM(L105:O105)) -> 0 | P105: =nerr(SUM(Q105:T105)) -> 0 | U105: =nerr(SUM(V105:Y105)) -> 0
C107: + | D107: 1.4 | E107: Создание систем телемеханики и связи | F107: =nerr(SUM(F108:F109)-F108) -> 0 | G107: 0 | H107: 0 | I107: 0 | J107: 0 | K107: 0 | L107: 0 | M107: 0 | N107: 0 | O107: 0 | P107: 0 | Q107: 0 | R107: 0 | S107: 0 | T107: 0 | U107: 0 | V107: 0 | W107: 0 | X107: 0 | Y107: 0 | AB107: =nerr(SUM(AB108:AB109)-AB108) -> 0 | AC107: =nerr(SUM(AC108:AC109)-AC108) -> 0 | AH107: =nerr(SUM(AH108:AH109)-AH108) -> 0 | AM107: =nerr(SUM(AM108:AM109)-AM108) -> 0
D108: 1.4.0 | F108: =nerr(SUM(G108:J108)) -> 0 | K108: =nerr(SUM(L108:O108)) -> 0 | P108: =nerr(SUM(Q108:T108)) -> 0 | U108: =nerr(SUM(V108:Y108)) -> 0
C110: + | D110: 1.5 | E110: Установка устройств регулирования напряжения и компенсации реактивной мощности | F110: =nerr(SUM(F111:F112)-F111) -> 0 | G110: 0 | H110: 0 | I110: 0 | J110: 0 | K110: 0 | L110: 0 | M110: 0 | N110: 0 | O110: 0 | P110: 0 | Q110: 0 | R110: 0 | S110: 0 | T110: 0 | U110: 0 | V110: 0 | W110: 0 | X110: 0 | Y110: 0 | AB110: =nerr(SUM(AB111:AB112)-AB111) -> 0 | AC110: =nerr(SUM(AC111:AC112)-AC111) -> 0 | AH110: =nerr(SUM(AH111:AH112)-AH111) -> 0 | AM110: =nerr(SUM(AM111:AM112)-AM111) -> 0
D111: 1.5.0 | F111: =nerr(SUM(G111:J111)) -> 0 | K111: =nerr(SUM(L111:O111)) -> 0 | P111: =nerr(SUM(Q111:T111)) -> 0 | U111: =nerr(SUM(V111:Y111)) -> 0
C113: + | D113: 1.6 | E113: Исполнение договоров технологического присоединения | F113: =F114+F141+F151 -> 0 | G113: 0 | H113: 0 | I113: 0 | J113: 0 | K113: 0 | L113: 0 | M113: 0 | N113: 0 | O113: 0 | P113: 0 | Q113: 0 | R113: 0 | S113: 0 | T113: 0 | U113: 0 | V113: 0 | W113: 0 | X113: 0 | Y113: 0 | AB113: =AB114+AB141+AB151 -> 0 | AC113: =AC114+AC141+AC151 -> 0 | AH113: =AH114+AH141+AH151 -> 0 | AM113: =AM114+AM141+AM151 -> 0
C114: + | D114: 1.6.1 | E114: Электрические линии | F114: =F115+F128 -> 0 | G114: 0 | H114: 0 | I114: 0 | J114: 0 | K114: 0 | L114: 0 | M114: 0 | N114: 0 | O114: 0 | P114: 0 | Q114: 0 | R114: 0 | S114: 0 | T114: 0 | U114: 0 | V114: 0 | W114: 0 | X114: 0 | Y114: 0 | AB114: =AB115+AB128 -> 0 | AC114: =AC115+AC128 -> 0 | AH114: =AH115+AH128 -> 0 | AM114: =AM115+AM128 -> 0
C115: + | D115: 1.6.1.1 | E115: Воздушные линии | F115: =F116+F119+F122+F125 -> 0 | G115: 0 | H115: 0 | I115: 0 | J115: 0 | K115: 0 | L115: 0 | M115: 0 | N115: 0 | O115: 0 | P115: 0 | Q115: 0 | R115: 0 | S115: 0 | T115: 0 | U115: 0 | V115: 0 | W115: 0 | X115: 0 | Y115: 0 | AB115: =AB116+AB119+AB122+AB125 -> 0 | AC115: =AC116+AC119+AC122+AC125 -> 0 | AH115: =AH116+AH119+AH122+AH125 -> 0 | AM115: =AM116+AM119+AM122+AM125 -> 0
C116: + | D116: 1.6.1.1.1 | E116: ВЛЭП 110-220 кВ (ВН) | F116: =nerr(SUM(F117:F118)-F117) -> 0 | G116: 0 | H116: 0 | I116: 0 | J116: 0 | K116: 0 | L116: 0 | M116: 0 | N116: 0 | O116: 0 | P116: 0 | Q116: 0 | R116: 0 | S116: 0 | T116: 0 | U116: 0 | V116: 0 | W116: 0 | X116: 0 | Y116: 0 | AB116: =nerr(SUM(AB117:AB118)-AB117) -> 0 | AC116: =nerr(SUM(AC117:AC118)-AC117) -> 0 | AH116: =nerr(SUM(AH117:AH118)-AH117) -> 0 | AM116: =nerr(SUM(AM117:AM118)-AM117) -> 0
D117: 1.6.1.1.1.0 | F117: =nerr(SUM(G117:J117)) -> 0 | K117: =nerr(SUM(L117:O117)) -> 0 | P117: =nerr(SUM(Q117:T117)) -> 0 | U117: =nerr(SUM(V117:Y117)) -> 0
C119: + | D119: 1.6.1.1.2 | E119: ВЛЭП 35 кВ (СН1) | F119: =nerr(SUM(F120:F121)-F120) -> 0 | G119: 0 | H119: 0 | I119: 0 | J119: 0 | K119: 0 | L119: 0 | M119: 0 | N119: 0 | O119: 0 | P119: 0 | Q119: 0 | R119: 0 | S119: 0 | T119: 0 | U119: 0 | V119: 0 | W119: 0 | X119: 0 | Y119: 0 | AB119: =nerr(SUM(AB120:AB121)-AB120) -> 0 | AC119: =nerr(SUM(AC120:AC121)-AC120) -> 0 | AH119: =nerr(SUM(AH120:AH121)-AH120) -> 0 | AM119: =nerr(SUM(AM120:AM121)-AM120) -> 0
D120: 1.6.1.1.2.0 | F120: =nerr(SUM(G120:J120)) -> 0 | K120: =nerr(SUM(L120:O120)) -> 0 | P120: =nerr(SUM(Q120:T120)) -> 0 | U120: =nerr(SUM(V120:Y120)) -> 0
C122: + | D122: 1.6.1.1.3 | E122: ВЛЭП 1-20 кВ (СН2) | F122: =nerr(SUM(F123:F124)-F123) -> 0 | G122: 0 | H122: 0 | I122: 0 | J122: 0 | K122: 0 | L122: 0 | M122: 0 | N122: 0 | O122: 0 | P122: 0 | Q122: 0 | R122: 0 | S122: 0 | T122: 0 | U122: 0 | V122: 0 | W122: 0 | X122: 0 | Y122: 0 | AB122: =nerr(SUM(AB123:AB124)-AB123) -> 0 | AC122: =nerr(SUM(AC123:AC124)-AC123) -> 0 | AH122: =nerr(SUM(AH123:AH124)-AH123) -> 0 | AM122: =nerr(SUM(AM123:AM124)-AM123) -> 0
D123: 1.6.1.1.3.0 | F123: =nerr(SUM(G123:J123)) -> 0 | K123: =nerr(SUM(L123:O123)) -> 0 | P123: =nerr(SUM(Q123:T123)) -> 0 | U123: =nerr(SUM(V123:Y123)) -> 0
C125: + | D125: 1.6.1.1.4 | E125: ВЛЭП 0,4 кВ (НН) | F125: =nerr(SUM(F126:F127)-F126) -> 0 | G125: 0 | H125: 0 | I125: 0 | J125: 0 | K125: 0 | L125: 0 | M125: 0 | N125: 0 | O125: 0 | P125: 0 | Q125: 0 | R125: 0 | S125: 0 | T125: 0 | U125: 0 | V125: 0 | W125: 0 | X125: 0 | Y125: 0 | AB125: =nerr(SUM(AB126:AB127)-AB126) -> 0 | AC125: =nerr(SUM(AC126:AC127)-AC126) -> 0 | AH125: =nerr(SUM(AH126:AH127)-AH126) -> 0 | AM125: =nerr(SUM(AM126:AM127)-AM126) -> 0
D126: 1.6.1.1.4.0 | F126: =nerr(SUM(G126:J126)) -> 0 | K126: =nerr(SUM(L126:O126)) -> 0 | P126: =nerr(SUM(Q126:T126)) -> 0 | U126: =nerr(SUM(V126:Y126)) -> 0
C128: + | D128: 1.6.1.2 | E128: Кабельные линии | F128: =F129+F132+F135+F138 -> 0 | G128: 0 | H128: 0 | I128: 0 | J128: 0 | K128: 0 | L128: 0 | M128: 0 | N128: 0 | O128: 0 | P128: 0 | Q128: 0 | R128: 0 | S128: 0 | T128: 0 | U128: 0 | V128: 0 | W128: 0 | X128: 0 | Y128: 0 | AB128: =AB129+AB132+AB135+AB138 -> 0 | AC128: =AC129+AC132+AC135+AC138 -> 0 | AH128: =AH129+AH132+AH135+AH138 -> 0 | AM128: =AM129+AM132+AM135+AM138 -> 0
C129: + | D129: 1.6.1.2.1 | E129: КЛЭП 110 кВ (ВН) | F129: =nerr(SUM(F130:F131)-F130) -> 0 | G129: 0 | H129: 0 | I129: 0 | J129: 0 | K129: 0 | L129: 0 | M129: 0 | N129: 0 | O129: 0 | P129: 0 | Q129: 0 | R129: 0 | S129: 0 | T129: 0 | U129: 0 | V129: 0 | W129: 0 | X129: 0 | Y129: 0 | AB129: =nerr(SUM(AB130:AB131)-AB130) -> 0 | AC129: =nerr(SUM(AC130:AC131)-AC130) -> 0 | AH129: =nerr(SUM(AH130:AH131)-AH130) -> 0 | AM129: =nerr(SUM(AM130:AM131)-AM130) -> 0
D130: 1.6.1.2.1.0 | F130: =nerr(SUM(G130:J130)) -> 0 | K130: =nerr(SUM(L130:O130)) -> 0 | P130: =nerr(SUM(Q130:T130)) -> 0 | U130: =nerr(SUM(V130:Y130)) -> 0
C132: + | D132: 1.6.1.2.2 | E132: КЛЭП 20-35 кВ (СН1) | F132: =nerr(SUM(F133:F134)-F133) -> 0 | G132: 0 | H132: 0 | I132: 0 | J132: 0 | K132: 0 | L132: 0 | M132: 0 | N132: 0 | O132: 0 | P132: 0 | Q132: 0 | R132: 0 | S132: 0 | T132: 0 | U132: 0 | V132: 0 | W132: 0 | X132: 0 | Y132: 0 | AB132: =nerr(SUM(AB133:AB134)-AB133) -> 0 | AC132: =nerr(SUM(AC133:AC134)-AC133) -> 0 | AH132: =nerr(SUM(AH133:AH134)-AH133) -> 0 | AM132: =nerr(SUM(AM133:AM134)-AM133) -> 0
D133: 1.6.1.2.2.0 | F133: =nerr(SUM(G133:J133)) -> 0 | K133: =nerr(SUM(L133:O133)) -> 0 | P133: =nerr(SUM(Q133:T133)) -> 0 | U133: =nerr(SUM(V133:Y133)) -> 0
C135: + | D135: 1.6.1.2.3 | E135: КЛЭП 3-10 кВ (СН2) | F135: =nerr(SUM(F136:F137)-F136) -> 0 | G135: 0 | H135: 0 | I135: 0 | J135: 0 | K135: 0 | L135: 0 | M135: 0 | N135: 0 | O135: 0 | P135: 0 | Q135: 0 | R135: 0 | S135: 0 | T135: 0 | U135: 0 | V135: 0 | W135: 0 | X135: 0 | Y135: 0 | AB135: =nerr(SUM(AB136:AB137)-AB136) -> 0 | AC135: =nerr(SUM(AC136:AC137)-AC136) -> 0 | AH135: =nerr(SUM(AH136:AH137)-AH136) -> 0 | AM135: =nerr(SUM(AM136:AM137)-AM136) -> 0
D136: 1.6.1.2.3.0 | F136: =nerr(SUM(G136:J136)) -> 0 | K136: =nerr(SUM(L136:O136)) -> 0 | P136: =nerr(SUM(Q136:T136)) -> 0 | U136: =nerr(SUM(V136:Y136)) -> 0
C138: + | D138: 1.6.1.2.4 | E138: КЛЭП до 1 кВ (НН) | F138: =nerr(SUM(F139:F140)-F139) -> 0 | G138: 0 | H138: 0 | I138: 0 | J138: 0 | K138: 0 | L138: 0 | M138: 0 | N138: 0 | O138: 0 | P138: 0 | Q138: 0 | R138: 0 | S138: 0 | T138: 0 | U138: 0 | V138: 0 | W138: 0 | X138: 0 | Y138: 0 | AB138: =nerr(SUM(AB139:AB140)-AB139) -> 0 | AC138: =nerr(SUM(AC139:AC140)-AC139) -> 0 | AH138: =nerr(SUM(AH139:AH140)-AH139) -> 0 | AM138: =nerr(SUM(AM139:AM140)-AM139) -> 0
D139: 1.6.1.2.4.0 | F139: =nerr(SUM(G139:J139)) -> 0 | K139: =nerr(SUM(L139:O139)) -> 0 | P139: =nerr(SUM(Q139:T139)) -> 0 | U139: =nerr(SUM(V139:Y139)) -> 0
C141: + | D141: 1.6.2 | E141: Подстанции | F141: =F142+F145+F148 -> 0 | G141: 0 | H141: 0 | I141: 0 | J141: 0 | K141: 0 | L141: 0 | M141: 0 | N141: 0 | O141: 0 | P141: 0 | Q141: 0 | R141: 0 | S141: 0 | T141: 0 | U141: 0 | V141: 0 | W141: 0 | X141: 0 | Y141: 0 | AB141: =AB142+AB145+AB148 -> 0 | AC141: =AC142+AC145+AC148 -> 0 | AH141: =AH142+AH145+AH148 -> 0 | AM141: =AM142+AM145+AM148 -> 0
C142: + | D142: 1.6.2.1 | E142: Уровень входящего напряжения ВН | F142: =nerr(SUM(F143:F144)-F143) -> 0 | G142: 0 | H142: 0 | I142: 0 | J142: 0 | K142: 0 | L142: 0 | M142: 0 | N142: 0 | O142: 0 | P142: 0 | Q142: 0 | R142: 0 | S142: 0 | T142: 0 | U142: 0 | V142: 0 | W142: 0 | X142: 0 | Y142: 0 | AB142: =nerr(SUM(AB143:AB144)-AB143) -> 0 | AC142: =nerr(SUM(AC143:AC144)-AC143) -> 0 | AH142: =nerr(SUM(AH143:AH144)-AH143) -> 0 | AM142: =nerr(SUM(AM143:AM144)-AM143) -> 0
D143: 1.6.2.1.0 | F143: =nerr(SUM(G143:J143)) -> 0 | K143: =nerr(SUM(L143:O143)) -> 0 | P143: =nerr(SUM(Q143:T143)) -> 0 | U143: =nerr(SUM(V143:Y143)) -> 0
C145: + | D145: 1.6.2.2 | E145: Уровень входящего напряжения СН1 | F145: =nerr(SUM(F146:F147)-F146) -> 0 | G145: 0 | H145: 0 | I145: 0 | J145: 0 | K145: 0 | L145: 0 | M145: 0 | N145: 0 | O145: 0 | P145: 0 | Q145: 0 | R145: 0 | S145: 0 | T145: 0 | U145: 0 | V145: 0 | W145: 0 | X145: 0 | Y145: 0 | AB145: =nerr(SUM(AB146:AB147)-AB146) -> 0 | AC145: =nerr(SUM(AC146:AC147)-AC146) -> 0 | AH145: =nerr(SUM(AH146:AH147)-AH146) -> 0 | AM145: =nerr(SUM(AM146:AM147)-AM146) -> 0
D146: 1.6.2.2.0 | F146: =nerr(SUM(G146:J146)) -> 0 | K146: =nerr(SUM(L146:O146)) -> 0 | P146: =nerr(SUM(Q146:T146)) -> 0 | U146: =nerr(SUM(V146:Y146)) -> 0
C148: + | D148: 1.6.2.3 | E148: Уровень входящего напряжения СН2 | F148: =nerr(SUM(F149:F150)-F149) -> 0 | G148: 0 | H148: 0 | I148: 0 | J148: 0 | K148: 0 | L148: 0 | M148: 0 | N148: 0 | O148: 0 | P148: 0 | Q148: 0 | R148: 0 | S148: 0 | T148: 0 | U148: 0 | V148: 0 | W148: 0 | X148: 0 | Y148: 0 | AB148: =nerr(SUM(AB149:AB150)-AB149) -> 0 | AC148: =nerr(SUM(AC149:AC150)-AC149) -> 0 | AH148: =nerr(SUM(AH149:AH150)-AH149) -> 0 | AM148: =nerr(SUM(AM149:AM150)-AM149) -> 0
D149: 1.6.2.3.0 | F149: =nerr(SUM(G149:J149)) -> 0 | K149: =nerr(SUM(L149:O149)) -> 0 | P149: =nerr(SUM(Q149:T149)) -> 0 | U149: =nerr(SUM(V149:Y149)) -> 0
C151: + | D151: 1.6.3 | E151: Прочие электросетевые объекты | F151: =nerr(SUM(F152:F153)-F152) -> 0 | G151: 0 | H151: 0 | I151: 0 | J151: 0 | K151: 0 | L151: 0 | M151: 0 | N151: 0 | O151: 0 | P151: 0 | Q151: 0 | R151: 0 | S151: 0 | T151: 0 | U151: 0 | V151: 0 | W151: 0 | X151: 0 | Y151: 0 | AB151: =nerr(SUM(AB152:AB153)-AB152) -> 0 | AC151: =nerr(SUM(AC152:AC153)-AC152) -> 0 | AH151: =nerr(SUM(AH152:AH153)-AH152) -> 0 | AM151: =nerr(SUM(AM152:AM153)-AM152) -> 0
D152: 1.6.3.0 | F152: =nerr(SUM(G152:J152)) -> 0 | K152: =nerr(SUM(L152:O152)) -> 0 | P152: =nerr(SUM(Q152:T152)) -> 0 | U152: =nerr(SUM(V152:Y152)) -> 0
D154: 2 | E154: Новое строительство | F154: =F155+F196+F237 -> 0 | G154: 0 | H154: 0 | I154: 0 | J154: 0 | K154: 0 | L154: 0 | M154: 0 | N154: 0 | O154: 0 | P154: 0 | Q154: 0 | R154: 0 | S154: 0 | T154: 0 | U154: 0 | V154: 0 | W154: 0 | X154: 0 | Y154: 0 | AB154: =AB155+AB196+AB237 -> 0 | AC154: =AC155+AC196+AC237 -> 0 | AH154: =AH155+AH196+AH237 -> 0 | AM154: =AM155+AM196+AM237 -> 0
C155: + | D155: 2.1 | E155: Энергосбережение и повышение энергетической эффективности | F155: =F156+F183+F193 -> 0 | G155: 0 | H155: 0 | I155: 0 | J155: 0 | K155: 0 | L155: 0 | M155: 0 | N155: 0 | O155: 0 | P155: 0 | Q155: 0 | R155: 0 | S155: 0 | T155: 0 | U155: 0 | V155: 0 | W155: 0 | X155: 0 | Y155: 0 | AB155: =AB156+AB183+AB193 -> 0 | AC155: =AC156+AC183+AC193 -> 0 | AH155: =AH156+AH183+AH193 -> 0 | AM155: =AM156+AM183+AM193 -> 0
C156: + | D156: 2.1.1 | E156: Электрические линии | F156: =F157+F170 -> 0 | G156: 0 | H156: 0 | I156: 0 | J156: 0 | K156: 0 | L156: 0 | M156: 0 | N156: 0 | O156: 0 | P156: 0 | Q156: 0 | R156: 0 | S156: 0 | T156: 0 | U156: 0 | V156: 0 | W156: 0 | X156: 0 | Y156: 0 | AB156: =AB157+AB170 -> 0 | AC156: =AC157+AC170 -> 0 | AH156: =AH157+AH170 -> 0 | AM156: =AM157+AM170 -> 0
C157: + | D157: 2.1.1.1 | E157: Воздушные линии | F157: =F158+F161+F164+F167 -> 0 | G157: 0 | H157: 0 | I157: 0 | J157: 0 | K157: 0 | L157: 0 | M157: 0 | N157: 0 | O157: 0 | P157: 0 | Q157: 0 | R157: 0 | S157: 0 | T157: 0 | U157: 0 | V157: 0 | W157: 0 | X157: 0 | Y157: 0 | AB157: =AB158+AB161+AB164+AB167 -> 0 | AC157: =AC158+AC161+AC164+AC167 -> 0 | AH157: =AH158+AH161+AH164+AH167 -> 0 | AM157: =AM158+AM161+AM164+AM167 -> 0
C158: + | D158: 2.1.1.1.1 | E158: ВЛЭП 110-220 кВ (ВН) | F158: =nerr(SUM(F159:F160)-F159) -> 0 | G158: 0 | H158: 0 | I158: 0 | J158: 0 | K158: 0 | L158: 0 | M158: 0 | N158: 0 | O158: 0 | P158: 0 | Q158: 0 | R158: 0 | S158: 0 | T158: 0 | U158: 0 | V158: 0 | W158: 0 | X158: 0 | Y158: 0 | AB158: =nerr(SUM(AB159:AB160)-AB159) -> 0 | AC158: =nerr(SUM(AC159:AC160)-AC159) -> 0 | AH158: =nerr(SUM(AH159:AH160)-AH159) -> 0 | AM158: =nerr(SUM(AM159:AM160)-AM159) -> 0
D159: 2.1.1.1.1.0 | F159: =nerr(SUM(G159:J159)) -> 0 | K159: =nerr(SUM(L159:O159)) -> 0 | P159: =nerr(SUM(Q159:T159)) -> 0 | U159: =nerr(SUM(V159:Y159)) -> 0
C161: + | D161: 2.1.1.1.2 | E161: ВЛЭП 35 кВ (СН1) | F161: =nerr(SUM(F162:F163)-F162) -> 0 | G161: 0 | H161: 0 | I161: 0 | J161: 0 | K161: 0 | L161: 0 | M161: 0 | N161: 0 | O161: 0 | P161: 0 | Q161: 0 | R161: 0 | S161: 0 | T161: 0 | U161: 0 | V161: 0 | W161: 0 | X161: 0 | Y161: 0 | AB161: =nerr(SUM(AB162:AB163)-AB162) -> 0 | AC161: =nerr(SUM(AC162:AC163)-AC162) -> 0 | AH161: =nerr(SUM(AH162:AH163)-AH162) -> 0 | AM161: =nerr(SUM(AM162:AM163)-AM162) -> 0
D162: 2.1.1.1.2.0 | F162: =nerr(SUM(G162:J162)) -> 0 | K162: =nerr(SUM(L162:O162)) -> 0 | P162: =nerr(SUM(Q162:T162)) -> 0 | U162: =nerr(SUM(V162:Y162)) -> 0
C164: + | D164: 2.1.1.1.3 | E164: ВЛЭП 1-20 кВ (СН2) | F164: =nerr(SUM(F165:F166)-F165) -> 0 | G164: 0 | H164: 0 | I164: 0 | J164: 0 | K164: 0 | L164: 0 | M164: 0 | N164: 0 | O164: 0 | P164: 0 | Q164: 0 | R164: 0 | S164: 0 | T164: 0 | U164: 0 | V164: 0 | W164: 0 | X164: 0 | Y164: 0 | AB164: =nerr(SUM(AB165:AB166)-AB165) -> 0 | AC164: =nerr(SUM(AC165:AC166)-AC165) -> 0 | AH164: =nerr(SUM(AH165:AH166)-AH165) -> 0 | AM164: =nerr(SUM(AM165:AM166)-AM165) -> 0
D165: 2.1.1.1.3.0 | F165: =nerr(SUM(G165:J165)) -> 0 | K165: =nerr(SUM(L165:O165)) -> 0 | P165: =nerr(SUM(Q165:T165)) -> 0 | U165: =nerr(SUM(V165:Y165)) -> 0
C167: + | D167: 2.1.1.1.4 | E167: ВЛЭП 0,4 кВ (НН) | F167: =nerr(SUM(F168:F169)-F168) -> 0 | G167: 0 | H167: 0 | I167: 0 | J167: 0 | K167: 0 | L167: 0 | M167: 0 | N167: 0 | O167: 0 | P167: 0 | Q167: 0 | R167: 0 | S167: 0 | T167: 0 | U167: 0 | V167: 0 | W167: 0 | X167: 0 | Y167: 0 | AB167: =nerr(SUM(AB168:AB169)-AB168) -> 0 | AC167: =nerr(SUM(AC168:AC169)-AC168) -> 0 | AH167: =nerr(SUM(AH168:AH169)-AH168) -> 0 | AM167: =nerr(SUM(AM168:AM169)-AM168) -> 0
D168: 2.1.1.1.4.0 | F168: =nerr(SUM(G168:J168)) -> 0 | K168: =nerr(SUM(L168:O168)) -> 0 | P168: =nerr(SUM(Q168:T168)) -> 0 | U168: =nerr(SUM(V168:Y168)) -> 0
C170: + | D170: 2.1.1.2 | E170: Кабельные линии | F170: =F171+F174+F177+F180 -> 0 | G170: 0 | H170: 0 | I170: 0 | J170: 0 | K170: 0 | L170: 0 | M170: 0 | N170: 0 | O170: 0 | P170: 0 | Q170: 0 | R170: 0 | S170: 0 | T170: 0 | U170: 0 | V170: 0 | W170: 0 | X170: 0 | Y170: 0 | AB170: =AB171+AB174+AB177+AB180 -> 0 | AC170: =AC171+AC174+AC177+AC180 -> 0 | AH170: =AH171+AH174+AH177+AH180 -> 0 | AM170: =AM171+AM174+AM177+AM180 -> 0
C171: + | D171: 2.1.1.2.1 | E171: КЛЭП 110 кВ (ВН) | F171: =nerr(SUM(F172:F173)-F172) -> 0 | G171: 0 | H171: 0 | I171: 0 | J171: 0 | K171: 0 | L171: 0 | M171: 0 | N171: 0 | O171: 0 | P171: 0 | Q171: 0 | R171: 0 | S171: 0 | T171: 0 | U171: 0 | V171: 0 | W171: 0 | X171: 0 | Y171: 0 | AB171: =nerr(SUM(AB172:AB173)-AB172) -> 0 | AC171: =nerr(SUM(AC172:AC173)-AC172) -> 0 | AH171: =nerr(SUM(AH172:AH173)-AH172) -> 0 | AM171: =nerr(SUM(AM172:AM173)-AM172) -> 0
D172: 2.1.1.2.1.0 | F172: =nerr(SUM(G172:J172)) -> 0 | K172: =nerr(SUM(L172:O172)) -> 0 | P172: =nerr(SUM(Q172:T172)) -> 0 | U172: =nerr(SUM(V172:Y172)) -> 0
C174: + | D174: 2.1.1.2.2 | E174: КЛЭП 20-35 кВ (СН1) | F174: =nerr(SUM(F175:F176)-F175) -> 0 | G174: 0 | H174: 0 | I174: 0 | J174: 0 | K174: 0 | L174: 0 | M174: 0 | N174: 0 | O174: 0 | P174: 0 | Q174: 0 | R174: 0 | S174: 0 | T174: 0 | U174: 0 | V174: 0 | W174: 0 | X174: 0 | Y174: 0 | AB174: =nerr(SUM(AB175:AB176)-AB175) -> 0 | AC174: =nerr(SUM(AC175:AC176)-AC175) -> 0 | AH174: =nerr(SUM(AH175:AH176)-AH175) -> 0 | AM174: =nerr(SUM(AM175:AM176)-AM175) -> 0
D175: 2.1.1.2.2.0 | F175: =nerr(SUM(G175:J175)) -> 0 | K175: =nerr(SUM(L175:O175)) -> 0 | P175: =nerr(SUM(Q175:T175)) -> 0 | U175: =nerr(SUM(V175:Y175)) -> 0
C177: + | D177: 2.1.1.2.3 | E177: КЛЭП 3-10 кВ (СН2) | F177: =nerr(SUM(F178:F179)-F178) -> 0 | G177: 0 | H177: 0 | I177: 0 | J177: 0 | K177: 0 | L177: 0 | M177: 0 | N177: 0 | O177: 0 | P177: 0 | Q177: 0 | R177: 0 | S177: 0 | T177: 0 | U177: 0 | V177: 0 | W177: 0 | X177: 0 | Y177: 0 | AB177: =nerr(SUM(AB178:AB179)-AB178) -> 0 | AC177: =nerr(SUM(AC178:AC179)-AC178) -> 0 | AH177: =nerr(SUM(AH178:AH179)-AH178) -> 0 | AM177: =nerr(SUM(AM178:AM179)-AM178) -> 0
D178: 2.1.1.2.3.0 | F178: =nerr(SUM(G178:J178)) -> 0 | K178: =nerr(SUM(L178:O178)) -> 0 | P178: =nerr(SUM(Q178:T178)) -> 0 | U178: =nerr(SUM(V178:Y178)) -> 0
C180: + | D180: 2.1.1.2.4 | E180: КЛЭП до 1 кВ (НН) | F180: =nerr(SUM(F181:F182)-F181) -> 0 | G180: 0 | H180: 0 | I180: 0 | J180: 0 | K180: 0 | L180: 0 | M180: 0 | N180: 0 | O180: 0 | P180: 0 | Q180: 0 | R180: 0 | S180: 0 | T180: 0 | U180: 0 | V180: 0 | W180: 0 | X180: 0 | Y180: 0 | AB180: =nerr(SUM(AB181:AB182)-AB181) -> 0 | AC180: =nerr(SUM(AC181:AC182)-AC181) -> 0 | AH180: =nerr(SUM(AH181:AH182)-AH181) -> 0 | AM180: =nerr(SUM(AM181:AM182)-AM181) -> 0
D181: 2.1.1.2.4.0 | F181: =nerr(SUM(G181:J181)) -> 0 | K181: =nerr(SUM(L181:O181)) -> 0 | P181: =nerr(SUM(Q181:T181)) -> 0 | U181: =nerr(SUM(V181:Y181)) -> 0
C183: + | D183: 2.1.2 | E183: Подстанции | F183: =F184+F187+F190 -> 0 | G183: 0 | H183: 0 | I183: 0 | J183: 0 | K183: 0 | L183: 0 | M183: 0 | N183: 0 | O183: 0 | P183: 0 | Q183: 0 | R183: 0 | S183: 0 | T183: 0 | U183: 0 | V183: 0 | W183: 0 | X183: 0 | Y183: 0 | AB183: =AB184+AB187+AB190 -> 0 | AC183: =AC184+AC187+AC190 -> 0 | AH183: =AH184+AH187+AH190 -> 0 | AM183: =AM184+AM187+AM190 -> 0
C184: + | D184: 2.1.2.1 | E184: Уровень входящего напряжения ВН | F184: =nerr(SUM(F185:F186)-F185) -> 0 | G184: 0 | H184: 0 | I184: 0 | J184: 0 | K184: 0 | L184: 0 | M184: 0 | N184: 0 | O184: 0 | P184: 0 | Q184: 0 | R184: 0 | S184: 0 | T184: 0 | U184: 0 | V184: 0 | W184: 0 | X184: 0 | Y184: 0 | AB184: =nerr(SUM(AB185:AB186)-AB185) -> 0 | AC184: =nerr(SUM(AC185:AC186)-AC185) -> 0 | AH184: =nerr(SUM(AH185:AH186)-AH185) -> 0 | AM184: =nerr(SUM(AM185:AM186)-AM185) -> 0
D185: 2.1.2.1.0 | F185: =nerr(SUM(G185:J185)) -> 0 | K185: =nerr(SUM(L185:O185)) -> 0 | P185: =nerr(SUM(Q185:T185)) -> 0 | U185: =nerr(SUM(V185:Y185)) -> 0
C187: + | D187: 2.1.2.2 | E187: Уровень входящего напряжения СН1 | F187: =nerr(SUM(F188:F189)-F188) -> 0 | G187: 0 | H187: 0 | I187: 0 | J187: 0 | K187: 0 | L187: 0 | M187: 0 | N187: 0 | O187: 0 | P187: 0 | Q187: 0 | R187: 0 | S187: 0 | T187: 0 | U187: 0 | V187: 0 | W187: 0 | X187: 0 | Y187: 0 | AB187: =nerr(SUM(AB188:AB189)-AB188) -> 0 | AC187: =nerr(SUM(AC188:AC189)-AC188) -> 0 | AH187: =nerr(SUM(AH188:AH189)-AH188) -> 0 | AM187: =nerr(SUM(AM188:AM189)-AM188) -> 0
D188: 2.1.2.2.0 | F188: =nerr(SUM(G188:J188)) -> 0 | K188: =nerr(SUM(L188:O188)) -> 0 | P188: =nerr(SUM(Q188:T188)) -> 0 | U188: =nerr(SUM(V188:Y188)) -> 0
C190: + | D190: 2.1.2.3 | E190: Уровень входящего напряжения СН2 | F190: =nerr(SUM(F191:F192)-F191) -> 0 | G190: 0 | H190: 0 | I190: 0 | J190: 0 | K190: 0 | L190: 0 | M190: 0 | N190: 0 | O190: 0 | P190: 0 | Q190: 0 | R190: 0 | S190: 0 | T190: 0 | U190: 0 | V190: 0 | W190: 0 | X190: 0 | Y190: 0 | AB190: =nerr(SUM(AB191:AB192)-AB191) -> 0 | AC190: =nerr(SUM(AC191:AC192)-AC191) -> 0 | AH190: =nerr(SUM(AH191:AH192)-AH191) -> 0 | AM190: =nerr(SUM(AM191:AM192)-AM191) -> 0
D191: 2.1.2.3.0 | F191: =nerr(SUM(G191:J191)) -> 0 | K191: =nerr(SUM(L191:O191)) -> 0 | P191: =nerr(SUM(Q191:T191)) -> 0 | U191: =nerr(SUM(V191:Y191)) -> 0
C193: + | D193: 2.1.3 | E193: Прочие электросетевые объекты | F193: =nerr(SUM(F194:F195)-F194) -> 0 | G193: 0 | H193: 0 | I193: 0 | J193: 0 | K193: 0 | L193: 0 | M193: 0 | N193: 0 | O193: 0 | P193: 0 | Q193: 0 | R193: 0 | S193: 0 | T193: 0 | U193: 0 | V193: 0 | W193: 0 | X193: 0 | Y193: 0 | AB193: =nerr(SUM(AB194:AB195)-AB194) -> 0 | AC193: =nerr(SUM(AC194:AC195)-AC194) -> 0 | AH193: =nerr(SUM(AH194:AH195)-AH194) -> 0 | AM193: =nerr(SUM(AM194:AM195)-AM194) -> 0
D194: 2.1.3.0 | F194: =nerr(SUM(G194:J194)) -> 0 | K194: =nerr(SUM(L194:O194)) -> 0 | P194: =nerr(SUM(Q194:T194)) -> 0 | U194: =nerr(SUM(V194:Y194)) -> 0
C196: + | D196: 2.2 | E196: Исполнение договоров технологического присоединения | F196: =F197+F224+F234 -> 0 | G196: 0 | H196: 0 | I196: 0 | J196: 0 | K196: 0 | L196: 0 | M196: 0 | N196: 0 | O196: 0 | P196: 0 | Q196: 0 | R196: 0 | S196: 0 | T196: 0 | U196: 0 | V196: 0 | W196: 0 | X196: 0 | Y196: 0 | AB196: =AB197+AB224+AB234 -> 0 | AC196: =AC197+AC224+AC234 -> 0 | AH196: =AH197+AH224+AH234 -> 0 | AM196: =AM197+AM224+AM234 -> 0
C197: + | D197: 2.2.1 | E197: Электрические линии | F197: =F198+F211 -> 0 | G197: 0 | H197: 0 | I197: 0 | J197: 0 | K197: 0 | L197: 0 | M197: 0 | N197: 0 | O197: 0 | P197: 0 | Q197: 0 | R197: 0 | S197: 0 | T197: 0 | U197: 0 | V197: 0 | W197: 0 | X197: 0 | Y197: 0 | AB197: =AB198+AB211 -> 0 | AC197: =AC198+AC211 -> 0 | AH197: =AH198+AH211 -> 0 | AM197: =AM198+AM211 -> 0
C198: + | D198: 2.2.1.1 | E198: Воздушные линии | F198: =F199+F202+F205+F208 -> 0 | G198: 0 | H198: 0 | I198: 0 | J198: 0 | K198: 0 | L198: 0 | M198: 0 | N198: 0 | O198: 0 | P198: 0 | Q198: 0 | R198: 0 | S198: 0 | T198: 0 | U198: 0 | V198: 0 | W198: 0 | X198: 0 | Y198: 0 | AB198: =AB199+AB202+AB205+AB208 -> 0 | AC198: =AC199+AC202+AC205+AC208 -> 0 | AH198: =AH199+AH202+AH205+AH208 -> 0 | AM198: =AM199+AM202+AM205+AM208 -> 0
C199: + | D199: 2.2.1.1.1 | E199: ВЛЭП 110-220 кВ (ВН) | F199: =nerr(SUM(F200:F201)-F200) -> 0 | G199: 0 | H199: 0 | I199: 0 | J199: 0 | K199: 0 | L199: 0 | M199: 0 | N199: 0 | O199: 0 | P199: 0 | Q199: 0 | R199: 0 | S199: 0 | T199: 0 | U199: 0 | V199: 0 | W199: 0 | X199: 0 | Y199: 0 | AB199: =nerr(SUM(AB200:AB201)-AB200) -> 0 | AC199: =nerr(SUM(AC200:AC201)-AC200) -> 0 | AH199: =nerr(SUM(AH200:AH201)-AH200) -> 0 | AM199: =nerr(SUM(AM200:AM201)-AM200) -> 0
D200: 2.2.1.1.1.0 | F200: =nerr(SUM(G200:J200)) -> 0 | K200: =nerr(SUM(L200:O200)) -> 0 | P200: =nerr(SUM(Q200:T200)) -> 0 | U200: =nerr(SUM(V200:Y200)) -> 0
C202: + | D202: 2.2.1.1.2 | E202: ВЛЭП 35 кВ (СН1) | F202: =nerr(SUM(F203:F204)-F203) -> 0 | G202: 0 | H202: 0 | I202: 0 | J202: 0 | K202: 0 | L202: 0 | M202: 0 | N202: 0 | O202: 0 | P202: 0 | Q202: 0 | R202: 0 | S202: 0 | T202: 0 | U202: 0 | V202: 0 | W202: 0 | X202: 0 | Y202: 0 | AB202: =nerr(SUM(AB203:AB204)-AB203) -> 0 | AC202: =nerr(SUM(AC203:AC204)-AC203) -> 0 | AH202: =nerr(SUM(AH203:AH204)-AH203) -> 0 | AM202: =nerr(SUM(AM203:AM204)-AM203) -> 0
D203: 2.2.1.1.2.0 | F203: =nerr(SUM(G203:J203)) -> 0 | K203: =nerr(SUM(L203:O203)) -> 0 | P203: =nerr(SUM(Q203:T203)) -> 0 | U203: =nerr(SUM(V203:Y203)) -> 0
C205: + | D205: 2.2.1.1.3 | E205: ВЛЭП 1-20 кВ (СН2) | F205: =nerr(SUM(F206:F207)-F206) -> 0 | G205: 0 | H205: 0 | I205: 0 | J205: 0 | K205: 0 | L205: 0 | M205: 0 | N205: 0 | O205: 0 | P205: 0 | Q205: 0 | R205: 0 | S205: 0 | T205: 0 | U205: 0 | V205: 0 | W205: 0 | X205: 0 | Y205: 0 | AB205: =nerr(SUM(AB206:AB207)-AB206) -> 0 | AC205: =nerr(SUM(AC206:AC207)-AC206) -> 0 | AH205: =nerr(SUM(AH206:AH207)-AH206) -> 0 | AM205: =nerr(SUM(AM206:AM207)-AM206) -> 0
D206: 2.2.1.1.3.0 | F206: =nerr(SUM(G206:J206)) -> 0 | K206: =nerr(SUM(L206:O206)) -> 0 | P206: =nerr(SUM(Q206:T206)) -> 0 | U206: =nerr(SUM(V206:Y206)) -> 0
C208: + | D208: 2.2.1.1.4 | E208: ВЛЭП 0,4 кВ (НН) | F208: =nerr(SUM(F209:F210)-F209) -> 0 | G208: 0 | H208: 0 | I208: 0 | J208: 0 | K208: 0 | L208: 0 | M208: 0 | N208: 0 | O208: 0 | P208: 0 | Q208: 0 | R208: 0 | S208: 0 | T208: 0 | U208: 0 | V208: 0 | W208: 0 | X208: 0 | Y208: 0 | AB208: =nerr(SUM(AB209:AB210)-AB209) -> 0 | AC208: =nerr(SUM(AC209:AC210)-AC209) -> 0 | AH208: =nerr(SUM(AH209:AH210)-AH209) -> 0 | AM208: =nerr(SUM(AM209:AM210)-AM209) -> 0
D209: 2.2.1.1.4.0 | F209: =nerr(SUM(G209:J209)) -> 0 | K209: =nerr(SUM(L209:O209)) -> 0 | P209: =nerr(SUM(Q209:T209)) -> 0 | U209: =nerr(SUM(V209:Y209)) -> 0
C211: + | D211: 2.2.1.2 | E211: Кабельные линии | F211: =F212+F215+F218+F221 -> 0 | G211: 0 | H211: 0 | I211: 0 | J211: 0 | K211: 0 | L211: 0 | M211: 0 | N211: 0 | O211: 0 | P211: 0 | Q211: 0 | R211: 0 | S211: 0 | T211: 0 | U211: 0 | V211: 0 | W211: 0 | X211: 0 | Y211: 0 | AB211: =AB212+AB215+AB218+AB221 -> 0 | AC211: =AC212+AC215+AC218+AC221 -> 0 | AH211: =AH212+AH215+AH218+AH221 -> 0 | AM211: =AM212+AM215+AM218+AM221 -> 0
C212: + | D212: 2.2.1.2.1 | E212: КЛЭП 110 кВ (ВН) | F212: =nerr(SUM(F213:F214)-F213) -> 0 | G212: 0 | H212: 0 | I212: 0 | J212: 0 | K212: 0 | L212: 0 | M212: 0 | N212: 0 | O212: 0 | P212: 0 | Q212: 0 | R212: 0 | S212: 0 | T212: 0 | U212: 0 | V212: 0 | W212: 0 | X212: 0 | Y212: 0 | AB212: =nerr(SUM(AB213:AB214)-AB213) -> 0 | AC212: =nerr(SUM(AC213:AC214)-AC213) -> 0 | AH212: =nerr(SUM(AH213:AH214)-AH213) -> 0 | AM212: =nerr(SUM(AM213:AM214)-AM213) -> 0
D213: 2.2.1.2.1.0 | F213: =nerr(SUM(G213:J213)) -> 0 | K213: =nerr(SUM(L213:O213)) -> 0 | P213: =nerr(SUM(Q213:T213)) -> 0 | U213: =nerr(SUM(V213:Y213)) -> 0
C215: + | D215: 2.2.1.2.2 | E215: КЛЭП 20-35 кВ (СН1) | F215: =nerr(SUM(F216:F217)-F216) -> 0 | G215: 0 | H215: 0 | I215: 0 | J215: 0 | K215: 0 | L215: 0 | M215: 0 | N215: 0 | O215: 0 | P215: 0 | Q215: 0 | R215: 0 | S215: 0 | T215: 0 | U215: 0 | V215: 0 | W215: 0 | X215: 0 | Y215: 0 | AB215: =nerr(SUM(AB216:AB217)-AB216) -> 0 | AC215: =nerr(SUM(AC216:AC217)-AC216) -> 0 | AH215: =nerr(SUM(AH216:AH217)-AH216) -> 0 | AM215: =nerr(SUM(AM216:AM217)-AM216) -> 0
D216: 2.2.1.2.2.0 | F216: =nerr(SUM(G216:J216)) -> 0 | K216: =nerr(SUM(L216:O216)) -> 0 | P216: =nerr(SUM(Q216:T216)) -> 0 | U216: =nerr(SUM(V216:Y216)) -> 0
C218: + | D218: 2.2.1.2.3 | E218: КЛЭП 3-10 кВ (СН2) | F218: =nerr(SUM(F219:F220)-F219) -> 0 | G218: 0 | H218: 0 | I218: 0 | J218: 0 | K218: 0 | L218: 0 | M218: 0 | N218: 0 | O218: 0 | P218: 0 | Q218: 0 | R218: 0 | S218: 0 | T218: 0 | U218: 0 | V218: 0 | W218: 0 | X218: 0 | Y218: 0 | AB218: =nerr(SUM(AB219:AB220)-AB219) -> 0 | AC218: =nerr(SUM(AC219:AC220)-AC219) -> 0 | AH218: =nerr(SUM(AH219:AH220)-AH219) -> 0 | AM218: =nerr(SUM(AM219:AM220)-AM219) -> 0
D219: 2.2.1.2.3.0 | F219: =nerr(SUM(G219:J219)) -> 0 | K219: =nerr(SUM(L219:O219)) -> 0 | P219: =nerr(SUM(Q219:T219)) -> 0 | U219: =nerr(SUM(V219:Y219)) -> 0
C221: + | D221: 2.2.1.2.4 | E221: КЛЭП до 1 кВ (НН) | F221: =nerr(SUM(F222:F223)-F222) -> 0 | G221: 0 | H221: 0 | I221: 0 | J221: 0 | K221: 0 | L221: 0 | M221: 0 | N221: 0 | O221: 0 | P221: 0 | Q221: 0 | R221: 0 | S221: 0 | T221: 0 | U221: 0 | V221: 0 | W221: 0 | X221: 0 | Y221: 0 | AB221: =nerr(SUM(AB222:AB223)-AB222) -> 0 | AC221: =nerr(SUM(AC222:AC223)-AC222) -> 0 | AH221: =nerr(SUM(AH222:AH223)-AH222) -> 0 | AM221: =nerr(SUM(AM222:AM223)-AM222) -> 0
D222: 2.2.1.2.4.0 | F222: =nerr(SUM(G222:J222)) -> 0 | K222: =nerr(SUM(L222:O222)) -> 0 | P222: =nerr(SUM(Q222:T222)) -> 0 | U222: =nerr(SUM(V222:Y222)) -> 0
C224: + | D224: 2.2.2 | E224: Подстанции | F224: =F225+F228+F231 -> 0 | G224: 0 | H224: 0 | I224: 0 | J224: 0 | K224: 0 | L224: 0 | M224: 0 | N224: 0 | O224: 0 | P224: 0 | Q224: 0 | R224: 0 | S224: 0 | T224: 0 | U224: 0 | V224: 0 | W224: 0 | X224: 0 | Y224: 0 | AB224: =AB225+AB228+AB231 -> 0 | AC224: =AC225+AC228+AC231 -> 0 | AH224: =AH225+AH228+AH231 -> 0 | AM224: =AM225+AM228+AM231 -> 0
C225: + | D225: 2.2.2.1 | E225: Уровень входящего напряжения ВН | F225: =nerr(SUM(F226:F227)-F226) -> 0 | G225: 0 | H225: 0 | I225: 0 | J225: 0 | K225: 0 | L225: 0 | M225: 0 | N225: 0 | O225: 0 | P225: 0 | Q225: 0 | R225: 0 | S225: 0 | T225: 0 | U225: 0 | V225: 0 | W225: 0 | X225: 0 | Y225: 0 | AB225: =nerr(SUM(AB226:AB227)-AB226) -> 0 | AC225: =nerr(SUM(AC226:AC227)-AC226) -> 0 | AH225: =nerr(SUM(AH226:AH227)-AH226) -> 0 | AM225: =nerr(SUM(AM226:AM227)-AM226) -> 0
D226: 2.2.2.1.0 | F226: =nerr(SUM(G226:J226)) -> 0 | K226: =nerr(SUM(L226:O226)) -> 0 | P226: =nerr(SUM(Q226:T226)) -> 0 | U226: =nerr(SUM(V226:Y226)) -> 0
C228: + | D228: 2.2.2.2 | E228: Уровень входящего напряжения СН1 | F228: =nerr(SUM(F229:F230)-F229) -> 0 | G228: 0 | H228: 0 | I228: 0 | J228: 0 | K228: 0 | L228: 0 | M228: 0 | N228: 0 | O228: 0 | P228: 0 | Q228: 0 | R228: 0 | S228: 0 | T228: 0 | U228: 0 | V228: 0 | W228: 0 | X228: 0 | Y228: 0 | AB228: =nerr(SUM(AB229:AB230)-AB229) -> 0 | AC228: =nerr(SUM(AC229:AC230)-AC229) -> 0 | AH228: =nerr(SUM(AH229:AH230)-AH229) -> 0 | AM228: =nerr(SUM(AM229:AM230)-AM229) -> 0
D229: 2.2.2.2.0 | F229: =nerr(SUM(G229:J229)) -> 0 | K229: =nerr(SUM(L229:O229)) -> 0 | P229: =nerr(SUM(Q229:T229)) -> 0 | U229: =nerr(SUM(V229:Y229)) -> 0
C231: + | D231: 2.2.2.3 | E231: Уровень входящего напряжения СН2 | F231: =nerr(SUM(F232:F233)-F232) -> 0 | G231: 0 | H231: 0 | I231: 0 | J231: 0 | K231: 0 | L231: 0 | M231: 0 | N231: 0 | O231: 0 | P231: 0 | Q231: 0 | R231: 0 | S231: 0 | T231: 0 | U231: 0 | V231: 0 | W231: 0 | X231: 0 | Y231: 0 | AB231: =nerr(SUM(AB232:AB233)-AB232) -> 0 | AC231: =nerr(SUM(AC232:AC233)-AC232) -> 0 | AH231: =nerr(SUM(AH232:AH233)-AH232) -> 0 | AM231: =nerr(SUM(AM232:AM233)-AM232) -> 0
D232: 2.2.2.3.0 | F232: =nerr(SUM(G232:J232)) -> 0 | K232: =nerr(SUM(L232:O232)) -> 0 | P232: =nerr(SUM(Q232:T232)) -> 0 | U232: =nerr(SUM(V232:Y232)) -> 0
C234: + | D234: 2.2.3 | E234: Прочие электросетевые объекты | F234: =nerr(SUM(F235:F236)-F235) -> 0 | G234: 0 | H234: 0 | I234: 0 | J234: 0 | K234: 0 | L234: 0 | M234: 0 | N234: 0 | O234: 0 | P234: 0 | Q234: 0 | R234: 0 | S234: 0 | T234: 0 | U234: 0 | V234: 0 | W234: 0 | X234: 0 | Y234: 0 | AB234: =nerr(SUM(AB235:AB236)-AB235) -> 0 | AC234: =nerr(SUM(AC235:AC236)-AC235) -> 0 | AH234: =nerr(SUM(AH235:AH236)-AH235) -> 0 | AM234: =nerr(SUM(AM235:AM236)-AM235) -> 0
D235: 2.2.3.0 | F235: =nerr(SUM(G235:J235)) -> 0 | K235: =nerr(SUM(L235:O235)) -> 0 | P235: =nerr(SUM(Q235:T235)) -> 0 | U235: =nerr(SUM(V235:Y235)) -> 0
C237: + | D237: 2.3 | E237: Прочее новое строительство | F237: =nerr(SUMIF($AO238:$AO240,"=I",F238:F240)-F238) -> 0 | G237: 0 | H237: 0 | I237: 0 | J237: 0 | K237: 0 | L237: 0 | M237: 0 | N237: 0 | O237: 0 | P237: 0 | Q237: 0 | R237: 0 | S237: 0 | T237: 0 | U237: 0 | V237: 0 | W237: 0 | X237: 0 | Y237: 0 | AB237: =nerr(SUMIF($AO238:$AO240,"=I",AB238:AB240)-AB238) -> 0 | AC237: =nerr(SUMIF($AO238:$AO240,"=I",AC238:AC240)-AC238) -> 0 | AH237: =nerr(SUMIF($AO238:$AO240,"=I",AH238:AH240)-AH238) -> 0 | AM237: =nerr(SUMIF($AO238:$AO240,"=I",AM238:AM240)-AM238) -> 0
D238: 2.3.0 | F238: =nerr(SUM(G238:J238)) -> 0 | K238: =nerr(SUM(L238:O238)) -> 0 | P238: =nerr(SUM(Q238:T238)) -> 0 | U238: =nerr(SUM(V238:Y238)) -> 0 | AO238: I
D239: =D238&".1" -> 2.3.0.1 | E239: в том числе ПТП | F239: =nerr(SUM(G239:J239)) -> 0 | K239: =nerr(SUM(L239:O239)) -> 0 | P239: =nerr(SUM(Q239:T239)) -> 0 | U239: =nerr(SUM(V239:Y239)) -> 0
D241: Справочно:
C242: + | D242: 3 | E242: Оплата процентов за привлеченные кредитные ресурсы | F242: =nerr(SUM(F243:F244)-F243) -> 0 | G242: 0 | H242: 0 | I242: 0 | J242: 0 | K242: 0 | L242: 0 | M242: 0 | N242: 0 | O242: 0 | P242: 0 | Q242: 0 | R242: 0 | S242: 0 | T242: 0 | U242: 0 | V242: 0 | W242: 0 | X242: 0 | Y242: 0 | AB242: =nerr(SUM(AB243:AB244)-AB243) -> 0 | AC242: =nerr(SUM(AC243:AC244)-AC243) -> 0 | AH242: =nerr(SUM(AH243:AH244)-AH243) -> 0 | AM242: =nerr(SUM(AM243:AM244)-AM243) -> 0
D243: 3.0 | F243: =nerr(SUM(G243:J243)) -> 0 | K243: =nerr(SUM(L243:O243)) -> 0 | P243: =nerr(SUM(Q243:T243)) -> 0 | U243: =nerr(SUM(V243:Y243)) -> 0
E246: * | F246: С разделением объектов на ПС, ВЛ и КЛ с указанием уровня напряжения.
E247: ** | F247: Согласно проектно-сметной документации с учетом перевода в прогнозные цены планируемого периода (с НДС).

Sheet Ф.8
J1: 2 | K1: 2 | L1: 3 | M1: 3 | N1: 4 | O1: 4
C6: Список листов | P6: Приложение № 8 к Приказу Минэнерго России от 24.03.2010 № 114
P7: Утверждаю руководитель организации
P9: (подпись)
P10: "___" _____________ 20__ года
P11: М.П.
D12: Отчет об источниках финансирования инвестиционных программ, млн. рублей (представляется ежеквартально)
D13: =org & ", Факт за " & otchet_god & " г. " & kvartal -> ООО "Ростсельмашэнерго", Факт за 2015 г. IV квартал
P14: млн.руб
D15: № п/п | E15: Источник финансирования | F15: ="Объем финансирования ("& otchet_god & " год)" -> Объем финансирования (2015 год) | P15: Причины отклонений
F16: Всего | H16: I кв. | J16: II кв. | L16: III кв. | N16: IV кв.
F17: План* | G17: Факт** | H17: План | I17: Факт | J17: План | K17: Факт | L17: План | M17: Факт | N17: План | O17: Факт
D18: 1 | E18: 2 | F18: 3 | G18: 4 | H18: 5 | I18: 6 | J18: 7 | K18: 8 | L18: 9 | M18: 10 | N18: 11 | O18: 12 | P18: 13
D19: 1 | E19: Собственные средства | F19: =nerr(F20+F27+F31+F32+F34) -> 6.892 | G19: 6.883076847 | H19: 0.5099809068 | I19: 0.5099809068 | J19: 1.30629011 | K19: 1.30629011 | L19: 1.151216076 | M19: 1.151216076 | N19: 3.924512907 | O19: 3.915589754 | P19: см.комментарии
D20: 1.1 | E20: Прибыль, направляемая на инвестиции: | F20: =nerr(F21+F22+F23+F26) -> 4.894 | G20: 4.885076847 | H20: 0 | I20: 0 | J20: 0.6243308069 | K20: 0.6243308069 | L20: 0.5435460863 | M20: 0.5435460863 | N20: 3.726123107 | O20: 3.717199954 | P20: см.комментарии
D21: 1.1.1 | E21: в т.ч. инвестиционная составляющая в тарифе | F21: =nerr(H21+J21+L21+N21) -> 4.894 | G21: =nerr(I21+K21+M21+O21) -> 4.885076847 | H21: 0 | I21: 0 | J21: 0.6243308069 | K21: 0.6243308069 | L21: =1.35843497/1.18-L28 -> 0.5435460863 | M21: =1.35843497/1.18-M28 -> 0.5435460863 | N21: =4.894-H21-J21-L21 -> 3.726123107 | O21: =+Ф.7.1!I61/1.18-Ф.8!G27-Ф.8!K21-Ф.8!M21 -> 3.717199954 | P21: см.комментарии
D22: 1.1.2 | E22: в т.ч. прибыль со свободного сектора | F22: =nerr(H22+J22+L22+N22) -> 0 | G22: =nerr(I22+K22+M22+O22) -> 0 | P22: см.комментарии
D23: 1.1.3 | E23: в т.ч. от технологического присоединения (для электросетевых компаний) | F23: =nerr(F24+F25) -> 0 | G23: 0 | H23: 0 | I23: 0 | J23: 0 | K23: 0 | L23: 0 | M23: 0 | N23: 0 | O23: 0 | P23: см.комментарии
D24: 1.1.3.1 | E24: в т.ч. от технологического присоединения генерации | F24: =nerr(H24+J24+L24+N24) -> 0 | G24: 0 | P24: см.комментарии
D25: 1.1.3.2 | E25: в т.ч. от технологического присоединения потребителей | F25: 0 | G25: 0 | P25: см.комментарии
D26: 1.1.4 | E26: Прочая прибыль | F26: 0 | G26: 0 | P26: см.комментарии
D27: 1.2 | E27: Амортизация | F27: =nerr(F28+F29+F30) -> 1.998 | G27: 1.998 | H27: 0.5099809068 | I27: 0.5099809068 | J27: 0.6819593032 | K27: 0.6819593032 | L27: 0.60766999 | M27: 0.60766999 | N27: 0.1983898 | O27: 0.1983898 | P27: см.комментарии
D28: 1.2.1 | E28: Амортизация, учтенная в тарифе | F28: =nerr(H28+J28+L28+N28) -> 1.998 | G28: 1.998 | H28: =0.509980906779661 -> 0.5099809068 | I28: =0.509980906779661 -> 0.5099809068 | J28: =1.19194021-H28 -> 0.6819593032 | K28: =1.19194021-I28 -> 0.6819593032 | L28: =1.7996102-H28-J28 -> 0.60766999 | M28: =1.7996102-I28-K28 -> 0.60766999 | N28: =1.998-H28-J28-L28 -> 0.1983898 | O28: =+N28 -> 0.1983898 | P28: см.комментарии
D29: 1.2.2 | E29: Прочая амортизация | F29: 0 | G29: 0 | P29: см.комментарии
D30: 1.2.3 | E30: Недоиспользованная амортизация прошлых лет | F30: 0 | G30: 0 | P30: см.комментарии
D31: 1.3 | E31: Возврат НДС | F31: 0 | G31: 0 | P31: см.комментарии
D32: 1.4 | E32: Прочие собственные средства | F32: 0 | G32: 0 | P32: см.комментарии
D33: 1.4.1 | E33: в т.ч. средства допэмиссии | F33: 0 | G33: 0 | P33: см.комментарии
D34: 1.5 | E34: Остаток собственных средств на начало года | F34: 0 | G34: 0 | P34: см.комментарии
D35: 2 | E35: Привлеченные средства, в т.ч.: | F35: =nerr(SUM(F36:F42)) -> 0 | G35: 0 | H35: 0 | I35: 0 | J35: 0 | K35: 0 | L35: 0 | M35: 0 | N35: 0 | O35: 0 | P35: см.комментарии
D36: 2.1 | E36: Кредиты | F36: =nerr(H36+J36+L36+N36) -> 0 | G36: 0 | P36: см.комментарии
D37: 2.2 | E37: Облигационные займы | F37: 0 | G37: 0 | P37: см.комментарии
D38: 2.3 | E38: Займы организаций | F38: 0 | G38: 0 | P38: см.комментарии
D39: 2.4 | E39: Бюджетное финансирование | F39: 0 | G39: 0 | P39: см.комментарии
D40: 2.5 | E40: Средства внешних инвесторов | F40: 0 | G40: 0 | P40: см.комментарии
D41: 2.6 | E41: Использование лизинга | F41: 0 | G41: 0 | P41: см.комментарии
D42: 2.7 | E42: Прочие привлеченные средства | F42: 0 | G42: 0 | P42: см.комментарии
E43: ВСЕГО источников финансирования | F43: =nerr(F19+F35) -> 6.892 | G43: 6.883076847 | H43: 0.5099809068 | I43: 0.5099809068 | J43: 1.30629011 | K43: 1.30629011 | L43: 1.151216076 | M43: 1.151216076 | N43: 3.924512907 | O43: 3.915589754 | P43: см.комментарии
E44: для ОГК/ТГК, в том числе | F44: =nerr(F45+F46) -> 0 | G44: 0 | H44: 0 | I44: 0 | J44: 0 | K44: 0 | L44: 0 | M44: 0 | N44: 0 | O44: 0 | P44: см.комментарии
E45: ДПМ | F45: =nerr(H45+J45+L45+N45) -> 0 | G45: =nerr(I45+K45+M45+O45) -> 0 | P45: см.комментарии
E46: вне ДПМ | F46: =nerr(H46+J46+L46+N46) -> 0 | G46: =nerr(I46+K46+M46+O46) -> 0 | P46: см.комментарии
D48: * | E48: План в соответствии с утвержденной инвестиционной программой.
D49: ** | E49: Накопленным итогом за год.

Sheet Ф.9
G1: 2 | H1: 3 | I1: 4 | L1: 2 | M1: 3 | N1: 4 | Q1: 2 | R1: 3 | S1: 4 | V1: 2 | W1: 3 | X1: 4 | AA1: 2 | AB1: 3 | AC1: 4 | AF1: 2 | AG1: 3 | AH1: 4 | AK1: 2 | AL1: 3 | AM1: 4 | AP1: 2 | AQ1: 3 | AR1: 4 | AU1: 2 | AV1: 3 | AW1: 4 | AZ1: 2 | BA1: 3 | BB1: 4 | BE1: 2 | BF1: 3 | BG1: 4 | BJ1: 2 | BK1: 3 | BL1: 4 | BO1: 2 | BP1: 3 | BQ1: 4 | BT1: 2 | BU1: 3 | BV1: 4 | BY1: 2 | BZ1: 3 | CA1: 4 | CD1: 2 | CE1: 3 | CF1: 4
F2: 1 | G2: 1 | H2: 1 | I2: 1 | K2: 1 | L2: 1 | M2: 1 | N2: 1 | P2: 0 | Q2: 0 | R2: 0 | S2: 0 | U2: 0 | V2: 0 | W2: 0 | X2: 0 | Z2: 1 | AA2: 1 | AB2: 1 | AC2: 1 | AE2: 1 | AF2: 1 | AG2: 1 | AH2: 1 | AJ2: 0 | AK2: 0 | AL2: 0 | AM2: 0 | AO2: 0 | AP2: 0 | AQ2: 0 | AR2: 0 | AT2: 1 | AU2: 1 | AV2: 1 | AW2: 1 | AY2: 1 | AZ2: 1 | BA2: 1 | BB2: 1 | BD2: 0 | BE2: 0 | BF2: 0 | BG2: 0 | BI2: 0 | BJ2: 0 | BK2: 0 | BL2: 0 | BN2: 1 | BO2: 1 | BP2: 1 | BQ2: 1 | BS2: 1 | BT2: 1 | BU2: 1 | BV2: 1 | BX2: 0 | BY2: 0 | BZ2: 0 | CA2: 0 | CC2: 0 | CD2: 0 | CE2: 0 | CF2: 0
C6: Список листов | CH6: Приложение № 9 к Приказу Минэнерго России от 24.03.2010 № 114
CH7: Утверждаю руководитель организации
CH9: (подпись)
CH10: "___" _____________ 20__ года
CH11: М.П.
D12: Отчет о вводах/выводах объектов (представляется ежеквартально)
D13: =org & ", Факт за " & otchet_god & " г. " & kvartal -> ООО "Ростсельмашэнерго", Факт за 2015 г. IV квартал
D15: № п/п | E15: Наименование проекта | F15: Ввод мощностей | AT15: Вывод мощностей
F16: План* | Z16: Факт | AT16: План* | BN16: Факт
F17: МВт | K17: Гкал/ч | P17: км | U17: МВА | Z17: МВт | AE17: Гкал/ч | AJ17: км | AO17: МВА | AT17: МВт | AY17: Гкал/ч | BD17: км | BI17: МВА | BN17: МВт | BS17: Гкал/ч | BX17: км | CC17: МВА
F18: I кв. | G18: II кв. | H18: III кв. | I18: IV кв. | J18: =otchet_god & " г." -> 2015 г. | K18: I кв. | L18: II кв. | M18: III кв. | N18: IV кв. | O18: =otchet_god & " г." -> 2015 г. | P18: I кв. | Q18: II кв. | R18: III кв. | S18: IV кв. | T18: =otchet_god & " г." -> 2015 г. | U18: I кв. | V18: II кв. | W18: III кв. | X18: IV кв. | Y18: =otchet_god & " г." -> 2015 г. | Z18: I кв. | AA18: II кв. | AB18: III кв. | AC18: IV кв. | AD18: =otchet_god & " г." -> 2015 г. | AE18: I кв. | AF18: II кв. | AG18: III кв. | AH18: IV кв. | AI18: =otchet_god & " г." -> 2015 г. | AJ18: I кв. | AK18: II кв. | AL18: III кв. | AM18: IV кв. | AN18: =otchet_god & " г." -> 2015 г. | AO18: I кв. | AP18: II кв. | AQ18: III кв. | AR18: IV кв. | AS18: =otchet_god & " г." -> 2015 г. | AT18: I кв. | AU18: II кв. | AV18: III кв. | AW18: IV кв. | AX18: =otchet_god & " г." -> 2015 г. | AY18: I кв. | AZ18: II кв. | BA18: III кв. | BB18: IV кв. | BC18: =otchet_god & " г." -> 2015 г. | BD18: I кв. | BE18: II кв. | BF18: III кв. | BG18: IV кв. | BH18: =otchet_god & " г." -> 2015 г. | BI18: I кв. | BJ18: II кв. | BK18: III кв. | BL18: IV кв. | BM18: =otchet_god & " г." -> 2015 г. | BN18: I кв. | BO18: II кв. | BP18: III кв. | BQ18: IV кв. | BR18: =otchet_god & " г." -> 2015 г. | BS18: I кв. | BT18: II кв. | BU18: III кв. | BV18: IV кв. | BW18: =otchet_god & " г." -> 2015 г. | BX18: I кв. | BY18: II кв. | BZ18: III кв. | CA18: IV кв. | CB18: =otchet_god & " г." -> 2015 г. | CC18: I кв. | CD18: II кв. | CE18: III кв. | CF18: IV кв. | CG18: =otchet_god & " г." -> 2015 г.
D19: 1 | E19: 2 | F19: 3 | G19: 4 | H19: 5 | I19: 6 | J19: 7 | K19: 8 | L19: 9 | M19: 10 | N19: 11 | O19: 12 | P19: 13 | Q19: 14 | R19: 15 | S19: 16 | T19: 17 | U19: 18 | V19: 19 | W19: 20 | X19: 21 | Y19: 22 | Z19: 23 | AA19: 24 | AB19: 25 | AC19: 26 | AD19: 27 | AE19: 28 | AF19: 29 | AG19: 30 | AH19: 31 | AI19: 32 | AJ19: 33 | AK19: 34 | AL19: 35 | AM19: 36 | AN19: 37 | AO19: 38 | AP19: 39 | AQ19: 40 | AR19: 41 | AS19: 42 | AT19: 43 | AU19: 44 | AV19: 45 | AW19: 46 | AX19: 47 | AY19: 48 | AZ19: 49 | BA19: 50 | BB19: 51 | BC19: 52 | BD19: 53 | BE19: 54 | BF19: 55 | BG19: 56 | BH19: 57 | BI19: 58 | BJ19: 59 | BK19: 60 | BL19: 61 | BM19: 62 | BN19: 63 | BO19: 64 | BP19: 65 | BQ19: 66 | BR19: 67 | BS19: 68 | BT19: 69 | BU19: 70 | BV19: 71 | BW19: 72 | BX19: 73 | BY19: 74 | BZ19: 75 | CA19: 76 | CB19: 77 | CC19: 78 | CD19: 79 | CE19: 80 | CF19: 81 | CG19: 82
A20: _1.1.1.1.1
A21: _1.1.1.1.2
A22: _1.1.1.1.3
A23: _1.1.1.1.4
A24: _1.1.1.2.1
A25: _1.1.1.2.2
A26: _1.1.1.2.3
A27: _1.1.1.2.4
A28: _1.1.2.1
A29: _1.1.2.2
A30: _1.1.2.3
C31: Удалить | D31: =Ф.7.1!$D$61 -> 1.1.3.1 | E31: =Ф.7.1!$E$61 -> Реконструкция ПС 110/6 кВ ГПП-1, ПС 110/6 кВ ГПП-3 | J31: =nerr(SUM(F31:I31)) -> 0 | O31: =nerr(SUM(K31:N31)) -> 0 | P31: 0 | T31: =nerr(SUM(P31:S31)) -> 0 | U31: 0 | Y31: =nerr(SUM(U31:X31)) -> 0 | AD31: =nerr(SUM(Z31:AC31)) -> 0 | AI31: =nerr(SUM(AE31:AH31)) -> 0 | AJ31: 0 | AN31: =nerr(SUM(AJ31:AM31)) -> 0 | AO31: 0 | AS31: =nerr(SUM(AO31:AR31)) -> 0 | AX31: =nerr(SUM(AT31:AW31)) -> 0 | BC31: =nerr(SUM(AY31:BB31)) -> 0 | BD31: 0 | BH31: =nerr(SUM(BD31:BG31)) -> 0 | BI31: 0 | BM31: =nerr(SUM(BI31:BL31)) -> 0 | BR31: =nerr(SUM(BN31:BQ31)) -> 0 | BW31: =nerr(SUM(BS31:BV31)) -> 0 | BX31: 0 | CB31: =nerr(SUM(BX31:CA31)) -> 0 | CC31: 0 | CG31: =nerr(SUM(CC31:CF31)) -> 0
A32: _1.1.3
A33: _1.2.1.1.1
A34: _1.2.1.1.2
A35: _1.2.1.1.3
A36: _1.2.1.1.4
A37: _1.2.1.2.1
A38: _1.2.1.2.2
A39: _1.2.1.2.3
A40: _1.2.1.2.4
A41: _1.2.2.1
A42: _1.2.2.2
A43: _1.2.2.3
A44: _1.2.3
A45: _1.3
A46: _1.4
A47: _1.5
A48: _1.6.1.1.1
A49: _1.6.1.1.2
A50: _1.6.1.1.3
A51: _1.6.1.1.4
A52: _1.6.1.2.1
A53: _1.6.1.2.2
A54: _1.6.1.2.3
A55: _1.6.1.2.4
A56: _1.6.2.1
A57: _1.6.2.2
A58: _1.6.2.3
A59: _1.6.3
A60: _2.1.1.1.1
A61: _2.1.1.1.2
A62: _2.1.1.1.3
A63: _2.1.1.1.4
A64: _2.1.1.2.1
A65: _2.1.1.2.2
A66: _2.1.1.2.3
A67: _2.1.1.2.4
A68: _2.1.2.1
A69: _2.1.2.2
A70: _2.1.2.3
A71: _2.1.3
A72: _2.2.1.1.1
A73: _2.2.1.1.2
A74: _2.2.1.1.3
A75: _2.2.1.1.4
A76: _2.2.1.2.1
A77: _2.2.1.2.2
A78: _2.2.1.2.3
A79: _2.2.1.2.4
A80: _2.2.2.1
A81: _2.2.2.2
A82: _2.2.2.3
A83: _2.2.3
A84: _2.3
A85: _3
D89: * План в соответствии с утвержденной инвестиционной программой.

Sheet Ф.10 (hidden)
A1: 4
C6: Список листов | F6: Приложение № 10 к Приказу Минэнерго России от 24.03.2010 № 114
F7: Утверждаю руководитель организации
F9: (подпись)
F10: "___" _____________ 20__ года
F11: М.П.
D12: Отчет о ходе реализации проектов (заполняется для наиболее значимых проектов *) (представляется ежеквартально)
D13: =org & ", Факт за " & otchet_god & " г. " & kvartal -> ООО "Ростсельмашэнерго", Факт за 2015 г. IV квартал
D15: Наименование объекта | F15: Добавить объект
D16: Местоположение объекта (субъект Российской Федерации, населенный пункт)
D17: Тип проекта
D18: Вводимая мощность (в том числе прирост)
D19: Срок ввода объекта
D20: Фактическая стадия реализации проекта на отчетную дату
D21: Проектная документация
D22: 1. Кем, когда принято решение о строительстве объекта (реквизиты документа)
D23: 2. Кем, когда разработана проектная документация (разработана/не разработана (фактическое состояние), наименование проектной организации, утверждена/не утверждена, год утверждения, реквизиты документа)
D24: 3. Прохождение проектной документацией государственной экспертизы, утверждение документации (утверждена/не утверждена, наименование ведомства, проводящего экспертизу, когда выдано заключение, реквизиты документа **)
D25: Землеотвод
D26: - наличие землеотвода (кем, когда утверждено, реквизиты документа)
D27: Исходно-разрешительная документация
D28: - наличие разрешения на строительство (кем, когда выдано, реквизиты документа)
D29: Прогнозное/проектное топливо (основное и резервное)
D30: Прогнозный объем потребления топлива
D31: Топливообеспечение
D32: Технологическое присоединение объекта к электрической сети:
D33: - заключение договоров на технологическое присоединение (с указанием даты технологического присоединения к электрическим сетям)
D34: - разработка схемы выдачи мощности
D35: - получение технических условий на технологическое присоединение
D36: - договор на реализацию СВМ и график реализации СВМ
D37: ="Сметная стоимость проекта в ценах "& otchet_god &" года" -> Сметная стоимость проекта в ценах 2015 года
D38: Документ, в соответствии с которым определена стоимость проекта
D39: Стоимость по результатам проведенных закупок с НДС, млн. руб.
D40: Объем заключенных на отчетную дату договоров по проекту, млн. руб.
D41: в том числе
D42: - по договорам подряда (в разбивке по каждому подрядчику и по договорам):
D43: ="объем заключенного договора в ценах "& otchet_god &" года" -> объем заключенного договора в ценах 2015 года
D44: % от сметной стоимости проекта
D45: оплачено по договору, млн. руб.
D46: освоено по договору, млн. руб.
D47: - по договорам поставки основного оборудования (в разбивке по каждому поставщику и по договорам):
D48: ="объем заключенного договора в ценах "& otchet_god &" года" -> объем заключенного договора в ценах 2015 года
D49: % от сметной стоимости проекта
D50: оплачено по договору, млн. руб.
D51: освоено по договору, млн. руб.
D52: - по прочим договорам (в разбивке по каждому контрагенту и по договорам)
D53: ="объем заключенного договора в ценах "& otchet_god &" года" -> объем заключенного договора в ценах 2015 года
D54: % от сметной стоимости проекта
D55: оплачено по договору, млн. руб.
D56: освоено по договору, млн. руб.
D57: % законтрактованности объекта непосредственно с изготовителями и поставщиками
D58: в том числе
D59: - СМР, %
D60: - поставка основного оборудования, %
D61: - разработка проектной документации и рабочей документации, %
D62: % оплаты по объекту (предоплата)
D63: всего оплачено по объекту
D64: % освоения по объекту за отчетный период
D65: всего оплачено по объекту
D66: Участники реализации инвестиционного проекта:
D67: - заказчик-застройщик
D68: - проектно-изыскательские организации
D69: - технические агенты
D70: - подрядчики
D71: - поставщики основного оборудования
D72: Перечень субподрядных организаций, участвующих в строительстве объекта
D73: Количество строительно-монтажного персонала на площадке строительства энергообъекта
D74: в том числе
D75: - строительный персонал
D76: - монтажный персонал
D77: Основное оборудование
D78: График поставки основного оборудования
D79: - дата поставки
D80: - задержки в поставке
D81: - причины задержек
D82: Фактическое состояние реализации инвестиционного проекта в срок
D83: Факты и события, влияющие на ход реализации проекта, проблемные вопросы:
D84: - выявленные нарушения договоров подряда,
D85: - рекламации к заводам - изготовителям и поставщикам,
D86: - предписания надзорных органов,
D87: - дефицит источников финансирования и др.,
D88: - другое (расшифровать)
C90: * | D90: Если выполняется любой из нижеперечисленных критериев:
D91: 1. Проекты, финансируемые полностью или частично за счет средств федерального бюджета, и/или включенные в федеральные целевые программы.
D92: 2. Объекты выдачи мощности ТЭС, ГЭС, АЭС.
D93: 3. Генерирующие объекты мощностью свыше 100 МВт.
D94: 4. Проекты, имеющие федеральное значение (объекты энергоснабжения Олимпиады в г. Сочи, саммита АТЭС в г. Владивосток, ВСТО и др.).
D95: 5. Проекты сметной стоимостью свыше 3 млрд. руб. (в текущих ценах с НДС).
D96: 6. Объекты, предусмотренные Генеральной схемой размещения объектов электроэнергетики до 2020 года.
C97: ** | D97: Копии положительного заключения Госэкспертизы по ПСД, сводного сметного расчета необходимо представить в Минэнерго России.

Sheet Ф.11.1
A1: 2
C6: Список листов | M6: Приложение № 11.1 к Приказу Минэнерго России от 24.03.2010 № 114
M7: Утверждаю руководитель организации
M9: (подпись)
M10: "___" _____________ 20__ года
M11: М.П.
D12: Отчет об исполнении сетевых графиков строительства проектов (представляется ежеквартально).
D13: =org & ", Факт за " & otchet_god & " г. " & kvartal -> ООО "Ростсельмашэнерго", Факт за 2015 г. IV квартал
A15: _1.1.1.1.1
A16: _1.1.1.1.2
A17: _1.1.1.1.3
A18: _1.1.1.1.4
A19: _1.1.1.2.1
A20: _1.1.1.2.2
A21: _1.1.1.2.3
A22: _1.1.1.2.4
A23: _1.1.2.1
A24: _1.1.2.2
A25: _1.1.2.3
D26: Наименование инвестиционного проекта | F26: =Ф.7.1!$E$61 -> Реконструкция ПС 110/6 кВ ГПП-1, ПС 110/6 кВ ГПП-3
D28: по состоянию на | F28: 31.12.2015
D30: № пункта укрупненного сетевого графика | E30: Наименование этапов основных работ (с учетом подготовительного периода до начала строительства) по общему сетевому графику* | F30: Сроки выполнения задач по укрупненному сетевому графику | J30: Процент исполнения работ за весь период (%) | K30: Процент выполнения за отчетный период (%) | L30: Причины невыполнения | M30: Предложения по корректирующим мероприятиям по устранению отставания
F31: План | H31: Факт
F32: Начало | G32: Окончание | H32: Начало | I32: Окончание
D33: 1 | E33: 2 | F33: 3 | G33: 4 | H33: 5 | I33: 6 | J33: 7 | K33: 8 | L33: 9 | M33: 10
C34: Удалить | D34: 3 | E34: Сетевое строительство (реконструкция) и пусконаладочные работы | F34: 2015-10-01 | G34: 2015-12-31 | H34: 2015-10-01 | I34: 2015-12-31 | J34: 100 | K34: 100 | L34: нет | M34: нет
C35: Удалить | D35: 3.2 | E35: Поставка основного оборудования | F35: 2015-10-01 | G35: 2015-12-31 | H35: 2015-10-01 | I35: 2015-12-31 | J35: 100 | K35: 100 | L35: нет | M35: нет
C36: Удалить | D36: 3.3 | E36: Монтаж основного оборудования | F36: 2015-10-01 | G36: 2015-12-31 | H36: 2015-10-01 | I36: 2015-12-31 | J36: 100 | K36: 100 | L36: нет | M36: нет
E37: Добавить
A39: _1.1.3
A40: _1.2.1.1.1
A41: _1.2.1.1.2
A42: _1.2.1.1.3
A43: _1.2.1.1.4
A44: _1.2.1.2.1
A45: _1.2.1.2.2
A46: _1.2.1.2.3
A47: _1.2.1.2.4
A48: _1.2.2.1
A49: _1.2.2.2
A50: _1.2.2.3
A51: _1.2.3
A52: _1.3
A53: _1.4
A54: _1.5
A55: _1.6.1.1.1
A56: _1.6.1.1.2
A57: _1.6.1.1.3
A58: _1.6.1.1.4
A59: _1.6.1.2.1
A60: _1.6.1.2.2
A61: _1.6.1.2.3
A62: _1.6.1.2.4
A63: _1.6.2.1
A64: _1.6.2.2
A65: _1.6.2.3
A66: _1.6.3
A67: _2.1.1.1.1
A68: _2.1.1.1.2
A69: _2.1.1.1.3
A70: _2.1.1.1.4
A71: _2.1.1.2.1
A72: _2.1.1.2.2
A73: _2.1.1.2.3
A74: _2.1.1.2.4
A75: _2.1.2.1
A76: _2.1.2.2
A77: _2.1.2.3
A78: _2.1.3
A79: _2.2.1.1.1
A80: _2.2.1.1.2
A81: _2.2.1.1.3
A82: _2.2.1.1.4
A83: _2.2.1.2.1
A84: _2.2.1.2.2
A85: _2.2.1.2.3
A86: _2.2.1.2.4
A87: _2.2.2.1
A88: _2.2.2.2
A89: _2.2.2.3
A90: _2.2.3
A91: _2.3
A92: _3

Sheet Ф.11.2
A1: 2
C6: Список листов | G6: Приложение № 11.2 к Приказу Минэнерго России от 24.03.2010 № 114
G7: Утверждаю руководитель организации
G9: (подпись)
G10: "___" _____________ 20__ года
G11: М.П.
D12: I. Контрольные этапы реализации инвестиционного проекта для генерирующих компаний (представляется ежеквартально)
D13: =org & ", Факт за " & otchet_god & " г. " & kvartal -> ООО "Ростсельмашэнерго", Факт за 2015 г. IV квартал
D15: № п/п | E15: Наименование | F15: Тип
D16: 1 | E16: 2 | F16: 3
D17: 1 | E17: Предпроектный этап
D18: 1.1 | E18: Выбор площадки строительства | F18: событие
D19: 1.2 | E19: Проведение инженерных изысканий на выбранной площадке строительства | F19: работа
D20: 2 | E20: Проектный этап
D21: 2.1 | E21: Заключение договора на разработку ТЭО | F21: событие
D22: 2.2 | E22: Заключение договора на разработку рабочего проекта | F22: работа
D23: 2.3 | E23: Разработка и утверждение ТЭО | F23: событие
D24: 2.4 | E24: Разработка рабочего проекта | F24: работа
D25: 2.5 | E25: Получение положительного заключения государственной экспертизы на ТЭО | F25: событие
D26: 2.6 | E26: Получение разрешения на строительство | F26: событие
D27: 3 | E27: Организационный этап
D28: 3.1 | E28: Заключение договора с генеральным подрядчиком (EPC, EPCM) или договоров с основными подрядчиками | F28: событие
D29: 3.2 | E29: Получение правоустанавливающих документов на земельный участк под строительство | F29: событие
D30: 3.3 | E30: Заключение договоров на поставку основного оборудования | F30: событие
D31: 3.3.1 | E31: График поставки основного оборудования на объект | F31: событие
D32: 4 | E32: Строительные работы
D33: 4.1 | E33: Подготовка площадки строительства | F33: работа
D34: 4.2 | E34: Строительство основных сооружений (главного корпуса, гидротехнических сооружений, объектов топливного хозяйства, технического водоснабжения и др.) | F34: работа
D35: 4.3 | E35: Сдача основных сооружений под монтаж оборудования | F35: событие
D36: 4.4 | E36: Монтаж и ввод в работу грузоподъёмных механизмов для монтажа основного оборудования | F36: событие
D37: 4.5 | E37: Монтаж основного оборудования и трубопроводов | F37: работа
D38: 4.6 | E38: Монтаж электротехнического оборудования и КиП | F38: работа
D39: 5 | E39: Реализация схемы выдачи мощности (в объеме обязательств ГК)
D40: 5.1 | E40: Заявка в сетевую компанию на технологическое присоединение | F40: событие
D41: 5.2 | E41: Заключение договора с сетевой компанией на ТП. Получение и согласование ТУ и ТП | F41: событие
D42: 5.3 | E42: Разработка и согласование предпроектной внестадийной работы "Схема выдачи мощности" | F42: работа
D43: 5.4 | E43: Заключение договора на реализацию схемы выдачи мощности с согласованием графика строительства | F43: событие
D44: 5.5 | E44: Разработка рабочей документации сетевого строительства ГК (если таковое требуется для реализации СВМ) | F44: работа
D45: 5.6 | E45: Реализация сетевого строительства ГК (если таковое требуется для реализации СВМ) | F45: работа
D46: 6 | E46: Испытания и ввод в эксплуатацию
D47: 6.1 | E47: Индивидуальные испытания оборудования и функциональные испытания отдельных систем | F47: работа
D48: 6.2 | E48: Комплексное опробование оборудования | F48: работа
D49: 6.3 | E49: Готовность оборудования (ОРУ, ЗРУ) для технологического присоединения к электрическим сетям | F49: событие
D50: 6.4 | E50: Ввод объекта в эксплуатацию (получение разрешения на ввод объекта в эксплуатацию и подписание акта приемочной комиссии о приемке в эксплуатацию законченного строительством объекта). | F50: событие
D53: II. Контрольные этапы реализации инвестиционного проекта для сетевых компаний
D55: № п/п | E55: Наименование | F55: Тип
D56: 1 | E56: 2 | F56: 3
D57: 1 | E57: Предпроектный и проектный этап
D58: 1.1 | E58: Получение заявки на ТП | F58: событие
D59: 1.2 | E59: Разработка и выдача ТУ на ТП | F59: событие
D60: 1.3 | E60: Заключение договора на разработку проектной документации | F60: событие
D61: 1.4 | E61: Получение положительного заключения государственной экспертизы на проектную документацию | F61: событие
D62: 1.5 | E62: Утверждение проектной документации | F62: событие
D63: 1.6 | E63: Разработка рабочей документации | F63: работа
D64: 2 | E64: Организационный этап
D65: 2.1 | E65: Заключение договора подряда (допсоглашения к договору) | F65: событие
D66: 2.2 | E66: Получение правоустанавливающих документов для выделения земельного участка под строительство | F66: событие
D67: 2.3 | E67: Получение разрешительной документации для реализации СВМ | F67: событие
D68: 3 | E68: Сетевое строительство (реконструкция) и пусконаладочные работы
D69: 3.1 | E69: Подготовка площадки строительства для подстанций, трассы – для ЛЭП | F69: работа
D70: 3.2 | E70: Поставка основного оборудования | F70: событие
D71: 3.3 | E71: Монтаж основного оборудования | F71: работа
D72: 3.4 | E72: Пусконаладочные работы | F72: работа
D73: 3.5 | E73: Завершение строительства | F73: событие
D74: 4 | E74: Испытания и ввод в эксплуатацию
D75: 4.1 | E75: Комплексное опробование оборудования | F75: работа
D76: 4.2 | E76: Оформление (подписание) актов об осуществлении технологического присоединения к электрическим сетям | F76: событие
D77: 4.3 | E77: Получение разрешения на ввод объекта в эксплуатацию | F77: событие
D78: 4.4 | E78: Ввод в эксплуатацию объекта сетевого строительства | F78: событие

Sheet Ф.12
A1: 2
C6: Список листов | G6: Приложение № 12 к Приказу Минэнерго России от 24.03.2010 № 114
G7: Утверждаю руководитель организации
G9: (подпись)
G10: "___" _____________ 20__ года
G11: М.П.
D12: Форма представления показателей финансовой отчетности (представляется ежеквартально)
D13: =org & ", Факт за " & otchet_god & " г. " & kvartal -> ООО "Ростсельмашэнерго", Факт за 2015 г. IV квартал
D15: ="Финансовые показатели за отчетный период ("&kvartal & " квартал "& otchet_god & " года/ "&otchet_god&" год)" -> Финансовые показатели за отчетный период (IV квартал квартал 2015 года/ 2015 год) | G15: млн.руб
D16: № п/п | E16: Наименование показателя | F16: на конец отчетного квартала/за отчетный квартал | G16: ="на конец "& otchet_god-1 &" года/за "&otchet_god-1&" год" -> на конец 2014 года/за 2014 год
E17: место учета
D18: 1 | E18: 2 | F18: 3 | G18: 4
D19: 1 | E19: Выручка | F19: 651.1587415 | G19: 608.474
D20: 2 | E20: Чистая прибыль | G20: 7.973
D21: 3 | E21: Направления распределения чистой прибыли:
D22: 3.1 | E22: дивиденды
D23: 3.2 | E23: другое (расшифровать) | F23: =nerr(SUM(F24:F25)-F24) -> 0 | G23: =nerr(SUM(G24:G25)-G24) -> 0
D24: 3.2.0
E25: Добавить
D26: 4 | E26: EBITDA
D27: 5 | E27: Дебиторская задолженность, в т.ч.: | F27: 111.2016787 | G27: 117.365
D28: 5.1 | E28: покупатели и заказчики
D29: 5.2 | E29: авансы выданные
D30: 6 | E30: Собственный капитал | F30: 103.1674901 | G30: 103.167
D31: 7 | E31: * Заемный капитал (долгосрочные обязательства), в т.ч.: | F31: =nerr(SUM(F32:F35)) -> 0 | G31: =nerr(SUM(G32:G35)) -> 5.891
D32: 7.1 | E32: кредиты
D33: 7.2 | E33: облигационные займы
D34: 7.3 | E34: займы организаций
D35: 7.4 | E35: прочее | F35: 0 | G35: 5.891
D36: 8 | E36: Краткосрочные обязательства, в т.ч.: | F36: =nerr(F37+F38) -> 60.94945805 | G36: =nerr(G37+G38) -> 100.027
D37: 8.1 | E37: кредиты и займы*
D38: 8.2 | E38: кредиторская задолженность, в т.ч.: | F38: =nerr(SUM(F39:F41)) -> 60.94945805 | G38: =nerr(SUM(G39:G41)) -> 100.027
D39: 8.2.1 | E39: по строительству
D40: 8.2.2 | E40: по ремонтам | F40: 60.94945805 | G40: 100.027
D41: 8.2.3 | E41: по поставкам топлива
D42: 9 | E42: Сумма процентов, выплаченных по кредитам и займам
E43: Оценка обеспеченности инвестиционных программ
D44: 1 | E44: Всего потребность в финансировании инвестиционной программы | F44: 6.892
D45: 2 | E45: Профинансировано на отчетную дату | F45: 6.88
D46: 3 | E46: Обеспеченность источниками финансирования | F46: =+F45 -> 6.88
D47: 4 | E47: Дефицит финансирования | F47: 0
E48: Оценка кредитного потенциала
D49: 1 | E49: Собственная оценка кредитного потенциала:
D50: 1.1 | E50: ="на "& otchet_god&" г." -> на 2015 г.
D51: 1.2 | E51: ="на период " &otchet_god&" - " &otchet_god+1&" гг." -> на период 2015 - 2016 гг.
D52: 2 | E52: Пояснения по расчету кредитного потенциала
C54: * | E54: По кредитам и займам необходимо указать сумму открытых кредитных линий и сумму реально выбранных средств.

Sheet Ф.13
A1: 2
C7: Список листов | M7: Приложение № 13 к Приказу Минэнерго России от 24.03.2010 № 114
M8: Утверждаю руководитель организации
M10: (подпись)
M11: "___" _____________ 20__ года
M12: М.П.
D13: Отчет о техническом состоянии объекта (представляется ежеквартально) | P13: `
D14: =org & ", Факт за " & otchet_god & " г. " & kvartal -> ООО "Ростсельмашэнерго", Факт за 2015 г. IV квартал
D16: № п/п | E16: Наименование направления/ проекта инвестиционной программы | F16: Технические характеристики | I16: Сроки реализации проекта | K16: Наличие исходно-разрешительной документации
F17: Мощность, МВт, МВА | G17: Выработка, млн.кВт.ч | H17: Длина ВЛ, км | I17: Год начала строительства | J17: Год ввода в эксплуатацию | K17: утвержденная проектно-сметная документация (+; -) | L17: заключение Главгос- экспертизы России (+; -) | M17: оформленный в соответствии с законодательством землеотвод (+; -) | N17: разрешение на строительство (+; -)
D18: 1 | E18: 2 | F18: 3 | G18: 4 | H18: 5 | I18: 6 | J18: 7 | K18: 8 | L18: 9 | M18: 10 | N18: 11
E19: ВСЕГО
D20: 1 | E20: Техническое перевооружение и реконструкция
C21: - | D21: 1.1 | E21: Реконструкция
C22: + | D22: 1.1.1 | E22: Электрические линии
C23: + | D23: 1.1.1.1 | E23: Воздушные линии
C24: + | D24: 1.1.1.1.1 | E24: ВЛЭП 110-220 кВ (ВН)
D25: 1.1.1.1.1.0
C27: + | D27: 1.1.1.1.2 | E27: ВЛЭП 35 кВ (СН1)
D28: 1.1.1.1.2.0
C30: + | D30: 1.1.1.1.3 | E30: ВЛЭП 1-20 кВ (СН2)
D31: 1.1.1.1.3.0
C33: + | D33: 1.1.1.1.4 | E33: ВЛЭП 0,4 кВ (НН)
D34: 1.1.1.1.4.0
C36: + | D36: 1.1.1.2 | E36: Кабельные линии
C37: + | D37: 1.1.1.2.1 | E37: КЛЭП 110 кВ (ВН)
D38: 1.1.1.2.1.0
C40: + | D40: 1.1.1.2.2 | E40: КЛЭП 20-35 кВ (СН1)
D41: 1.1.1.2.2.0
C43: + | D43: 1.1.1.2.3 | E43: КЛЭП 3-10 кВ (СН2)
D44: 1.1.1.2.3.0
C46: + | D46: 1.1.1.2.4 | E46: КЛЭП до 1 кВ (НН)
D47: 1.1.1.2.4.0
C49: + | D49: 1.1.2 | E49: Подстанции
C50: + | D50: 1.1.2.1 | E50: Уровень входящего напряжения ВН
D51: 1.1.2.1.0
C53: + | D53: 1.1.2.2 | E53: Уровень входящего напряжения СН1
D54: 1.1.2.2.0
C56: + | D56: 1.1.2.3 | E56: Уровень входящего напряжения СН2
D57: 1.1.2.3.0
C59: - | D59: 1.1.3 | E59: Прочие электросетевые объекты
D60: 1.1.3.0
D61: 1.1.3.1 | E61: =Ф.7.1!$E$61 -> Реконструкция ПС 110/6 кВ ГПП-1, ПС 110/6 кВ ГПП-3 | I61: 2015 | J61: 2019 | K61: + | L61: + | M61: + | N61: +
C63: + | D63: 1.2 | E63: Энергосбережение и повышение энергетической эффективности
C64: + | D64: 1.2.1 | E64: Электрические линии
C65: + | D65: 1.2.1.1 | E65: Воздушные линии
C66: + | D66: 1.2.1.1.1 | E66: ВЛЭП 110-220 кВ (ВН)
D67: 1.2.1.1.1.0
C69: + | D69: 1.2.1.1.2 | E69: ВЛЭП 35 кВ (СН1)
D70: 1.2.1.1.2.0
C72: + | D72: 1.2.1.1.3 | E72: ВЛЭП 1-20 кВ (СН2)
D73: 1.2.1.1.3.0
C75: + | D75: 1.2.1.1.4 | E75: ВЛЭП 0,4 кВ (НН)
D76: 1.2.1.1.4.0
C78: + | D78: 1.2.1.2 | E78: Кабельные линии
C79: + | D79: 1.2.1.2.1 | E79: КЛЭП 110 кВ (ВН)
D80: 1.2.1.2.1.0
C82: + | D82: 1.2.1.2.2 | E82: КЛЭП 20-35 кВ (СН1)
D83: 1.2.1.2.2.0
C85: + | D85: 1.2.1.2.3 | E85: КЛЭП 3-10 кВ (СН2)
D86: 1.2.1.2.3.0
C88: + | D88: 1.2.1.2.4 | E88: КЛЭП до 1 кВ (НН)
D89: 1.2.1.2.4.0
C91: + | D91: 1.2.2 | E91: Подстанции
C92: + | D92: 1.2.2.1 | E92: Уровень входящего напряжения ВН
D93: 1.2.2.1.0
C95: + | D95: 1.2.2.2 | E95: Уровень входящего напряжения СН1
D96: 1.2.2.2.0
C98: + | D98: 1.2.2.3 | E98: Уровень входящего напряжения СН2
D99: 1.2.2.3.0
C101: + | D101: 1.2.3 | E101: Прочие электросетевые объекты
D102: 1.2.3.0
C104: + | D104: 1.3 | E104: Создание систем противоаварийной и режимной автоматики
D105: 1.3.0
C107: + | D107: 1.4 | E107: Создание систем телемеханики и связи
D108: 1.4.0
C110: + | D110: 1.5 | E110: Установка устройств регулирования напряжения и компенсации реактивной мощности
D111: 1.5.0
C113: + | D113: 1.6 | E113: Исполнение договоров технологического присоединения
C114: + | D114: 1.6.1 | E114: Электрические линии
C115: + | D115: 1.6.1.1 | E115: Воздушные линии
C116: + | D116: 1.6.1.1.1 | E116: ВЛЭП 110-220 кВ (ВН)
D117: 1.6.1.1.1.0
C119: + | D119: 1.6.1.1.2 | E119: ВЛЭП 35 кВ (СН1)
D120: 1.6.1.1.2.0
C122: + | D122: 1.6.1.1.3 | E122: ВЛЭП 1-20 кВ (СН2)
D123: 1.6.1.1.3.0
C125: + | D125: 1.6.1.1.4 | E125: ВЛЭП 0,4 кВ (НН)
D126: 1.6.1.1.4.0
C128: + | D128: 1.6.1.2 | E128: Кабельные линии
C129: + | D129: 1.6.1.2.1 | E129: КЛЭП 110 кВ (ВН)
D130: 1.6.1.2.1.0
C132: + | D132: 1.6.1.2.2 | E132: КЛЭП 20-35 кВ (СН1)
D133: 1.6.1.2.2.0
C135: + | D135: 1.6.1.2.3 | E135: КЛЭП 3-10 кВ (СН2)
D136: 1.6.1.2.3.0
C138: + | D138: 1.6.1.2.4 | E138: КЛЭП до 1 кВ (НН)
D139: 1.6.1.2.4.0
C141: + | D141: 1.6.2 | E141: Подстанции
C142: + | D142: 1.6.2.1 | E142: Уровень входящего напряжения ВН
D143: 1.6.2.1.0
C145: + | D145: 1.6.2.2 | E145: Уровень входящего напряжения СН1
D146: 1.6.2.2.0
C148: + | D148: 1.6.2.3 | E148: Уровень входящего напряжения СН2
D149: 1.6.2.3.0
C151: + | D151: 1.6.3 | E151: Прочие электросетевые объекты
D152: 1.6.3.0
D154: 2 | E154: Новое строительство
C155: + | D155: 2.1 | E155: Энергосбережение и повышение энергетической эффективности
C156: + | D156: 2.1.1 | E156: Электрические линии
C157: + | D157: 2.1.1.1 | E157: Воздушные линии
C158: + | D158: 2.1.1.1.1 | E158: ВЛЭП 110-220 кВ (ВН)
D159: 2.1.1.1.1.0
C161: + | D161: 2.1.1.1.2 | E161: ВЛЭП 35 кВ (СН1)
D162: 2.1.1.1.2.0
C164: + | D164: 2.1.1.1.3 | E164: ВЛЭП 1-20 кВ (СН2)
D165: 2.1.1.1.3.0
C167: + | D167: 2.1.1.1.4 | E167: ВЛЭП 0,4 кВ (НН)
D168: 2.1.1.1.4.0
C170: + | D170: 2.1.1.2 | E170: Кабельные линии
C171: + | D171: 2.1.1.2.1 | E171: КЛЭП 110 кВ (ВН)
D172: 2.1.1.2.1.0
C174: + | D174: 2.1.1.2.2 | E174: КЛЭП 20-35 кВ (СН1)
D175: 2.1.1.2.2.0
C177: + | D177: 2.1.1.2.3 | E177: КЛЭП 3-10 кВ (СН2)
D178: 2.1.1.2.3.0
C180: + | D180: 2.1.1.2.4 | E180: КЛЭП до 1 кВ (НН)
D181: 2.1.1.2.4.0
C183: + | D183: 2.1.2 | E183: Подстанции
C184: + | D184: 2.1.2.1 | E184: Уровень входящего напряжения ВН
D185: 2.1.2.1.0
C187: + | D187: 2.1.2.2 | E187: Уровень входящего напряжения СН1
D188: 2.1.2.2.0
C190: + | D190: 2.1.2.3 | E190: Уровень входящего напряжения СН2
D191: 2.1.2.3.0
C193: + | D193: 2.1.3 | E193: Прочие электросетевые объекты
D194: 2.1.3.0
C196: + | D196: 2.2 | E196: Исполнение договоров технологического присоединения
C197: + | D197: 2.2.1 | E197: Электрические линии
C198: + | D198: 2.2.1.1 | E198: Воздушные линии
C199: + | D199: 2.2.1.1.1 | E199: ВЛЭП 110-220 кВ (ВН)
D200: 2.2.1.1.1.0
C202: + | D202: 2.2.1.1.2 | E202: ВЛЭП 35 кВ (СН1)
D203: 2.2.1.1.2.0
C205: + | D205: 2.2.1.1.3 | E205: ВЛЭП 1-20 кВ (СН2)
D206: 2.2.1.1.3.0
C208: + | D208: 2.2.1.1.4 | E208: ВЛЭП 0,4 кВ (НН)
D209: 2.2.1.1.4.0
C211: + | D211: 2.2.1.2 | E211: Кабельные линии
C212: + | D212: 2.2.1.2.1 | E212: КЛЭП 110 кВ (ВН)
D213: 2.2.1.2.1.0
C215: + | D215: 2.2.1.2.2 | E215: КЛЭП 20-35 кВ (СН1)
D216: 2.2.1.2.2.0
C218: + | D218: 2.2.1.2.3 | E218: КЛЭП 3-10 кВ (СН2)
D219: 2.2.1.2.3.0
C221: + | D221: 2.2.1.2.4 | E221: КЛЭП до 1 кВ (НН)
D222: 2.2.1.2.4.0
C224: + | D224: 2.2.2 | E224: Подстанции
C225: + | D225: 2.2.2.1 | E225: Уровень входящего напряжения ВН
D226: 2.2.2.1.0
C228: + | D228: 2.2.2.2 | E228: Уровень входящего напряжения СН1
D229: 2.2.2.2.0
C231: + | D231: 2.2.2.3 | E231: Уровень входящего напряжения СН2
D232: 2.2.2.3.0
C234: + | D234: 2.2.3 | E234: Прочие электросетевые объекты
D235: 2.2.3.0
C237: + | D237: 2.3 | E237: Прочее новое строительство
D238: 2.3.0
D239: =D238&".1" -> 2.3.0.1 | E239: в том числе ПТП
D241: Справочно:
C242: + | D242: 3 | E242: Оплата процентов за привлеченные кредитные ресурсы
D243: 3.0

Sheet Комментарий
E8: Комментарии
E9: Ниже вы можете оставить свои комментарии
E11: Объемы финансирования в Ф.8, Ф.12 указаны в млн.руб. без НДС

Sheet Проверка
E10: Результат проверки
E12: Ссылка | F12: Причина | G12: Статус ошибки
E13: 1 | F13: 2 | G13: 3

Sheet modHyp (hidden)
A1: et_fil
E2: Филиал
A5: et_9
C7: Удалить | J7: =nerr(SUM(F7:I7)) -> 0 | O7: =nerr(SUM(K7:N7)) -> 0 | T7: =nerr(SUM(P7:S7)) -> 0 | Y7: =nerr(SUM(U7:X7)) -> 0 | AD7: =nerr(SUM(Z7:AC7)) -> 0 | AI7: =nerr(SUM(AE7:AH7)) -> 0 | AN7: =nerr(SUM(AJ7:AM7)) -> 0 | AS7: =nerr(SUM(AO7:AR7)) -> 0 | AX7: =nerr(SUM(AT7:AW7)) -> 0 | BC7: =nerr(SUM(AY7:BB7)) -> 0 | BH7: =nerr(SUM(BD7:BG7)) -> 0 | BM7: =nerr(SUM(BI7:BL7)) -> 0 | BR7: =nerr(SUM(BN7:BQ7)) -> 0 | BW7: =nerr(SUM(BS7:BV7)) -> 0 | CB7: =nerr(SUM(BX7:CA7)) -> 0 | CG7: =nerr(SUM(CC7:CF7)) -> 0
A9: et_11_1
A13: big_et_11_1
D14: Наименование инвестиционного проекта
D16: по состоянию на
D18: № пункта укрупненного сетевого графика | E18: Наименование этапов основных работ (с учетом подготовительного периода до начала строительства) по общему сетевому графику* | F18: Сроки выполнения задач по укрупненному сетевому графику | J18: Процент исполнения работ за весь период (%) | K18: Процент выполнения за отчетный период (%) | L18: Причины невыполнения | M18: Предложения по корректирующим мероприятиям по устранению отставания
F19: План | H19: Факт
F20: Начало | G20: Окончание | H20: Начало | I20: Окончание
D21: 1 | E21: 2 | F21: 3 | G21: 4 | H21: 5 | I21: 6 | J21: 7 | K21: 8 | L21: 9 | M21: 10
E22: Добавить
A26: et_10
C35: Удалить объект

Sheet modUpdTemplMain (hidden)

Sheet modHypShowHide (hidden)

Sheet modChange (hidden)

Sheet TEHSHEET (hidden)
A1: Алтайский край | K1: Vdet_list | L1: period_list | M1: KE_fil_list | N1: NESK_fil_list
A2: Амурская область | B2: logical | D2: year_list | F2: month_range | H2: curr_period | I2: obj_num | K2: Региональная генерация | L2: 1 год | M2: От организации в целом | N2: От организации в целом
A3: Архангельская область | B3: + | D3: 2007 | F3: январь | H3: 1 | I3: 9 | K3: Сбытовая компания | L3: 2 года | M3: Адыгейские электрические сети | N3: Абинскэлектросеть
A4: Астраханская область | B4: - | D4: 2008 | F4: февраль | K4: ЭСО | L4: 3 года | M4: Армавирские эелектрические сети | N4: Анапаэлектросеть
A5: Белгородская область | D5: 2009 | F5: март | K5: Станция - поставщик ЭЭ | L5: 4 года | M5: Исполнительный аппарат | N5: Апшеронскэлектросеть
A6: Брянская область | D6: 2010 | F6: апрель | K6: Сетевая компания | L6: 5 лет | M6: Краснодарские электрические сети | N6: Армавирэлектросеть
A7: Владимирская область | D7: 2011 | F7: май | M7: Лабинские электрические сети | N7: Белореченскэлектросеть
A8: Волгоградская область | D8: 2012 | F8: июнь | M8: Ленинградские электрические сети | N8: Геленджикэлектросеть
A9: Вологодская область | D9: 2013 | F9: июль | M9: Славянские электрические сети | N9: Горячеключэлектросеть
A10: Воронежская область | D10: 2014 | F10: август | M10: Сочинские электрические сети (Олимпиада) | N10: Гулькевичиэлектросеть
A11: г.Байконур | D11: 2015 | F11: сентябрь | M11: Сочинские электрические сети | N11: Ейскэлектросеть
A12: г. Москва | D12: 2016 | F12: октябрь | M12: Тимашевские электрические сети | N12: Кореновскэлектросеть
A13: г.Санкт-Петербург | D13: 2017 | F13: ноябрь | M13: Тихорецкие электрические сети | N13: Краснодарэлектросеть
A14: Еврейская автономная область | D14: 2018 | F14: декабрь | M14: Усть-Лабинские электрические сети | N14: Кропоткинэлектросеть
A15: Забайкальский край | D15: 2019 | M15: Юго-Западные электрические сети | N15: Крымскэлектросеть
A16: Ивановская область | D16: 2020 | N16: Курганинскэлектросеть
A17: Иркутская область | N17: Лабинскэклектросеть
A18: Кабардино-Балкарская республика | B18: Стадии реализации | D18: kvartal_list | F18: SphereActivity | N18: Мостэлектросеть
A19: Калининградская область | B19: С | D19: I квартал | F19: Теплоснабжение | N19: Новокубанскэлектросеть
A20: Калужская область | B20: П | D20: II квартал | F20: Электроэнергетика | N20: Новороссийскэлектросеть
A21: Камчатский край | D21: III квартал | N21: Приморско-Ахтарскэлектросеть
A22: Карачаево-Черкесская республика | D22: IV квартал | N22: Славянскэлектросеть
A23: Кемеровская область | B23: TYPE_PROJECT | N23: Темрюкэлектросеть
A24: Кировская область | B24: модернизация | N24: Тимашевскэлектросеть
A25: Костромская область | B25: реконструкция | N25: Тихорецкэлектросеть
A26: Краснодарский край | B26: новое строительство | N26: Туапсеэлектросеть
A27: Красноярский край | B27: расширение | N27: Усть-Лабинскэлектросеть
A28: Курганская область | N28: Исполнительный аппарат
A29: Курская область | B29: STAGE_REALIZ
A30: Ленинградская область | B30: проектирование
A31: Липецкая область | B31: строительство
A32: Магаданская область | B32: незавершенное строительство - приостановлено
A33: Московская область | B33: законсервировано
A34: Мурманская область
A35: Ненецкий автономный округ
A36: Нижегородская область
A37: Новгородская область | B37: XML_ORG_LIST_TAG_NAMES
A38: Новосибирская область | B38: NSRF
A39: Омская область | B39: MR_NAME
A40: Оренбургская область | B40: OKTMO_MR_NAME
A41: Орловская область | B41: MO_NAME
A42: Пензенская область | B42: OKTMO_NAME
A43: Пермский край | B43: ORG_NAME
A44: Приморский край | B44: INN_NAME
A45: Псковская область | B45: KPP_NAME
A46: Республика Адыгея | B46: VDET_NAME
A47: Республика Алтай
A48: Республика Башкортостан
A49: Республика Бурятия
A50: Республика Дагестан
A51: Республика Ингушетия
A52: Республика Калмыкия
A53: Республика Карелия
A54: Республика Коми
A55: Республика Марий Эл
A56: Республика Мордовия
A57: Республика Саха (Якутия)
A58: Республика Северная Осетия-Алания
A59: Республика Татарстан
A60: Республика Тыва
A61: Республика Хакасия
A62: Ростовская область
A63: Рязанская область
A64: Самарская область
A65: Саратовская область
A66: Сахалинская область
A67: Свердловская область
A68: Смоленская область
A69: Ставропольский край
A70: Тамбовская область
A71: Тверская область
A72: Томская область
A73: Тульская область
A74: Тюменская область
A75: Удмуртская республика
A76: Ульяновская область
A77: Хабаровский край
A78: Ханты-Мансийский автономный округ
A79: Челябинская область
A80: Чеченская республика
A81: Чувашская республика
A82: Чукотский автономный округ
A83: Ямало-Ненецкий автономный округ
A84: Ярославская область

Sheet REESTR_ORG (hidden)
A1: № | B1: ОРГАНИЗАЦИЯ | C1: ИНН | D1: КПП | E1: ВИД ДЕЯТЕЛЬНОСТИ
A2: 1 | B2: ООО "РЭТ" | C2: 6102041166 | D2: 610201001 | E2: Сетевая компания
A3: 2 | B3: ЗАО "Алкоа Металлург Рус" | C3: 7709534220 | D3: 615250001 | E3: Сетевая компания
A4: 3 | B4: ООО "Юг-Энерго" | C4: 6141034966 | D4: 614101001 | E4: Сетевая компания
A5: 4 | B5: ЗАО "Инжиниринговая компания "АЭМ-технологии" | C5: 7817311895 | D5: 781701001 | E5: Сбытовая компания
A6: 5 | B6: МУП "Волгодонская городская электрическая сеть" | C6: 6143014080 | D6: 614301001 | E6: Сетевая компания
A7: 6 | B7: ОАО "Энергия" | C7: 6143012100 | D7: 614301001 | E7: Сетевая компания
A8: 7 | B8: ООО "ЛУКОЙЛ-Ростовэнерго" | C8: 6164288981 | D8: 616301001 | E8: Региональная генерация
A9: 8 | B9: ООО "ЛУКОЙЛ-Ростовэнерго" | C9: 6164288981 | D9: 616301001 | E9: Станция - поставщик ЭЭ
A10: 9 | B10: ООО "Электросбыт" | C10: 6143060337 | D10: 614301001 | E10: Сбытовая компания
A11: 10 | B11: Филиал ОАО "Концерн Росэнергоатом" "Ростовская атомная станция" | C11: 7721632827 | D11: 614343002 | E11: Региональная генерация
A12: 11 | B12: Филиал ОАО "Концерн Росэнергоатом" "Ростовская атомная станция" | C12: 7721632827 | D12: 614343002 | E12: Станция - поставщик ЭЭ
A13: 12 | B13: ЗАО "Центральная энергосетевая компания" | C13: 6144010057 | D13: 614401001 | E13: Сетевая компания
A14: 13 | B14: ООО "ДОНЭКС" | C14: 6145010317 | D14: 614501001 | E14: Сетевая компания
A15: 14 | B15: ООО "Каменский завод газоиспользующего оборудования" | C15: 6147018880 | D15: 614701001 | E15: Сетевая компания
A16: 15 | B16: ООО "Производственная компания "Новочеркасский электровозостроительный завод" | C16: 6150040250 | D16: 997850001 | E16: Сетевая компания
A17: 16 | B17: ООО "Фирма "Ток" | C17: 6150016240 | D17: 615001001 | E17: Сетевая компания
A18: 17 | B18: Филиал ОАО "ОГК-2" Новочеркасская ГРЭС | C18: 2607018122 | D18: 615043001 | E18: Региональная генерация
A19: 18 | B19: ЗАО "ДЭС" | C19: 6167109550 | D19: 616701001 | E19: Сбытовая компания
A20: 19 | B20: МКП "Ростгорсвет" | C20: 6164246452 | D20: 616401001 | E20: Сетевая компания
A21: 20 | B21: ОАО "Алмаз" | C21: 6166055693 | D21: 616601001 | E21: Сетевая компания
A22: 21 | B22: ОАО "Аэропорт Ростов-на-Дону" | C22: 6166011054 | D22: 616601001 | E22: Сетевая компания
A23: 22 | B23: ОАО "Десятый подшипниковый завод" | C23: 6168000354 | D23: 615250001 | E23: Сетевая компания
A24: 23 | B24: ОАО "Донэнерго" | C24: 6163089292 | D24: 616301001 | E24: Сетевая компания
A25: 24 | B25: ОАО "Издательство Молот" | C25: 6168002880 | D25: 616801001 | E25: Сетевая компания
A26: 25 | B26: ОАО "Коммунальщик Дона" | C26: 6166050504 | D26: 616601001 | E26: Сетевая компания
A27: 26 | B27: ОАО "Мосэнергосбыт" | C27: 7736520080 | D27: 997450001 | E27: Сбытовая компания
A28: 27 | B28: ОАО "Оборонэнерго" Филиал "Южный" | C28: 7704726225 | D28: 616843001 | E28: Сетевая компания
A29: 28 | B29: ОАО "Продмаш" | C29: 6167053258 | D29: 616701001 | E29: Сетевая компания
A30: 29 | B30: ОАО "Энергосбыт Ростовэнерго" | C30: 6168002922 | D30: 615250001 | E30: Сбытовая компания
A31: 30 | B31: ОАО Нижноватомэнергосбыт | C31: 5260099456 | D31: 616302002 | E31: Сбытовая компания
A32: 31 | B32: ООО "Агро-Маркет" | C32: 6163080892 | D32: 611101001 | E32: Сетевая компания
A33: 32 | B33: ООО "Горизонт-Энерго" | C33: 6161031473 | D33: 616101001 | E33: Сетевая компания
A34: 33 | B34: ООО "Горизонт-Энергосбыт" | C34: 6161044659 | D34: 616101001 | E34: Сбытовая компания
A35: 34 | B35: ООО "ДЭКО" | C35: 6168056967 | D35: 616801001 | E35: Сетевая компания
A36: 35 | B36: ООО "Донэнерготранзит" | C36: 6163075726 | D36: 616401001 | E36: Сетевая компания
A37: 36 | B37: ООО "ЛУКОЙЛ-Ростовэнерго" | C37: 6164288981 | D37: 616301001 | E37: Региональная генерация
A38: 37 | B38: ООО "ЛУКОЙЛ-Ростовэнерго" | C38: 6164288981 | D38: 616301001 | E38: Станция - поставщик ЭЭ
A39: 38 | B39: ООО "ЛУКОЙЛ-Экоэнерго" | C39: 3015087458 | D39: 615250001 | E39: Региональная генерация
A40: 39 | B40: ООО "ЛУКОЙЛ-Экоэнерго" | C40: 3015087458 | D40: 615250001 | E40: Станция - поставщик ЭЭ
A41: 40 | B41: ООО "МеталлЭнергоРесурс" | C41: 6113016980 | D41: 616201001 | E41: Сетевая компания
A42: 41 | B42: ООО "Ника" | C42: 6140017855 | D42: 614001001 | E42: Сетевая компания
A43: 42 | B43: ООО "Ростсельмашэнерго" | C43: 6166047727 | D43: 616601001 | E43: Сетевая компания
A44: 43 | B44: ООО "Ростсельмашэнерго" | C44: 6166047727 | D44: 616601001 | E44: Региональная генерация
A45: 44 | B45: ООО "Ростсельмашэнергосбыт" | C45: 6166055647 | D45: 616601001 | E45: Сбытовая компания
A46: 45 | B46: ООО "ЭнергоЭффективность" | C46: 7706704202 | D46: 616343001 | E46: Сбытовая компания
A47: 46 | B47: ООО "Энергосоюз" | C47: 6168002376 | D47: 616801001 | E47: Сетевая компания
A48: 47 | B48: Открытое акционерное общество "Российские железные дороги" структурное подразделение Энергосбыт" филиала "Северо-Кавказская железная дорога" | C48: 7708503727 | D48: 616731005 | E48: Сетевая компания
A49: 48 | B49: Саратовский филиал ООО "Газпром энерго" | C49: 7736186950 | D49: 645302001 | E49: Сетевая компания
A50: 49 | B50: Северо-Кавказская дирекция по тепловодоснабжению структурное подразделение Центральной дирекции по тепловодоснабжению - филиала ОАО "РЖД" | C50: 7708503727 | D50: 616745019 | E50: Сетевая компания
A51: 50 | B51: Северо-Кавказский филиал ООО "Газпром энерго" | C51: 7736186950 | D51: 263602001 | E51: Сетевая компания
A52: 51 | B52: филиал ОАО "МРСК Юга"-"Ростовэнерго" | C52: 6164266561 | D52: 616402001 | E52: Сетевая компания
A53: 52 | B53: МУП "Таганрогэнерго" | C53: 6154085894 | D53: 615401001 | E53: Сетевая компания
A54: 53 | B54: ООО "РАДИУС" | C54: 6154083590 | D54: 615401001 | E54: Сетевая компания
A55: 54 | B55: ООО "РСК" | C55: 6154130160 | D55: 615401001 | E55: Сетевая компания
A56: 55 | B56: ОАО "Шахтинский завод Гидропривод" | C56: 6155010796 | D56: 615501001 | E56: Сетевая компания
A57: 56 | B57: ООО "Прометей" | C57: 6155050076 | D57: 615501001 | E57: Сетевая компания
A58: 57 | B58: ООО "Шахтинская ГТЭС" | C58: 6155043551 | D58: 615501001 | E58: Региональная генерация
A59: 58 | B59: ООО "Шахтинская ГТЭС" | C59: 6155043551 | D59: 615501001 | E59: Станция - поставщик ЭЭ
A60: 59 | B60: ООО "Энерготранс" | C60: 6155921809 | D60: 615501001 | E60: Сетевая компания
A61: 60 | B61: Северо-Кавказская дирекция по тепловодоснабжению структурное подразделение Центральной дирекции по тепловодоснабжению - филиала ОАО "РЖД" | C61: 7708503727 | D61: 616745019 | E61: Сетевая компания
A62: 61 | B62: Северо-Кавказская дирекция по тепловодоснабжению структурное подразделение Центральной дирекции по тепловодоснабжению - филиала ОАО "РЖД" | C62: 7708503727 | D62: 616745019 | E62: Сетевая компания
A63: 62 | B63: Северо-Кавказская дирекция по тепловодоснабжению структурное подразделение Центральной дирекции по тепловодоснабжению - филиала ОАО "РЖД" | C63: 7708503727 | D63: 616745019 | E63: Сетевая компания
A64: 63 | B64: Северо-Кавказская дирекция по тепловодоснабжению структурное подразделение Центральной дирекции по тепловодоснабжению - филиала ОАО "РЖД" | C64: 7708503727 | D64: 616745019 | E64: Сетевая компания
A65: 64 | B65: Северо-Кавказская дирекция по тепловодоснабжению структурное подразделение Центральной дирекции по тепловодоснабжению - филиала ОАО "РЖД" | C65: 7708503727 | D65: 616745019 | E65: Сетевая компания
A66: 65 | B66: Северо-Кавказская дирекция по тепловодоснабжению структурное подразделение Центральной дирекции по тепловодоснабжению - филиала ОАО "РЖД" | C66: 7708503727 | D66: 616745019 | E66: Сетевая компания
A67: 66 | B67: Северо-Кавказская дирекция по тепловодоснабжению структурное подразделение Центральной дирекции по тепловодоснабжению - филиала ОАО "РЖД" | C67: 7708503727 | D67: 616745019 | E67: Сетевая компания
A68: 67 | B68: Северо-Кавказская дирекция по тепловодоснабжению структурное подразделение Центральной дирекции по тепловодоснабжению - филиала ОАО "РЖД" | C68: 7708503727 | D68: 616745019 | E68: Сетевая компания
A69: 68 | B69: Северо-Кавказская дирекция по тепловодоснабжению структурное подразделение Центральной дирекции по тепловодоснабжению - филиала ОАО "РЖД" | C69: 7708503727 | D69: 616745019 | E69: Сетевая компания
A70: 69 | B70: Северо-Кавказская дирекция по тепловодоснабжению структурное подразделение Центральной дирекции по тепловодоснабжению - филиала ОАО "РЖД" | C70: 7708503727 | D70: 616745019 | E70: Сетевая компания
A71: 70 | B71: Северо-Кавказская дирекция по тепловодоснабжению структурное подразделение Центральной дирекции по тепловодоснабжению - филиала ОАО "РЖД" | C71: 7708503727 | D71: 616745019 | E71: Сетевая компания
A72: 71 | B72: Северо-Кавказская дирекция по тепловодоснабжению структурное подразделение Центральной дирекции по тепловодоснабжению - филиала ОАО "РЖД" | C72: 7708503727 | D72: 616745019 | E72: Сетевая компания
A73: 72 | B73: ОАО "Экспериментальная ТЭС" | C73: 6148012030 | D73: 614801001 | E73: Региональная генерация
A74: 73 | B74: ОАО "Экспериментальная ТЭС" | C74: 6148012030 | D74: 614801001 | E74: Станция - поставщик ЭЭ
A75: 74 | B75: Северо-Кавказская дирекция по тепловодоснабжению структурное подразделение Центральной дирекции по тепловодоснабжению - филиала ОАО "РЖД" | C75: 7708503727 | D75: 616745019 | E75: Сетевая компания
A76: 75 | B76: Северо-Кавказская дирекция по тепловодоснабжению структурное подразделение Центральной дирекции по тепловодоснабжению - филиала ОАО "РЖД" | C76: 7708503727 | D76: 616745019 | E76: Сетевая компания
A77: 76 | B77: Северо-Кавказская дирекция по тепловодоснабжению структурное подразделение Центральной дирекции по тепловодоснабжению - филиала ОАО "РЖД" | C77: 7708503727 | D77: 616745019 | E77: Сетевая компания
A78: 77 | B78: Северо-Кавказская дирекция по тепловодоснабжению структурное подразделение Центральной дирекции по тепловодоснабжению - филиала ОАО "РЖД" | C78: 7708503727 | D78: 616745019 | E78: Сетевая компания
A79: 78 | B79: Северо-Кавказская дирекция по тепловодоснабжению структурное подразделение Центральной дирекции по тепловодоснабжению - филиала ОАО "РЖД" | C79: 7708503727 | D79: 616745019 | E79: Сетевая компания
A80: 79 | B80: Северо-Кавказская дирекция по тепловодоснабжению структурное подразделение Центральной дирекции по тепловодоснабжению - филиала ОАО "РЖД" | C80: 7708503727 | D80: 616745019 | E80: Сетевая компания
A81: 80 | B81: Северо-Кавказская дирекция по тепловодоснабжению структурное подразделение Центральной дирекции по тепловодоснабжению - филиала ОАО "РЖД" | C81: 7708503727 | D81: 616745019 | E81: Сетевая компания
A82: 81 | B82: Северо-Кавказская дирекция по тепловодоснабжению структурное подразделение Центральной дирекции по тепловодоснабжению - филиала ОАО "РЖД" | C82: 7708503727 | D82: 616745019 | E82: Сетевая компания
A83: 82 | B83: Северо-Кавказская дирекция по тепловодоснабжению структурное подразделение Центральной дирекции по тепловодоснабжению - филиала ОАО "РЖД" | C83: 7708503727 | D83: 616745019 | E83: Сетевая компания
A84: 83 | B84: Северо-Кавказская дирекция по тепловодоснабжению структурное подразделение Центральной дирекции по тепловодоснабжению - филиала ОАО "РЖД" | C84: 7708503727 | D84: 616745019 | E84: Сетевая компания
A85: 84 | B85: Северо-Кавказская дирекция по тепловодоснабжению структурное подразделение Центральной дирекции по тепловодоснабжению - филиала ОАО "РЖД" | C85: 7708503727 | D85: 616745019 | E85: Сетевая компания
A86: 85 | B86: Северо-Кавказская дирекция по тепловодоснабжению структурное подразделение Центральной дирекции по тепловодоснабжению - филиала ОАО "РЖД" | C86: 7708503727 | D86: 616745019 | E86: Сетевая компания
A87: 86 | B87: Северо-Кавказская дирекция по тепловодоснабжению структурное подразделение Центральной дирекции по тепловодоснабжению - филиала ОАО "РЖД" | C87: 7708503727 | D87: 616745019 | E87: Сетевая компания
A88: 87 | B88: Северо-Кавказская дирекция по тепловодоснабжению структурное подразделение Центральной дирекции по тепловодоснабжению - филиала ОАО "РЖД" | C88: 7708503727 | D88: 616745019 | E88: Сетевая компания
A89: 88 | B89: Северо-Кавказская дирекция по тепловодоснабжению структурное подразделение Центральной дирекции по тепловодоснабжению - филиала ОАО "РЖД" | C89: 7708503727 | D89: 616745019 | E89: Сетевая компания
A90: 89 | B90: Северо-Кавказская дирекция по тепловодоснабжению структурное подразделение Центральной дирекции по тепловодоснабжению - филиала ОАО "РЖД" | C90: 7708503727 | D90: 616745019 | E90: Сетевая компания
A91: 90 | B91: Северо-Кавказская дирекция по тепловодоснабжению структурное подразделение Центральной дирекции по тепловодоснабжению - филиала ОАО "РЖД" | C91: 7708503727 | D91: 616745019 | E91: Сетевая компания
A92: 91 | B92: Северо-Кавказская дирекция по тепловодоснабжению структурное подразделение Центральной дирекции по тепловодоснабжению - филиала ОАО "РЖД" | C92: 7708503727 | D92: 616745019 | E92: Сетевая компания
A93: 92 | B93: Северо-Кавказская дирекция по тепловодоснабжению структурное подразделение Центральной дирекции по тепловодоснабжению - филиала ОАО "РЖД" | C93: 7708503727 | D93: 616745019 | E93: Сетевая компания
A94: 93 | B94: Северо-Кавказская дирекция по тепловодоснабжению структурное подразделение Центральной дирекции по тепловодоснабжению - филиала ОАО "РЖД" | C94: 7708503727 | D94: 616745019 | E94: Сетевая компания
A95: 94 | B95: Северо-Кавказская дирекция по тепловодоснабжению структурное подразделение Центральной дирекции по тепловодоснабжению - филиала ОАО "РЖД" | C95: 7708503727 | D95: 616745019 | E95: Сетевая компания
A96: 95 | B96: Северо-Кавказская дирекция по тепловодоснабжению структурное подразделение Центральной дирекции по тепловодоснабжению - филиала ОАО "РЖД" | C96: 7708503727 | D96: 616745019 | E96: Сетевая компания
A97: 96 | B97: ООО "ПримЭнерго" | C97: 6123022171 | D97: 612301001 | E97: Сетевая компания
A98: 97 | B98: ООО "Неотон" | C98: 7704557182 | D98: 612501001 | E98: Сетевая компания
A99: 98 | B99: Северо-Кавказская дирекция по тепловодоснабжению структурное подразделение Центральной дирекции по тепловодоснабжению - филиала ОАО "РЖД" | C99: 7708503727 | D99: 616745019 | E99: Сетевая компания
A100: 99 | B100: Северо-Кавказская дирекция по тепловодоснабжению структурное подразделение Центральной дирекции по тепловодоснабжению - филиала ОАО "РЖД" | C100: 7708503727 | D100: 616745019 | E100: Сетевая компания
A101: 100 | B101: Северо-Кавказская дирекция по тепловодоснабжению структурное подразделение Центральной дирекции по тепловодоснабжению - филиала ОАО "РЖД" | C101: 7708503727 | D101: 616745019 | E101: Сетевая компания
A102: 101 | B102: Северо-Кавказская дирекция по тепловодоснабжению структурное подразделение Центральной дирекции по тепловодоснабжению - филиала ОАО "РЖД" | C102: 7708503727 | D102: 616745019 | E102: Сетевая компания
A103: 102 | B103: Северо-Кавказская дирекция по тепловодоснабжению структурное подразделение Центральной дирекции по тепловодоснабжению - филиала ОАО "РЖД" | C103: 7708503727 | D103: 616745019 | E103: Сетевая компания
A104: 103 | B104: Северо-Кавказская дирекция по тепловодоснабжению структурное подразделение Центральной дирекции по тепловодоснабжению - филиала ОАО "РЖД" | C104: 7708503727 | D104: 616745019 | E104: Сетевая компания
A105: 104 | B105: Северо-Кавказская дирекция по тепловодоснабжению структурное подразделение Центральной дирекции по тепловодоснабжению - филиала ОАО "РЖД" | C105: 7708503727 | D105: 616745019 | E105: Сетевая компания
A106: 105 | B106: Северо-Кавказская дирекция по тепловодоснабжению структурное подразделение Центральной дирекции по тепловодоснабжению - филиала ОАО "РЖД" | C106: 7708503727 | D106: 616745019 | E106: Сетевая компания
A107: 106 | B107: Северо-Кавказская дирекция по тепловодоснабжению структурное подразделение Центральной дирекции по тепловодоснабжению - филиала ОАО "РЖД" | C107: 7708503727 | D107: 616745019 | E107: Сетевая компания
A108: 107 | B108: Северо-Кавказская дирекция по тепловодоснабжению структурное подразделение Центральной дирекции по тепловодоснабжению - филиала ОАО "РЖД" | C108: 7708503727 | D108: 616745019 | E108: Сетевая компания
A109: 108 | B109: Северо-Кавказская дирекция по тепловодоснабжению структурное подразделение Центральной дирекции по тепловодоснабжению - филиала ОАО "РЖД" | C109: 7708503727 | D109: 616745019 | E109: Сетевая компания
A110: 109 | B110: Северо-Кавказская дирекция по тепловодоснабжению структурное подразделение Центральной дирекции по тепловодоснабжению - филиала ОАО "РЖД" | C110: 7708503727 | D110: 616745019 | E110: Сетевая компания
A111: 110 | B111: Северо-Кавказская дирекция по тепловодоснабжению структурное подразделение Центральной дирекции по тепловодоснабжению - филиала ОАО "РЖД" | C111: 7708503727 | D111: 616745019 | E111: Сетевая компания
A112: 111 | B112: Северо-Кавказская дирекция по тепловодоснабжению структурное подразделение Центральной дирекции по тепловодоснабжению - филиала ОАО "РЖД" | C112: 7708503727 | D112: 616745019 | E112: Сетевая компания
A113: 112 | B113: Северо-Кавказская дирекция по тепловодоснабжению структурное подразделение Центральной дирекции по тепловодоснабжению - филиала ОАО "РЖД" | C113: 7708503727 | D113: 616745019 | E113: Сетевая компания
A114: 113 | B114: Северо-Кавказская дирекция по тепловодоснабжению структурное подразделение Центральной дирекции по тепловодоснабжению - филиала ОАО "РЖД" | C114: 7708503727 | D114: 616745019 | E114: Сетевая компания
A115: 114 | B115: Северо-Кавказская дирекция по тепловодоснабжению структурное подразделение Центральной дирекции по тепловодоснабжению - филиала ОАО "РЖД" | C115: 7708503727 | D115: 616745019 | E115: Сетевая компания
A116: 115 | B116: Северо-Кавказская дирекция по тепловодоснабжению структурное подразделение Центральной дирекции по тепловодоснабжению - филиала ОАО "РЖД" | C116: 7708503727 | D116: 616745019 | E116: Сетевая компания
A117: 116 | B117: Северо-Кавказская дирекция по тепловодоснабжению структурное подразделение Центральной дирекции по тепловодоснабжению - филиала ОАО "РЖД" | C117: 7708503727 | D117: 616745019 | E117: Сетевая компания
A118: 117 | B118: Северо-Кавказская дирекция по тепловодоснабжению структурное подразделение Центральной дирекции по тепловодоснабжению - филиала ОАО "РЖД" | C118: 7708503727 | D118: 616745019 | E118: Сетевая компания
A119: 118 | B119: ЗАО "Электросеть" | C119: 7714734225 | D119: 771401001 | E119: Сетевая компания
A120: 119 | B120: ОАО "ОГК-2" | C120: 2607018122 | D120: 260701001 | E120: Станция - поставщик ЭЭ
A121: 120 | B121: ОАО "Оборонэнергосбыт" | C121: 7704731218 | D121: 770401001 | E121: Сбытовая компания
A122: 121 | B122: ОАО "Объединенная энергетическая компания" | C122: 7810258843 | D122: 781301001 | E122: Сетевая компания
A123: 122 | B123: ОАО "Российские Железные Дороги" | C123: 7708503727 | D123: 616745011 | E123: Сетевая компания
A124: 123 | B124: ОАО "ФСК ЕЭС" | C124: 4716016979 | D124: 997450001 | E124: Сетевая компания
A125: 124 | B125: ОАО "Энергосбытовая компания "Восток" | C125: 7705424509 | D125: 770101001 | E125: Сбытовая компания
A126: 125 | B126: ОАО ГК «ТНС энерго» | C126: 7705541227 | D126: 770201001 | E126: Сбытовая компания
A127: 126 | B127: ООО "Газпром энерго" | C127: 7736186950 | D127: 773601001 | E127: Сетевая компания
A128: 127 | B128: ООО "Гарант Энерго" | C128: 7709782777 | D128: 770901001 | E128: Сбытовая компания
A129: 128 | B129: ООО "Дизаж М" | C129: 7728587330 | D129: 772801001 | E129: Сбытовая компания
A130: 129 | B130: ООО "Евразийская энергетическая компания" | C130: 7717736855 | D130: 771701001 | E130: Сбытовая компания
A131: 130 | B131: ООО "Инженерные изыскания" | C131: 1103029229 | D131: 352801001 | E131: Сбытовая компания
A132: 131 | B132: ООО "ЛУКОЙЛ-Ростовэнерго" | C132: 6164288981 | D132: 616301001 | E132: Региональная генерация
A133: 132 | B133: ООО "ЛУКОЙЛ-Ростовэнерго" | C133: 6164288981 | D133: 616301001 | E133: Станция - поставщик ЭЭ
A134: 133 | B134: ООО "МЕЧЕЛ-ЭНЕРГО" | C134: 7722245108 | D134: 771401001 | E134: Сбытовая компания
A135: 134 | B135: ООО "РУСЭНЕРГОСБЫТ" | C135: 7706284124 | D135: 770601001 | E135: Сбытовая компания
A136: 135 | B136: ООО "Русэнергоресурс" | C136: 7706288496 | D136: 770601001 | E136: Сбытовая компания
A137: 136 | B137: ООО "Трансэнергопром" | C137: 7731411714 | D137: 770501001 | E137: Сбытовая компания
A138: 137 | B138: ООО "ЭПМ-Энерго" | C138: 7709756784 | D138: 772001001 | E138: Сбытовая компания
A139: 138 | B139: ООО "Энерголинк" | C139: 7727223010 | D139: 772801001 | E139: Сбытовая компания
A140: 139 | B140: ООО "Энергосбытовая компания "ИнтерЭрго" | C140: 7710430628 | D140: 770701001 | E140: Сбытовая компания
A141: 140 | B141: Общество с ограниченной ответственностью «Комплексэнергосервис» | C141: 7727688054 | D141: 770401001 | E141: Сетевая компания
A142: 141 | B142: Открытое акционерное общество "ГТ-ТЭЦ Энерго" | C142: 7703311228 | D142: 770301001 | E142: Станция - поставщик ЭЭ
A143: 142 | B143: Саратовский филиал ООО "Газпром энерго" | C143: 7736186950 | D143: 645302001 | E143: Сетевая компания
A144: 143 | B144: Северо-Кавказская дирекция по тепловодоснабжению структурное подразделение Центральной дирекции по тепловодоснабжению - филиала ОАО "РЖД" | C144: 7708503727 | D144: 616745019 | E144: Сетевая компания
A145: 144 | B145: Северо-Кавказский филиал ООО "Газпром энерго" | C145: 7736186950 | D145: 263602001 | E145: Сетевая компания

Sheet REESTR_FILTERED (hidden)
A1: № | B1: ОРГАНИЗАЦИЯ | C1: ИНН | D1: КПП | E1: ВИД ДЕЯТЕЛЬНОСТИ
A2: 1 | B2: ООО "Ростсельмашэнерго" | C2: 6166047727 | D2: 616601001 | E2: Сетевая компания
A3: 2 | B3: ООО "Ростсельмашэнерго" | C3: 6166047727 | D3: 616601001 | E3: Региональная генерация
A4: 3 | B4: ООО "Ростсельмашэнергосбыт" | C4: 6166055647 | D4: 616601001 | E4: Сбытовая компания

Sheet modfrmReestr (hidden)

Sheet modCommandButton (hidden)

Sheet AllSheetsInThisWorkbook (hidden)
A1: Расчетные листы | B1: Скрытые листы
A2: Инструкция | B2: modHyp
A3: Выбор субъекта РФ | B3: modUpdTemplMain
A4: Обновление | B4: modHypShowHide
A5: Лог обновления | B5: modChange
A6: Титульный | B6: TEHSHEET
A7: Список листов | B7: REESTR_ORG
A8: Ф.7.1 | B8: REESTR_FILTERED
A9: Ф.7.2 | B9: modfrmReestr
A10: Ф.8 | B10: modCommandButton
A11: Ф.9 | B11: AllSheetsInThisWorkbook
A12: Ф.10 | B12: modF_7_1
A13: Ф.11.1 | B13: modF_7_2
A14: Ф.11.2 | B14: modHandler
A15: Ф.12 | B15: modProv
A16: Ф.13
A17: Комментарий
A18: Проверка

Sheet modF_7_1 (hidden)

Sheet modF_7_2 (hidden)

Sheet modHandler (hidden)

Sheet modProv (hidden)
